Workbook

Sheet DASHBOARD
A1: 5 | B1: 145 | Y1: 81 | Z1: 23.6 | AA1: 51 | AB1: 5
A2: 1 | B2: ="0"&A2 -> 01 | Y2: 96 | Z2: 30.4 | AA2: 52 | AB2: 75
B3: PRODUCTS BY DAYS | S3: RATING OF PRODUCTS | Y3: 110 | Z3: 36 | AA3: 53 | AB3: 145
A4: 290 | B4: 75 | Y4: 96 | Z4: 30.4 | AA4: 54 | AB4: 220
Y5: 81 | Z5: 23.6 | AA5: 55 | AB5: 290
Y6: 96 | Z6: 30.4 | AA6: 751
Y7: 110 | Z7: 36 | AA7: 752
Y8: 96 | Z8: 30.4 | AA8: 753
Y9: 81 | Z9: 23.6 | AA9: 754
Y10: 81 | Z10: 23.6 | AA10: 755
Y11: 110 | Z11: 36 | AA11: 1451
Y12: 96 | Z12: 30.4 | AA12: 1452
Y13: 81 | Z13: 23.6 | AA13: 1453
Y14: 81 | Z14: 23.6 | AA14: 1454
Y15: 96 | Z15: 30.4 | AA15: 1455
Y16: 96 | Z16: 30.4 | AA16: 2201
Y17: 81 | Z17: 23.6 | AA17: 2202
B18: SALES FOR THE YEAR | F18: heatmap | S18: SEGMENTATION | Y18: 81 | Z18: 23.6 | AA18: 2203
Y19: 96 | Z19: 30.4 | AA19: 2204
Y20: 110 | Z20: 36 | AA20: 2205
Y21: 81 | Z21: 23.6 | AA21: 2901
Y22: 81 | Z22: 23.6 | AA22: 2902
Y23: 96 | Z23: 30.4 | AA23: 2903
Y24: 110 | Z24: 36 | AA24: 2904
Y25: 96 | Z25: 30.4 | AA25: 2905
K33: https://exceltable.com/
C35: https://exceltable.com/en/templates/3d-menu-for-dashboard-in-excel

Sheet 1-Manager
A1: Date | B1: Product Groups | F1: Total sales | G1: State | H1: Days of the week | I1: № Month | J1: https://exceltable.com/en/templates/3d-menu-for-dashboard-in-excel
B2: A | C2: B | D2: C | E2: D
A3: 2020-01-01 | B3: 165 | C3: 93 | D3: 89 | E3: 39 | F3: =SUM(B3:E3) -> 386 | G3: Alabama | H3: =WEEKDAY(A3,2) -> 3 | I3: =MONTH(A3) -> 1
A4: 2020-01-02 | B4: 109 | C4: 54 | D4: 52 | E4: 28 | F4: =SUM(B4:E4) -> 243 | G4: Alabama | H4: =WEEKDAY(A4,2) -> 4 | I4: =MONTH(A4) -> 1
A5: 2020-01-03 | B5: 146 | C5: 82 | D5: 104 | E5: 13 | F5: 345 | G5: Alabama | H5: 5 | I5: 1
A6: 2020-01-04 | B6: 181 | C6: 79 | D6: 123 | E6: 39 | F6: 422 | G6: Alabama | H6: 6 | I6: 1
A7: 2020-01-05 | B7: 14 | C7: 31 | D7: 13 | E7: 11 | F7: 69 | G7: Alabama | H7: 7 | I7: 1
A8: 2020-01-06 | B8: 38 | C8: 48 | D8: 45 | E8: 6 | F8: 137 | G8: Alabama | H8: 1 | I8: 1
A9: 2020-01-07 | B9: 21 | C9: 85 | D9: 118 | E9: 20 | F9: 244 | G9: Alabama | H9: 2 | I9: 1
A10: 2020-01-08 | B10: 99 | C10: 83 | D10: 16 | E10: 28 | F10: 226 | G10: Alabama | H10: 3 | I10: 1
A11: 2020-01-09 | B11: 30 | C11: 19 | D11: 112 | E11: 11 | F11: 172 | G11: Alabama | H11: 4 | I11: 1
A12: 2020-01-10 | B12: 83 | C12: 81 | D12: 40 | E12: 34 | F12: 238 | G12: Alabama | H12: 5 | I12: 1
A13: 2020-01-11 | B13: 199 | C13: 93 | D13: 70 | E13: 24 | F13: 386 | G13: Alabama | H13: 6 | I13: 1
A14: 2020-01-12 | B14: 26 | C14: 16 | D14: 35 | E14: 3 | F14: 80 | G14: Alabama | H14: 7 | I14: 1
A15: 2020-01-13 | B15: 66 | C15: 27 | D15: 67 | E15: 10 | F15: 170 | G15: Alabama | H15: 1 | I15: 1
A16: 2020-01-14 | B16: 92 | C16: 61 | D16: 117 | E16: 44 | F16: 314 | G16: Alabama | H16: 2 | I16: 1
A17: 2020-01-15 | B17: 181 | C17: 97 | D17: 31 | E17: 6 | F17: 315 | G17: Alabama | H17: 3 | I17: 1
A18: 2020-01-16 | B18: 183 | C18: 44 | D18: 106 | E18: 10 | F18: 343 | G18: Alabama | H18: 4 | I18: 1
A19: 2020-01-17 | B19: 61 | C19: 50 | D19: 30 | E19: 23 | F19: 164 | G19: Alabama | H19: 5 | I19: 1
A20: 2020-01-18 | B20: 81 | C20: 19 | D20: 75 | E20: 35 | F20: 210 | G20: Alabama | H20: 6 | I20: 1
A21: 2020-01-19 | B21: 60 | C21: 4 | D21: 13 | E21: 13 | F21: 90 | G21: Alabama | H21: 7 | I21: 1
A22: 2020-01-20 | B22: 45 | C22: 16 | D22: 27 | E22: 3 | F22: 91 | G22: Alabama | H22: 1 | I22: 1
A23: 2020-01-21 | B23: 67 | C23: 68 | D23: 107 | E23: 23 | F23: 265 | G23: Alabama | H23: 2 | I23: 1
A24: 2020-01-22 | B24: 181 | C24: 22 | D24: 28 | E24: 5 | F24: 236 | G24: Alabama | H24: 3 | I24: 1
A25: 2020-01-23 | B25: 68 | C25: 21 | D25: 30 | E25: 38 | F25: 157 | G25: Alabama | H25: 4 | I25: 1
A26: 2020-01-24 | B26: 98 | C26: 15 | D26: 84 | E26: 16 | F26: 213 | G26: Alabama | H26: 5 | I26: 1
A27: 2020-01-25 | B27: 146 | C27: 25 | D27: 134 | E27: 16 | F27: 321 | G27: Alabama | H27: 6 | I27: 1
A28: 2020-01-26 | B28: 54 | C28: 25 | D28: 24 | E28: 15 | F28: 118 | G28: Alabama | H28: 7 | I28: 1
A29: 2020-01-27 | B29: 35 | C29: 20 | D29: 50 | E29: 20 | F29: 125 | G29: Alabama | H29: 1 | I29: 1
A30: 2020-01-28 | B30: 110 | C30: 77 | D30: 129 | E30: 47 | F30: 363 | G30: Alabama | H30: 2 | I30: 1
A31: 2020-01-29 | B31: 22 | C31: 55 | D31: 60 | E31: 38 | F31: 175 | G31: Alabama | H31: 3 | I31: 1
A32: 2020-01-30 | B32: 92 | C32: 74 | D32: 33 | E32: 19 | F32: 218 | G32: Alabama | H32: 4 | I32: 1
A33: 2020-01-31 | B33: 195 | C33: 33 | D33: 24 | E33: 47 | F33: 299 | G33: Alabama | H33: 5 | I33: 1
A34: 2020-02-01 | B34: 121 | C34: 50 | D34: 27 | E34: 43 | F34: 241 | G34: Arizona | H34: 6 | I34: 2
A35: 2020-02-02 | B35: 56 | C35: 16 | D35: 49 | E35: 13 | F35: 134 | G35: Arizona | H35: 7 | I35: 2
A36: 2020-02-03 | B36: 10 | C36: 14 | D36: 22 | E36: 5 | F36: 51 | G36: Arizona | H36: 1 | I36: 2
A37: 2020-02-04 | B37: 70 | C37: 43 | D37: 113 | E37: 32 | F37: 258 | G37: Arizona | H37: 2 | I37: 2
A38: 2020-02-05 | B38: 85 | C38: 79 | D38: 90 | E38: 12 | F38: 266 | G38: Arizona | H38: 3 | I38: 2
A39: 2020-02-06 | B39: 53 | C39: 91 | D39: 63 | E39: 16 | F39: 223 | G39: Arizona | H39: 4 | I39: 2
A40: 2020-02-07 | B40: 84 | C40: 36 | D40: 25 | E40: 41 | F40: 186 | G40: Arizona | H40: 5 | I40: 2
A41: 2020-02-08 | B41: 75 | C41: 65 | D41: 61 | E41: 42 | F41: 243 | G41: Arizona | H41: 6 | I41: 2
A42: 2020-02-09 | B42: 56 | C42: 28 | D42: 26 | E42: 12 | F42: 122 | G42: Arizona | H42: 7 | I42: 2
A43: 2020-02-10 | B43: 45 | C43: 6 | D43: 61 | E43: 15 | F43: 127 | G43: Arizona | H43: 1 | I43: 2
A44: 2020-02-11 | B44: 167 | C44: 18 | D44: 34 | E44: 6 | F44: 225 | G44: Arizona | H44: 2 | I44: 2
A45: 2020-02-12 | B45: 90 | C45: 68 | D45: 22 | E45: 49 | F45: 229 | G45: Arizona | H45: 3 | I45: 2
A46: 2020-02-13 | B46: 153 | C46: 18 | D46: 47 | E46: 10 | F46: 228 | G46: Arizona | H46: 4 | I46: 2
A47: 2020-02-14 | B47: 69 | C47: 50 | D47: 122 | E47: 48 | F47: 289 | G47: Arizona | H47: 5 | I47: 2
A48: 2020-02-15 | B48: 162 | C48: 96 | D48: 64 | E48: 45 | F48: 367 | G48: Arizona | H48: 6 | I48: 2
A49: 2020-02-16 | B49: 15 | C49: 32 | D49: 41 | E49: 16 | F49: 104 | G49: Arizona | H49: 7 | I49: 2
A50: 2020-02-17 | B50: 41 | C50: 21 | D50: 7 | E50: 2 | F50: 71 | G50: Arizona | H50: 1 | I50: 2
A51: 2020-02-18 | B51: 144 | C51: 98 | D51: 71 | E51: 48 | F51: 361 | G51: Arizona | H51: 2 | I51: 2
A52: 2020-02-19 | B52: 123 | C52: 64 | D52: 42 | E52: 41 | F52: 270 | G52: Arizona | H52: 3 | I52: 2
A53: 2020-02-20 | B53: 45 | C53: 42 | D53: 78 | E53: 46 | F53: 211 | G53: Arizona | H53: 4 | I53: 2
A54: 2020-02-21 | B54: 29 | C54: 35 | D54: 37 | E54: 16 | F54: 117 | G54: Arizona | H54: 5 | I54: 2
A55: 2020-02-22 | B55: 111 | C55: 96 | D55: 21 | E55: 25 | F55: 253 | G55: Arizona | H55: 6 | I55: 2
A56: 2020-02-23 | B56: 17 | C56: 29 | D56: 20 | E56: 4 | F56: 70 | G56: Arizona | H56: 7 | I56: 2
A57: 2020-02-24 | B57: 20 | C57: 24 | D57: 66 | E57: 18 | F57: 128 | G57: Arizona | H57: 1 | I57: 2
A58: 2020-02-25 | B58: 98 | C58: 10 | D58: 126 | E58: 6 | F58: 240 | G58: Arizona | H58: 2 | I58: 2
A59: 2020-02-26 | B59: 96 | C59: 99 | D59: 122 | E59: 35 | F59: 352 | G59: Arizona | H59: 3 | I59: 2
A60: 2020-02-27 | B60: 40 | C60: 58 | D60: 122 | E60: 49 | F60: 269 | G60: Arizona | H60: 4 | I60: 2
A61: 2020-02-28 | B61: 170 | C61: 57 | D61: 16 | E61: 22 | F61: 265 | G61: Arizona | H61: 5 | I61: 2
A62: 2020-02-29 | B62: 167 | C62: 28 | D62: 81 | E62: 36 | F62: 312 | G62: Arizona | H62: 6 | I62: 2
A63: 2020-03-01 | B63: 12 | C63: 16 | D63: 47 | E63: 14 | F63: 89 | G63: Arkansas | H63: 7 | I63: 3
A64: 2020-03-02 | B64: 75 | C64: 37 | D64: 28 | E64: 19 | F64: 159 | G64: Arkansas | H64: 1 | I64: 3
A65: 2020-03-03 | B65: 129 | C65: 18 | D65: 126 | E65: 6 | F65: 279 | G65: Arkansas | H65: 2 | I65: 3
A66: 2020-03-04 | B66: 126 | C66: 85 | D66: 144 | E66: 17 | F66: 372 | G66: Arkansas | H66: 3 | I66: 3
A67: 2020-03-05 | B67: 122 | C67: 40 | D67: 142 | E67: 14 | F67: 318 | G67: Arkansas | H67: 4 | I67: 3
A68: 2020-03-06 | B68: 172 | C68: 76 | D68: 62 | E68: 25 | F68: =SUM(B68:E68) -> 335 | G68: Arkansas | H68: =WEEKDAY(A68,2) -> 5 | I68: =MONTH(A68) -> 3
A69: 2020-03-07 | B69: 193 | C69: 50 | D69: 102 | E69: 15 | F69: 360 | G69: Arkansas | H69: 6 | I69: 3
A70: 2020-03-08 | B70: 63 | C70: 16 | D70: 44 | E70: 14 | F70: 137 | G70: Arkansas | H70: 7 | I70: 3
A71: 2020-03-09 | B71: 79 | C71: 40 | D71: 71 | E71: 16 | F71: 206 | G71: Arkansas | H71: 1 | I71: 3
A72: 2020-03-10 | B72: 135 | C72: 62 | D72: 30 | E72: 20 | F72: 247 | G72: Arkansas | H72: 2 | I72: 3
A73: 2020-03-11 | B73: 63 | C73: 46 | D73: 59 | E73: 19 | F73: 187 | G73: Arkansas | H73: 3 | I73: 3
A74: 2020-03-12 | B74: 165 | C74: 26 | D74: 32 | E74: 23 | F74: 246 | G74: Arkansas | H74: 4 | I74: 3
A75: 2020-03-13 | B75: 174 | C75: 58 | D75: 119 | E75: 47 | F75: 398 | G75: Arkansas | H75: 5 | I75: 3
A76: 2020-03-14 | B76: 62 | C76: 76 | D76: 40 | E76: 32 | F76: 210 | G76: Arkansas | H76: 6 | I76: 3
A77: 2020-03-15 | B77: 50 | C77: 27 | D77: 45 | E77: 2 | F77: 124 | G77: Arkansas | H77: 7 | I77: 3
A78: 2020-03-16 | B78: 33 | C78: 26 | D78: 15 | E78: 7 | F78: 81 | G78: Arkansas | H78: 1 | I78: 3
A79: 2020-03-17 | B79: 120 | C79: 15 | D79: 97 | E79: 13 | F79: 245 | G79: Arkansas | H79: 2 | I79: 3
A80: 2020-03-18 | B80: 28 | C80: 91 | D80: 142 | E80: 6 | F80: 267 | G80: Arkansas | H80: 3 | I80: 3
A81: 2020-03-19 | B81: 59 | C81: 47 | D81: 38 | E81: 14 | F81: 158 | G81: Arkansas | H81: 4 | I81: 3
A82: 2020-03-20 | B82: 119 | C82: 29 | D82: 86 | E82: 39 | F82: 273 | G82: Arkansas | H82: 5 | I82: 3
A83: 2020-03-21 | B83: 59 | C83: 87 | D83: 100 | E83: 33 | F83: 279 | G83: Arkansas | H83: 6 | I83: 3
A84: 2020-03-22 | B84: 55 | C84: 33 | D84: 13 | E84: 13 | F84: 114 | G84: Arkansas | H84: 7 | I84: 3
A85: 2020-03-23 | B85: 50 | C85: 48 | D85: 60 | E85: 9 | F85: 167 | G85: Arkansas | H85: 1 | I85: 3
A86: 2020-03-24 | B86: 169 | C86: 35 | D86: 133 | E86: 15 | F86: 352 | G86: Arkansas | H86: 2 | I86: 3
A87: 2020-03-25 | B87: 150 | C87: 81 | D87: 125 | E87: 36 | F87: 392 | G87: Arkansas | H87: 3 | I87: 3
A88: 2020-03-26 | B88: 61 | C88: 15 | D88: 23 | E88: 16 | F88: 115 | G88: Arkansas | H88: 4 | I88: 3
A89: 2020-03-27 | B89: 66 | C89: 52 | D89: 138 | E89: 35 | F89: 291 | G89: Arkansas | H89: 5 | I89: 3
A90: 2020-03-28 | B90: 94 | C90: 55 | D90: 25 | E90: 36 | F90: 210 | G90: Arkansas | H90: 6 | I90: 3
A91: 2020-03-29 | B91: 66 | C91: 26 | D91: 29 | E91: 10 | F91: 131 | G91: Arkansas | H91: 7 | I91: 3
A92: 2020-03-30 | B92: 96 | C92: 20 | D92: 65 | E92: 9 | F92: 190 | G92: Arkansas | H92: 1 | I92: 3
A93: 2020-03-31 | B93: 164 | C93: 15 | D93: 77 | E93: 21 | F93: 277 | G93: Arkansas | H93: 2 | I93: 3
A94: 2020-04-01 | B94: 132 | C94: 65 | D94: 127 | E94: 43 | F94: 367 | G94: California | H94: 3 | I94: 4
A95: 2020-04-02 | B95: 136 | C95: 85 | D95: 100 | E95: 34 | F95: 355 | G95: California | H95: 4 | I95: 4
A96: 2020-04-03 | B96: 68 | C96: 84 | D96: 52 | E96: 8 | F96: 212 | G96: California | H96: 5 | I96: 4
A97: 2020-04-04 | B97: 165 | C97: 16 | D97: 53 | E97: 49 | F97: 283 | G97: California | H97: 6 | I97: 4
A98: 2020-04-05 | B98: 26 | C98: 10 | D98: 26 | E98: 10 | F98: 72 | G98: California | H98: 7 | I98: 4
A99: 2020-04-06 | B99: 58 | C99: 25 | D99: 57 | E99: 16 | F99: 156 | G99: California | H99: 1 | I99: 4
A100: 2020-04-07 | B100: 128 | C100: 32 | D100: 103 | E100: 11 | F100: 274 | G100: California | H100: 2 | I100: 4
A101: 2020-04-08 | B101: 182 | C101: 23 | D101: 121 | E101: 36 | F101: 362 | G101: California | H101: 3 | I101: 4
A102: 2020-04-09 | B102: 81 | C102: 84 | D102: 149 | E102: 5 | F102: 319 | G102: California | H102: 4 | I102: 4
A103: 2020-04-10 | B103: 42 | C103: 95 | D103: 68 | E103: 23 | F103: 228 | G103: California | H103: 5 | I103: 4
A104: 2020-04-11 | B104: 180 | C104: 14 | D104: 44 | E104: 15 | F104: 253 | G104: California | H104: 6 | I104: 4
A105: 2020-04-12 | B105: 66 | C105: 10 | D105: 9 | E105: 3 | F105: 88 | G105: California | H105: 7 | I105: 4
A106: 2020-04-13 | B106: 29 | C106: 5 | D106: 12 | E106: 5 | F106: 51 | G106: California | H106: 1 | I106: 4
A107: 2020-04-14 | B107: 30 | C107: 53 | D107: 77 | E107: 13 | F107: 173 | G107: California | H107: 2 | I107: 4
A108: 2020-04-15 | B108: 177 | C108: 15 | D108: 117 | E108: 19 | F108: 328 | G108: California | H108: 3 | I108: 4
A109: 2020-04-16 | B109: 150 | C109: 53 | D109: 94 | E109: 7 | F109: 304 | G109: California | H109: 4 | I109: 4
A110: 2020-04-17 | B110: 177 | C110: 32 | D110: 143 | E110: 28 | F110: 380 | G110: California | H110: 5 | I110: 4
A111: 2020-04-18 | B111: 89 | C111: 50 | D111: 130 | E111: 10 | F111: 279 | G111: California | H111: 6 | I111: 4
A112: 2020-04-19 | B112: 60 | C112: 21 | D112: 10 | E112: 10 | F112: 101 | G112: California | H112: 7 | I112: 4
A113: 2020-04-20 | B113: 85 | C113: 13 | D113: 16 | E113: 4 | F113: 118 | G113: California | H113: 1 | I113: 4
A114: 2020-04-21 | B114: 117 | C114: 30 | D114: 40 | E114: 47 | F114: 234 | G114: California | H114: 2 | I114: 4
A115: 2020-04-22 | B115: 29 | C115: 25 | D115: 38 | E115: 36 | F115: 128 | G115: California | H115: 3 | I115: 4
A116: 2020-04-23 | B116: 78 | C116: 60 | D116: 142 | E116: 41 | F116: 321 | G116: California | H116: 4 | I116: 4
A117: 2020-04-24 | B117: 145 | C117: 44 | D117: 38 | E117: 32 | F117: 259 | G117: California | H117: 5 | I117: 4
A118: 2020-04-25 | B118: 78 | C118: 85 | D118: 118 | E118: 38 | F118: 319 | G118: California | H118: 6 | I118: 4
A119: 2020-04-26 | B119: 24 | C119: 25 | D119: 7 | E119: 16 | F119: 72 | G119: California | H119: 7 | I119: 4
A120: 2020-04-27 | B120: 15 | C120: 48 | D120: 69 | E120: 9 | F120: 141 | G120: California | H120: 1 | I120: 4
A121: 2020-04-28 | B121: 198 | C121: 15 | D121: 147 | E121: 12 | F121: 372 | G121: California | H121: 2 | I121: 4
A122: 2020-04-29 | B122: 158 | C122: 82 | D122: 94 | E122: 48 | F122: 382 | G122: California | H122: 3 | I122: 4
A123: 2020-04-30 | B123: 101 | C123: 61 | D123: 126 | E123: 43 | F123: 331 | G123: California | H123: 4 | I123: 4
A124: 2020-05-01 | B124: 99 | C124: 73 | D124: 116 | E124: 45 | F124: 333 | G124: Colorado | H124: 5 | I124: 5
A125: 2020-05-02 | B125: 58 | C125: 20 | D125: 41 | E125: 37 | F125: 156 | G125: Colorado | H125: 6 | I125: 5
A126: 2020-05-03 | B126: 31 | C126: 13 | D126: 13 | E126: 10 | F126: 67 | G126: Colorado | H126: 7 | I126: 5
A127: 2020-05-04 | B127: 71 | C127: 29 | D127: 23 | E127: 22 | F127: 145 | G127: Colorado | H127: 1 | I127: 5
A128: 2020-05-05 | B128: 104 | C128: 35 | D128: 50 | E128: 46 | F128: 235 | G128: Colorado | H128: 2 | I128: 5
A129: 2020-05-06 | B129: 70 | C129: 21 | D129: 23 | E129: 14 | F129: 128 | G129: Colorado | H129: 3 | I129: 5
A130: 2020-05-07 | B130: 77 | C130: 82 | D130: 61 | E130: 40 | F130: 260 | G130: Colorado | H130: 4 | I130: 5
A131: 2020-05-08 | B131: 48 | C131: 97 | D131: 98 | E131: 44 | F131: 287 | G131: Colorado | H131: 5 | I131: 5
A132: 2020-05-09 | B132: 82 | C132: 88 | D132: 78 | E132: 43 | F132: =SUM(B132:E132) -> 291 | G132: Colorado | H132: =WEEKDAY(A132,2) -> 6 | I132: =MONTH(A132) -> 5
A133: 2020-05-10 | B133: 35 | C133: 5 | D133: 16 | E133: 2 | F133: 58 | G133: Colorado | H133: 7 | I133: 5
A134: 2020-05-11 | B134: 97 | C134: 44 | D134: 29 | E134: 13 | F134: 183 | G134: Colorado | H134: 1 | I134: 5
A135: 2020-05-12 | B135: 93 | C135: 69 | D135: 90 | E135: 32 | F135: 284 | G135: Colorado | H135: 2 | I135: 5
A136: 2020-05-13 | B136: 198 | C136: 83 | D136: 40 | E136: 41 | F136: 362 | G136: Colorado | H136: 3 | I136: 5
A137: 2020-05-14 | B137: 106 | C137: 70 | D137: 46 | E137: 16 | F137: 238 | G137: Colorado | H137: 4 | I137: 5
A138: 2020-05-15 | B138: 183 | C138: 37 | D138: 53 | E138: 6 | F138: 279 | G138: Colorado | H138: 5 | I138: 5
A139: 2020-05-16 | B139: 191 | C139: 23 | D139: 29 | E139: 20 | F139: 263 | G139: Colorado | H139: 6 | I139: 5
A140: 2020-05-17 | B140: 13 | C140: 22 | D140: 9 | E140: 6 | F140: 50 | G140: Colorado | H140: 7 | I140: 5
A141: 2020-05-18 | B141: 76 | C141: 35 | D141: 44 | E141: 14 | F141: 169 | G141: Colorado | H141: 1 | I141: 5
A142: 2020-05-19 | B142: 188 | C142: 61 | D142: 103 | E142: 13 | F142: 365 | G142: Colorado | H142: 2 | I142: 5
A143: 2020-05-20 | B143: 48 | C143: 14 | D143: 115 | E143: 19 | F143: 196 | G143: Colorado | H143: 3 | I143: 5
A144: 2020-05-21 | B144: 196 | C144: 75 | D144: 69 | E144: 21 | F144: 361 | G144: Colorado | H144: 4 | I144: 5
A145: 2020-05-22 | B145: 37 | C145: 94 | D145: 138 | E145: 48 | F145: 317 | G145: Colorado | H145: 5 | I145: 5
A146: 2020-05-23 | B146: 71 | C146: 67 | D146: 66 | E146: 13 | F146: 217 | G146: Colorado | H146: 6 | I146: 5
A147: 2020-05-24 | B147: 63 | C147: 22 | D147: 31 | E147: 11 | F147: 127 | G147: Colorado | H147: 7 | I147: 5
A148: 2020-05-25 | B148: 62 | C148: 50 | D148: 47 | E148: 15 | F148: 174 | G148: Colorado | H148: 1 | I148: 5
A149: 2020-05-26 | B149: 176 | C149: 30 | D149: 85 | E149: 17 | F149: 308 | G149: Colorado | H149: 2 | I149: 5
A150: 2020-05-27 | B150: 51 | C150: 91 | D150: 145 | E150: 30 | F150: 317 | G150: Colorado | H150: 3 | I150: 5
A151: 2020-05-28 | B151: 54 | C151: 69 | D151: 28 | E151: 39 | F151: 190 | G151: Colorado | H151: 4 | I151: 5
A152: 2020-05-29 | B152: 130 | C152: 30 | D152: 122 | E152: 29 | F152: 311 | G152: Colorado | H152: 5 | I152: 5
A153: 2020-05-30 | B153: 179 | C153: 62 | D153: 57 | E153: 23 | F153: 321 | G153: Colorado | H153: 6 | I153: 5
A154: 2020-05-31 | B154: 31 | C154: 11 | D154: 39 | E154: 4 | F154: 85 | G154: Colorado | H154: 7 | I154: 5
A155: 2020-06-01 | B155: 10 | C155: 42 | D155: 51 | E155: 7 | F155: 110 | G155: Connecticut | H155: 1 | I155: 6
A156: 2020-06-02 | B156: 54 | C156: 80 | D156: 147 | E156: 47 | F156: 328 | G156: Connecticut | H156: 2 | I156: 6
A157: 2020-06-03 | B157: 91 | C157: 73 | D157: 107 | E157: 14 | F157: 285 | G157: Connecticut | H157: 3 | I157: 6
A158: 2020-06-04 | B158: 156 | C158: 72 | D158: 104 | E158: 21 | F158: 353 | G158: Connecticut | H158: 4 | I158: 6
A159: 2020-06-05 | B159: 55 | C159: 90 | D159: 123 | E159: 11 | F159: 279 | G159: Connecticut | H159: 5 | I159: 6
A160: 2020-06-06 | B160: 180 | C160: 87 | D160: 18 | E160: 16 | F160: 301 | G160: Connecticut | H160: 6 | I160: 6
A161: 2020-06-07 | B161: 15 | C161: 15 | D161: 20 | E161: 11 | F161: 61 | G161: Connecticut | H161: 7 | I161: 6
A162: 2020-06-08 | B162: 86 | C162: 48 | D162: 51 | E162: 25 | F162: 210 | G162: Connecticut | H162: 1 | I162: 6
A163: 2020-06-09 | B163: 48 | C163: 98 | D163: 145 | E163: 43 | F163: 334 | G163: Connecticut | H163: 2 | I163: 6
A164: 2020-06-10 | B164: 90 | C164: 73 | D164: 23 | E164: 24 | F164: 210 | G164: Connecticut | H164: 3 | I164: 6
A165: 2020-06-11 | B165: 186 | C165: 26 | D165: 49 | E165: 28 | F165: 289 | G165: Connecticut | H165: 4 | I165: 6
A166: 2020-06-12 | B166: 62 | C166: 99 | D166: 90 | E166: 8 | F166: 259 | G166: Connecticut | H166: 5 | I166: 6
A167: 2020-06-13 | B167: 99 | C167: 14 | D167: 141 | E167: 49 | F167: 303 | G167: Connecticut | H167: 6 | I167: 6
A168: 2020-06-14 | B168: 42 | C168: 10 | D168: 39 | E168: 15 | F168: 106 | G168: Connecticut | H168: 7 | I168: 6
A169: 2020-06-15 | B169: 13 | C169: 32 | D169: 17 | E169: 3 | F169: 65 | G169: Connecticut | H169: 1 | I169: 6
A170: 2020-06-16 | B170: 126 | C170: 34 | D170: 100 | E170: 44 | F170: 304 | G170: Connecticut | H170: 2 | I170: 6
A171: 2020-06-17 | B171: 178 | C171: 27 | D171: 59 | E171: 12 | F171: 276 | G171: Connecticut | H171: 3 | I171: 6
A172: 2020-06-18 | B172: 186 | C172: 60 | D172: 72 | E172: 9 | F172: 327 | G172: Connecticut | H172: 4 | I172: 6
A173: 2020-06-19 | B173: 109 | C173: 84 | D173: 47 | E173: 36 | F173: 276 | G173: Connecticut | H173: 5 | I173: 6
A174: 2020-06-20 | B174: 65 | C174: 46 | D174: 62 | E174: 22 | F174: 195 | G174: Connecticut | H174: 6 | I174: 6
A175: 2020-06-21 | B175: 16 | C175: 27 | D175: 47 | E175: 14 | F175: 104 | G175: Connecticut | H175: 7 | I175: 6
A176: 2020-06-22 | B176: 95 | C176: 8 | D176: 9 | E176: 12 | F176: 124 | G176: Connecticut | H176: 1 | I176: 6
A177: 2020-06-23 | B177: 67 | C177: 54 | D177: 43 | E177: 6 | F177: 170 | G177: Connecticut | H177: 2 | I177: 6
A178: 2020-06-24 | B178: 67 | C178: 23 | D178: 148 | E178: 12 | F178: 250 | G178: Connecticut | H178: 3 | I178: 6
A179: 2020-06-25 | B179: 195 | C179: 17 | D179: 61 | E179: 28 | F179: 301 | G179: Connecticut | H179: 4 | I179: 6
A180: 2020-06-26 | B180: 193 | C180: 72 | D180: 78 | E180: 6 | F180: 349 | G180: Connecticut | H180: 5 | I180: 6
A181: 2020-06-27 | B181: 55 | C181: 65 | D181: 112 | E181: 39 | F181: 271 | G181: Connecticut | H181: 6 | I181: 6
A182: 2020-06-28 | B182: 62 | C182: 14 | D182: 30 | E182: 6 | F182: 112 | G182: Connecticut | H182: 7 | I182: 6
A183: 2020-06-29 | B183: 61 | C183: 42 | D183: 24 | E183: 2 | F183: 129 | G183: Connecticut | H183: 1 | I183: 6
A184: 2020-06-30 | B184: 79 | C184: 93 | D184: 107 | E184: 50 | F184: 329 | G184: Connecticut | H184: 2 | I184: 6
A185: 2020-07-01 | B185: 54 | C185: 88 | D185: 103 | E185: 6 | F185: 251 | G185: Delaware | H185: 3 | I185: 7
A186: 2020-07-02 | B186: 131 | C186: 59 | D186: 143 | E186: 18 | F186: 351 | G186: Delaware | H186: 4 | I186: 7
A187: 2020-07-03 | B187: 118 | C187: 25 | D187: 16 | E187: 14 | F187: 173 | G187: Delaware | H187: 5 | I187: 7
A188: 2020-07-04 | B188: 90 | C188: 35 | D188: 145 | E188: 27 | F188: 297 | G188: Delaware | H188: 6 | I188: 7
A189: 2020-07-05 | B189: 15 | C189: 20 | D189: 45 | E189: 7 | F189: 87 | G189: Delaware | H189: 7 | I189: 7
A190: 2020-07-06 | B190: 94 | C190: 43 | D190: 41 | E190: 5 | F190: 183 | G190: Delaware | H190: 1 | I190: 7
A191: 2020-07-07 | B191: 35 | C191: 89 | D191: 56 | E191: 45 | F191: 225 | G191: Delaware | H191: 2 | I191: 7
A192: 2020-07-08 | B192: 30 | C192: 50 | D192: 64 | E192: 31 | F192: 175 | G192: Delaware | H192: 3 | I192: 7
A193: 2020-07-09 | B193: 86 | C193: 49 | D193: 47 | E193: 44 | F193: 226 | G193: Delaware | H193: 4 | I193: 7
A194: 2020-07-10 | B194: 85 | C194: 91 | D194: 108 | E194: 5 | F194: 289 | G194: Delaware | H194: 5 | I194: 7
A195: 2020-07-11 | B195: 68 | C195: 94 | D195: 118 | E195: 15 | F195: 295 | G195: Delaware | H195: 6 | I195: 7
A196: 2020-07-12 | B196: 48 | C196: 13 | D196: 10 | E196: 12 | F196: =SUM(B196:E196) -> 83 | G196: Delaware | H196: =WEEKDAY(A196,2) -> 7 | I196: =MONTH(A196) -> 7
A197: 2020-07-13 | B197: 75 | C197: 39 | D197: 16 | E197: 25 | F197: 155 | G197: Delaware | H197: 1 | I197: 7
A198: 2020-07-14 | B198: 178 | C198: 89 | D198: 31 | E198: 10 | F198: 308 | G198: Delaware | H198: 2 | I198: 7
A199: 2020-07-15 | B199: 51 | C199: 75 | D199: 136 | E199: 49 | F199: 311 | G199: Delaware | H199: 3 | I199: 7
A200: 2020-07-16 | B200: 67 | C200: 96 | D200: 56 | E200: 27 | F200: 246 | G200: Delaware | H200: 4 | I200: 7
... 169 more rows

Sheet 2-Manager
A1: Date | B1: Product Groups | F1: Total sales | G1: State | H1: Days of the week | I1: № Month | J1: https://exceltable.com/en/templates/3d-menu-for-dashboard-in-excel
B2: A | C2: B | D2: C | E2: D
A3: 2020-01-01 | B3: 45 | C3: 65 | D3: 67 | E3: 26 | F3: =SUM(B3:E3) -> 203 | G3: Illinois | H3: =WEEKDAY(A3,2) -> 3 | I3: =MONTH(A3) -> 1
A4: 2020-01-02 | B4: 67 | C4: 76 | D4: 147 | E4: 48 | F4: =SUM(B4:E4) -> 338 | G4: Illinois | H4: =WEEKDAY(A4,2) -> 4 | I4: =MONTH(A4) -> 1
A5: 2020-01-03 | B5: 71 | C5: 90 | D5: 23 | E5: 17 | F5: 201 | G5: Illinois | H5: 5 | I5: 1
A6: 2020-01-04 | B6: 84 | C6: 59 | D6: 140 | E6: 25 | F6: 308 | G6: Illinois | H6: 6 | I6: 1
A7: 2020-01-05 | B7: 21 | C7: 25 | D7: 16 | E7: 16 | F7: 78 | G7: Illinois | H7: 7 | I7: 1
A8: 2020-01-06 | B8: 32 | C8: 70 | D8: 128 | E8: 34 | F8: 264 | G8: Illinois | H8: 1 | I8: 1
A9: 2020-01-07 | B9: 17 | C9: 11 | D9: 26 | E9: 23 | F9: 77 | G9: Illinois | H9: 2 | I9: 1
A10: 2020-01-08 | B10: 41 | C10: 42 | D10: 23 | E10: 47 | F10: 153 | G10: Illinois | H10: 3 | I10: 1
A11: 2020-01-09 | B11: 10 | C11: 24 | D11: 73 | E11: 16 | F11: 123 | G11: Illinois | H11: 4 | I11: 1
A12: 2020-01-10 | B12: 30 | C12: 46 | D12: 110 | E12: 40 | F12: 226 | G12: Illinois | H12: 5 | I12: 1
A13: 2020-01-11 | B13: 11 | C13: 38 | D13: 51 | E13: 37 | F13: 137 | G13: Illinois | H13: 6 | I13: 1
A14: 2020-01-12 | B14: 19 | C14: 16 | D14: 26 | E14: 10 | F14: 71 | G14: Illinois | H14: 7 | I14: 1
A15: 2020-01-13 | B15: 60 | C15: 97 | D15: 134 | E15: 45 | F15: 336 | G15: Illinois | H15: 1 | I15: 1
A16: 2020-01-14 | B16: 24 | C16: 37 | D16: 53 | E16: 7 | F16: 121 | G16: Illinois | H16: 2 | I16: 1
A17: 2020-01-15 | B17: 78 | C17: 75 | D17: 62 | E17: 27 | F17: 242 | G17: Illinois | H17: 3 | I17: 1
A18: 2020-01-16 | B18: 86 | C18: 29 | D18: 148 | E18: 5 | F18: 268 | G18: Illinois | H18: 4 | I18: 1
A19: 2020-01-17 | B19: 97 | C19: 17 | D19: 145 | E19: 46 | F19: 305 | G19: Illinois | H19: 5 | I19: 1
A20: 2020-01-18 | B20: 86 | C20: 70 | D20: 121 | E20: 18 | F20: 295 | G20: Illinois | H20: 6 | I20: 1
A21: 2020-01-19 | B21: 21 | C21: 11 | D21: 26 | E21: 8 | F21: 66 | G21: Illinois | H21: 7 | I21: 1
A22: 2020-01-20 | B22: 21 | C22: 35 | D22: 104 | E22: 6 | F22: 166 | G22: Illinois | H22: 1 | I22: 1
A23: 2020-01-21 | B23: 46 | C23: 49 | D23: 51 | E23: 9 | F23: 155 | G23: Illinois | H23: 2 | I23: 1
A24: 2020-01-22 | B24: 16 | C24: 40 | D24: 89 | E24: 7 | F24: 152 | G24: Illinois | H24: 3 | I24: 1
A25: 2020-01-23 | B25: 100 | C25: 96 | D25: 82 | E25: 11 | F25: 289 | G25: Illinois | H25: 4 | I25: 1
A26: 2020-01-24 | B26: 96 | C26: 19 | D26: 74 | E26: 27 | F26: 216 | G26: Illinois | H26: 5 | I26: 1
A27: 2020-01-25 | B27: 51 | C27: 48 | D27: 115 | E27: 26 | F27: 240 | G27: Illinois | H27: 6 | I27: 1
A28: 2020-01-26 | B28: 25 | C28: 21 | D28: 16 | E28: 10 | F28: 72 | G28: Illinois | H28: 7 | I28: 1
A29: 2020-01-27 | B29: 59 | C29: 87 | D29: 109 | E29: 50 | F29: 305 | G29: Illinois | H29: 1 | I29: 1
A30: 2020-01-28 | B30: 17 | C30: 19 | D30: 74 | E30: 15 | F30: 125 | G30: Illinois | H30: 2 | I30: 1
A31: 2020-01-29 | B31: 58 | C31: 27 | D31: 130 | E31: 25 | F31: 240 | G31: Illinois | H31: 3 | I31: 1
A32: 2020-01-30 | B32: 69 | C32: 33 | D32: 37 | E32: 19 | F32: 158 | G32: Illinois | H32: 4 | I32: 1
A33: 2020-01-31 | B33: 62 | C33: 28 | D33: 46 | E33: 38 | F33: 174 | G33: Illinois | H33: 5 | I33: 1
A34: 2020-02-01 | B34: 95 | C34: 69 | D34: 58 | E34: 22 | F34: 244 | G34: Indiana | H34: 6 | I34: 2
A35: 2020-02-02 | B35: 24 | C35: 25 | D35: 37 | E35: 6 | F35: 92 | G35: Indiana | H35: 7 | I35: 2
A36: 2020-02-03 | B36: 67 | C36: 41 | D36: 97 | E36: 13 | F36: 218 | G36: Indiana | H36: 1 | I36: 2
A37: 2020-02-04 | B37: 24 | C37: 15 | D37: 40 | E37: 6 | F37: 85 | G37: Indiana | H37: 2 | I37: 2
A38: 2020-02-05 | B38: 53 | C38: 34 | D38: 116 | E38: 49 | F38: 252 | G38: Indiana | H38: 3 | I38: 2
A39: 2020-02-06 | B39: 19 | C39: 99 | D39: 137 | E39: 8 | F39: 263 | G39: Indiana | H39: 4 | I39: 2
A40: 2020-02-07 | B40: 32 | C40: 48 | D40: 67 | E40: 31 | F40: 178 | G40: Indiana | H40: 5 | I40: 2
A41: 2020-02-08 | B41: 24 | C41: 16 | D41: 113 | E41: 13 | F41: 166 | G41: Indiana | H41: 6 | I41: 2
A42: 2020-02-09 | B42: 13 | C42: 17 | D42: 5 | E42: 9 | F42: 44 | G42: Indiana | H42: 7 | I42: 2
A43: 2020-02-10 | B43: 24 | C43: 46 | D43: 137 | E43: 46 | F43: 253 | G43: Indiana | H43: 1 | I43: 2
A44: 2020-02-11 | B44: 15 | C44: 9 | D44: 40 | E44: 16 | F44: 80 | G44: Indiana | H44: 2 | I44: 2
A45: 2020-02-12 | B45: 87 | C45: 48 | D45: 96 | E45: 36 | F45: 267 | G45: Indiana | H45: 3 | I45: 2
A46: 2020-02-13 | B46: 100 | C46: 34 | D46: 109 | E46: 10 | F46: 253 | G46: Indiana | H46: 4 | I46: 2
A47: 2020-02-14 | B47: 91 | C47: 14 | D47: 73 | E47: 45 | F47: 223 | G47: Indiana | H47: 5 | I47: 2
A48: 2020-02-15 | B48: 72 | C48: 41 | D48: 77 | E48: 11 | F48: 201 | G48: Indiana | H48: 6 | I48: 2
A49: 2020-02-16 | B49: 8 | C49: 33 | D49: 11 | E49: 14 | F49: 66 | G49: Indiana | H49: 7 | I49: 2
A50: 2020-02-17 | B50: 71 | C50: 20 | D50: 132 | E50: 22 | F50: 245 | G50: Indiana | H50: 1 | I50: 2
A51: 2020-02-18 | B51: 27 | C51: 30 | D51: 35 | E51: 3 | F51: 95 | G51: Indiana | H51: 2 | I51: 2
A52: 2020-02-19 | B52: 53 | C52: 38 | D52: 78 | E52: 31 | F52: 200 | G52: Indiana | H52: 3 | I52: 2
A53: 2020-02-20 | B53: 98 | C53: 13 | D53: 64 | E53: 6 | F53: 181 | G53: Indiana | H53: 4 | I53: 2
A54: 2020-02-21 | B54: 52 | C54: 100 | D54: 145 | E54: 45 | F54: 342 | G54: Indiana | H54: 5 | I54: 2
A55: 2020-02-22 | B55: 86 | C55: 18 | D55: 17 | E55: 19 | F55: 140 | G55: Indiana | H55: 6 | I55: 2
A56: 2020-02-23 | B56: 3 | C56: 28 | D56: 30 | E56: 14 | F56: 75 | G56: Indiana | H56: 7 | I56: 2
A57: 2020-02-24 | B57: 63 | C57: 73 | D57: 107 | E57: 41 | F57: 284 | G57: Indiana | H57: 1 | I57: 2
A58: 2020-02-25 | B58: 30 | C58: 35 | D58: 22 | E58: 4 | F58: 91 | G58: Indiana | H58: 2 | I58: 2
A59: 2020-02-26 | B59: 19 | C59: 97 | D59: 92 | E59: 40 | F59: 248 | G59: Indiana | H59: 3 | I59: 2
A60: 2020-02-27 | B60: 35 | C60: 12 | D60: 17 | E60: 5 | F60: 69 | G60: Indiana | H60: 4 | I60: 2
A61: 2020-02-28 | B61: 70 | C61: 14 | D61: 18 | E61: 15 | F61: 117 | G61: Indiana | H61: 5 | I61: 2
A62: 2020-02-29 | B62: 48 | C62: 15 | D62: 63 | E62: 18 | F62: 144 | G62: Indiana | H62: 6 | I62: 2
A63: 2020-03-01 | B63: 4 | C63: 31 | D63: 27 | E63: 11 | F63: 73 | G63: Iowa | H63: 7 | I63: 3
A64: 2020-03-02 | B64: 50 | C64: 54 | D64: 67 | E64: 27 | F64: 198 | G64: Iowa | H64: 1 | I64: 3
A65: 2020-03-03 | B65: 7 | C65: 20 | D65: 20 | E65: 14 | F65: 61 | G65: Iowa | H65: 2 | I65: 3
A66: 2020-03-04 | B66: 32 | C66: 13 | D66: 128 | E66: 50 | F66: 223 | G66: Iowa | H66: 3 | I66: 3
A67: 2020-03-05 | B67: 40 | C67: 46 | D67: 75 | E67: 40 | F67: 201 | G67: Iowa | H67: 4 | I67: 3
A68: 2020-03-06 | B68: 69 | C68: 80 | D68: 126 | E68: 31 | F68: =SUM(B68:E68) -> 306 | G68: Iowa | H68: =WEEKDAY(A68,2) -> 5 | I68: =MONTH(A68) -> 3
A69: 2020-03-07 | B69: 21 | C69: 51 | D69: 133 | E69: 8 | F69: 213 | G69: Iowa | H69: 6 | I69: 3
A70: 2020-03-08 | B70: 24 | C70: 9 | D70: 12 | E70: 10 | F70: 55 | G70: Iowa | H70: 7 | I70: 3
A71: 2020-03-09 | B71: 33 | C71: 63 | D71: 150 | E71: 15 | F71: 261 | G71: Iowa | H71: 1 | I71: 3
A72: 2020-03-10 | B72: 40 | C72: 18 | D72: 65 | E72: 18 | F72: 141 | G72: Iowa | H72: 2 | I72: 3
A73: 2020-03-11 | B73: 25 | C73: 15 | D73: 34 | E73: 41 | F73: 115 | G73: Iowa | H73: 3 | I73: 3
A74: 2020-03-12 | B74: 71 | C74: 89 | D74: 94 | E74: 33 | F74: 287 | G74: Iowa | H74: 4 | I74: 3
A75: 2020-03-13 | B75: 52 | C75: 84 | D75: 46 | E75: 12 | F75: 194 | G75: Iowa | H75: 5 | I75: 3
A76: 2020-03-14 | B76: 40 | C76: 80 | D76: 47 | E76: 43 | F76: 210 | G76: Iowa | H76: 6 | I76: 3
A77: 2020-03-15 | B77: 5 | C77: 21 | D77: 32 | E77: 14 | F77: 72 | G77: Iowa | H77: 7 | I77: 3
A78: 2020-03-16 | B78: 22 | C78: 42 | D78: 129 | E78: 36 | F78: 229 | G78: Iowa | H78: 1 | I78: 3
A79: 2020-03-17 | B79: 22 | C79: 42 | D79: 54 | E79: 5 | F79: 123 | G79: Iowa | H79: 2 | I79: 3
A80: 2020-03-18 | B80: 55 | C80: 26 | D80: 138 | E80: 19 | F80: 238 | G80: Iowa | H80: 3 | I80: 3
A81: 2020-03-19 | B81: 100 | C81: 29 | D81: 115 | E81: 17 | F81: 261 | G81: Iowa | H81: 4 | I81: 3
A82: 2020-03-20 | B82: 75 | C82: 26 | D82: 73 | E82: 26 | F82: 200 | G82: Iowa | H82: 5 | I82: 3
A83: 2020-03-21 | B83: 44 | C83: 56 | D83: 15 | E83: 7 | F83: 122 | G83: Iowa | H83: 6 | I83: 3
A84: 2020-03-22 | B84: 21 | C84: 11 | D84: 49 | E84: 4 | F84: 85 | G84: Iowa | H84: 7 | I84: 3
A85: 2020-03-23 | B85: 32 | C85: 51 | D85: 118 | E85: 33 | F85: 234 | G85: Iowa | H85: 1 | I85: 3
A86: 2020-03-24 | B86: 17 | C86: 38 | D86: 56 | E86: 16 | F86: 127 | G86: Iowa | H86: 2 | I86: 3
A87: 2020-03-25 | B87: 34 | C87: 91 | D87: 115 | E87: 10 | F87: 250 | G87: Iowa | H87: 3 | I87: 3
A88: 2020-03-26 | B88: 19 | C88: 74 | D88: 42 | E88: 11 | F88: 146 | G88: Iowa | H88: 4 | I88: 3
A89: 2020-03-27 | B89: 23 | C89: 77 | D89: 129 | E89: 45 | F89: 274 | G89: Iowa | H89: 5 | I89: 3
A90: 2020-03-28 | B90: 79 | C90: 69 | D90: 116 | E90: 32 | F90: 296 | G90: Iowa | H90: 6 | I90: 3
A91: 2020-03-29 | B91: 33 | C91: 4 | D91: 19 | E91: 5 | F91: 61 | G91: Iowa | H91: 7 | I91: 3
A92: 2020-03-30 | B92: 94 | C92: 51 | D92: 50 | E92: 5 | F92: 200 | G92: Iowa | H92: 1 | I92: 3
A93: 2020-03-31 | B93: 29 | C93: 20 | D93: 48 | E93: 23 | F93: 120 | G93: Iowa | H93: 2 | I93: 3
A94: 2020-04-01 | B94: 86 | C94: 59 | D94: 139 | E94: 10 | F94: 294 | G94: Kansas | H94: 3 | I94: 4
A95: 2020-04-02 | B95: 63 | C95: 58 | D95: 52 | E95: 19 | F95: 192 | G95: Kansas | H95: 4 | I95: 4
A96: 2020-04-03 | B96: 64 | C96: 42 | D96: 121 | E96: 41 | F96: 268 | G96: Kansas | H96: 5 | I96: 4
A97: 2020-04-04 | B97: 40 | C97: 97 | D97: 126 | E97: 22 | F97: 285 | G97: Kansas | H97: 6 | I97: 4
A98: 2020-04-05 | B98: 31 | C98: 15 | D98: 38 | E98: 13 | F98: 97 | G98: Kansas | H98: 7 | I98: 4
A99: 2020-04-06 | B99: 36 | C99: 28 | D99: 37 | E99: 50 | F99: 151 | G99: Kansas | H99: 1 | I99: 4
A100: 2020-04-07 | B100: 45 | C100: 7 | D100: 52 | E100: 19 | F100: 123 | G100: Kansas | H100: 2 | I100: 4
A101: 2020-04-08 | B101: 100 | C101: 96 | D101: 55 | E101: 8 | F101: 259 | G101: Kansas | H101: 3 | I101: 4
A102: 2020-04-09 | B102: 81 | C102: 16 | D102: 21 | E102: 10 | F102: 128 | G102: Kansas | H102: 4 | I102: 4
A103: 2020-04-10 | B103: 87 | C103: 38 | D103: 53 | E103: 30 | F103: 208 | G103: Kansas | H103: 5 | I103: 4
A104: 2020-04-11 | B104: 51 | C104: 90 | D104: 106 | E104: 45 | F104: 292 | G104: Kansas | H104: 6 | I104: 4
A105: 2020-04-12 | B105: 24 | C105: 14 | D105: 34 | E105: 13 | F105: 85 | G105: Kansas | H105: 7 | I105: 4
A106: 2020-04-13 | B106: 79 | C106: 57 | D106: 81 | E106: 47 | F106: 264 | G106: Kansas | H106: 1 | I106: 4
A107: 2020-04-14 | B107: 22 | C107: 33 | D107: 10 | E107: 3 | F107: 68 | G107: Kansas | H107: 2 | I107: 4
A108: 2020-04-15 | B108: 19 | C108: 16 | D108: 63 | E108: 27 | F108: 125 | G108: Kansas | H108: 3 | I108: 4
A109: 2020-04-16 | B109: 40 | C109: 54 | D109: 28 | E109: 24 | F109: 146 | G109: Kansas | H109: 4 | I109: 4
A110: 2020-04-17 | B110: 27 | C110: 79 | D110: 129 | E110: 33 | F110: 268 | G110: Kansas | H110: 5 | I110: 4
A111: 2020-04-18 | B111: 37 | C111: 51 | D111: 99 | E111: 5 | F111: 192 | G111: Kansas | H111: 6 | I111: 4
A112: 2020-04-19 | B112: 29 | C112: 14 | D112: 40 | E112: 11 | F112: 94 | G112: Kansas | H112: 7 | I112: 4
A113: 2020-04-20 | B113: 53 | C113: 52 | D113: 18 | E113: 21 | F113: 144 | G113: Kansas | H113: 1 | I113: 4
A114: 2020-04-21 | B114: 44 | C114: 27 | D114: 42 | E114: 8 | F114: 121 | G114: Kansas | H114: 2 | I114: 4
A115: 2020-04-22 | B115: 87 | C115: 10 | D115: 138 | E115: 11 | F115: 246 | G115: Kansas | H115: 3 | I115: 4
A116: 2020-04-23 | B116: 21 | C116: 59 | D116: 110 | E116: 25 | F116: 215 | G116: Kansas | H116: 4 | I116: 4
A117: 2020-04-24 | B117: 46 | C117: 48 | D117: 15 | E117: 31 | F117: 140 | G117: Kansas | H117: 5 | I117: 4
A118: 2020-04-25 | B118: 63 | C118: 69 | D118: 47 | E118: 43 | F118: 222 | G118: Kansas | H118: 6 | I118: 4
A119: 2020-04-26 | B119: 23 | C119: 5 | D119: 38 | E119: 7 | F119: 73 | G119: Kansas | H119: 7 | I119: 4
A120: 2020-04-27 | B120: 58 | C120: 57 | D120: 145 | E120: 30 | F120: 290 | G120: Kansas | H120: 1 | I120: 4
A121: 2020-04-28 | B121: 40 | C121: 6 | D121: 20 | E121: 10 | F121: 76 | G121: Kansas | H121: 2 | I121: 4
A122: 2020-04-29 | B122: 14 | C122: 79 | D122: 53 | E122: 11 | F122: 157 | G122: Kansas | H122: 3 | I122: 4
A123: 2020-04-30 | B123: 93 | C123: 24 | D123: 34 | E123: 28 | F123: 179 | G123: Kansas | H123: 4 | I123: 4
A124: 2020-05-01 | B124: 77 | C124: 99 | D124: 88 | E124: 16 | F124: 280 | G124: Kentucky | H124: 5 | I124: 5
A125: 2020-05-02 | B125: 93 | C125: 37 | D125: 26 | E125: 11 | F125: 167 | G125: Kentucky | H125: 6 | I125: 5
A126: 2020-05-03 | B126: 33 | C126: 25 | D126: 29 | E126: 14 | F126: 101 | G126: Kentucky | H126: 7 | I126: 5
A127: 2020-05-04 | B127: 81 | C127: 48 | D127: 54 | E127: 47 | F127: 230 | G127: Kentucky | H127: 1 | I127: 5
A128: 2020-05-05 | B128: 46 | C128: 15 | D128: 62 | E128: 20 | F128: 143 | G128: Kentucky | H128: 2 | I128: 5
A129: 2020-05-06 | B129: 55 | C129: 33 | D129: 52 | E129: 19 | F129: 159 | G129: Kentucky | H129: 3 | I129: 5
A130: 2020-05-07 | B130: 87 | C130: 54 | D130: 92 | E130: 21 | F130: 254 | G130: Kentucky | H130: 4 | I130: 5
A131: 2020-05-08 | B131: 67 | C131: 33 | D131: 75 | E131: 24 | F131: 199 | G131: Kentucky | H131: 5 | I131: 5
A132: 2020-05-09 | B132: 50 | C132: 42 | D132: 15 | E132: 47 | F132: =SUM(B132:E132) -> 154 | G132: Kentucky | H132: =WEEKDAY(A132,2) -> 6 | I132: =MONTH(A132) -> 5
A133: 2020-05-10 | B133: 21 | C133: 14 | D133: 34 | E133: 2 | F133: 71 | G133: Kentucky | H133: 7 | I133: 5
A134: 2020-05-11 | B134: 70 | C134: 52 | D134: 19 | E134: 23 | F134: 164 | G134: Kentucky | H134: 1 | I134: 5
A135: 2020-05-12 | B135: 32 | C135: 16 | D135: 20 | E135: 14 | F135: 82 | G135: Kentucky | H135: 2 | I135: 5
A136: 2020-05-13 | B136: 65 | C136: 93 | D136: 86 | E136: 44 | F136: 288 | G136: Kentucky | H136: 3 | I136: 5
A137: 2020-05-14 | B137: 24 | C137: 45 | D137: 21 | E137: 32 | F137: 122 | G137: Kentucky | H137: 4 | I137: 5
A138: 2020-05-15 | B138: 39 | C138: 17 | D138: 107 | E138: 50 | F138: 213 | G138: Kentucky | H138: 5 | I138: 5
A139: 2020-05-16 | B139: 70 | C139: 77 | D139: 44 | E139: 41 | F139: 232 | G139: Kentucky | H139: 6 | I139: 5
A140: 2020-05-17 | B140: 16 | C140: 13 | D140: 48 | E140: 1 | F140: 78 | G140: Kentucky | H140: 7 | I140: 5
A141: 2020-05-18 | B141: 33 | C141: 37 | D141: 34 | E141: 22 | F141: 126 | G141: Kentucky | H141: 1 | I141: 5
A142: 2020-05-19 | B142: 22 | C142: 36 | D142: 20 | E142: 13 | F142: 91 | G142: Kentucky | H142: 2 | I142: 5
A143: 2020-05-20 | B143: 72 | C143: 27 | D143: 94 | E143: 44 | F143: 237 | G143: Kentucky | H143: 3 | I143: 5
A144: 2020-05-21 | B144: 55 | C144: 90 | D144: 29 | E144: 32 | F144: 206 | G144: Kentucky | H144: 4 | I144: 5
A145: 2020-05-22 | B145: 33 | C145: 32 | D145: 56 | E145: 29 | F145: 150 | G145: Kentucky | H145: 5 | I145: 5
A146: 2020-05-23 | B146: 11 | C146: 82 | D146: 114 | E146: 33 | F146: 240 | G146: Kentucky | H146: 6 | I146: 5
A147: 2020-05-24 | B147: 5 | C147: 14 | D147: 25 | E147: 3 | F147: 47 | G147: Kentucky | H147: 7 | I147: 5
A148: 2020-05-25 | B148: 79 | C148: 58 | D148: 67 | E148: 37 | F148: 241 | G148: Kentucky | H148: 1 | I148: 5
A149: 2020-05-26 | B149: 9 | C149: 49 | D149: 57 | E149: 3 | F149: 118 | G149: Kentucky | H149: 2 | I149: 5
A150: 2020-05-27 | B150: 28 | C150: 75 | D150: 131 | E150: 35 | F150: 269 | G150: Kentucky | H150: 3 | I150: 5
A151: 2020-05-28 | B151: 72 | C151: 36 | D151: 121 | E151: 29 | F151: 258 | G151: Kentucky | H151: 4 | I151: 5
A152: 2020-05-29 | B152: 74 | C152: 20 | D152: 99 | E152: 33 | F152: 226 | G152: Kentucky | H152: 5 | I152: 5
A153: 2020-05-30 | B153: 24 | C153: 56 | D153: 68 | E153: 43 | F153: 191 | G153: Kentucky | H153: 6 | I153: 5
A154: 2020-05-31 | B154: 12 | C154: 6 | D154: 10 | E154: 11 | F154: 39 | G154: Kentucky | H154: 7 | I154: 5
A155: 2020-06-01 | B155: 91 | C155: 39 | D155: 86 | E155: 20 | F155: 236 | G155: Louisiana | H155: 1 | I155: 6
A156: 2020-06-02 | B156: 43 | C156: 47 | D156: 40 | E156: 24 | F156: 154 | G156: Louisiana | H156: 2 | I156: 6
A157: 2020-06-03 | B157: 85 | C157: 54 | D157: 134 | E157: 26 | F157: 299 | G157: Louisiana | H157: 3 | I157: 6
A158: 2020-06-04 | B158: 17 | C158: 41 | D158: 122 | E158: 25 | F158: 205 | G158: Louisiana | H158: 4 | I158: 6
A159: 2020-06-05 | B159: 37 | C159: 57 | D159: 149 | E159: 15 | F159: 258 | G159: Louisiana | H159: 5 | I159: 6
A160: 2020-06-06 | B160: 44 | C160: 89 | D160: 34 | E160: 50 | F160: 217 | G160: Louisiana | H160: 6 | I160: 6
A161: 2020-06-07 | B161: 18 | C161: 9 | D161: 5 | E161: 9 | F161: 41 | G161: Louisiana | H161: 7 | I161: 6
A162: 2020-06-08 | B162: 26 | C162: 37 | D162: 68 | E162: 27 | F162: 158 | G162: Louisiana | H162: 1 | I162: 6
A163: 2020-06-09 | B163: 15 | C163: 36 | D163: 42 | E163: 22 | F163: 115 | G163: Louisiana | H163: 2 | I163: 6
A164: 2020-06-10 | B164: 35 | C164: 26 | D164: 113 | E164: 26 | F164: 200 | G164: Louisiana | H164: 3 | I164: 6
A165: 2020-06-11 | B165: 99 | C165: 89 | D165: 141 | E165: 49 | F165: 378 | G165: Louisiana | H165: 4 | I165: 6
A166: 2020-06-12 | B166: 93 | C166: 59 | D166: 79 | E166: 10 | F166: 241 | G166: Louisiana | H166: 5 | I166: 6
A167: 2020-06-13 | B167: 88 | C167: 22 | D167: 96 | E167: 40 | F167: 246 | G167: Louisiana | H167: 6 | I167: 6
A168: 2020-06-14 | B168: 9 | C168: 22 | D168: 46 | E168: 4 | F168: 81 | G168: Louisiana | H168: 7 | I168: 6
A169: 2020-06-15 | B169: 89 | C169: 51 | D169: 149 | E169: 46 | F169: 335 | G169: Louisiana | H169: 1 | I169: 6
A170: 2020-06-16 | B170: 6 | C170: 12 | D170: 46 | E170: 8 | F170: 72 | G170: Louisiana | H170: 2 | I170: 6
A171: 2020-06-17 | B171: 90 | C171: 29 | D171: 106 | E171: 35 | F171: 260 | G171: Louisiana | H171: 3 | I171: 6
A172: 2020-06-18 | B172: 97 | C172: 95 | D172: 100 | E172: 23 | F172: 315 | G172: Louisiana | H172: 4 | I172: 6
A173: 2020-06-19 | B173: 81 | C173: 88 | D173: 43 | E173: 12 | F173: 224 | G173: Louisiana | H173: 5 | I173: 6
A174: 2020-06-20 | B174: 83 | C174: 87 | D174: 77 | E174: 21 | F174: 268 | G174: Louisiana | H174: 6 | I174: 6
A175: 2020-06-21 | B175: 33 | C175: 26 | D175: 16 | E175: 15 | F175: 90 | G175: Louisiana | H175: 7 | I175: 6
A176: 2020-06-22 | B176: 93 | C176: 70 | D176: 26 | E176: 18 | F176: 207 | G176: Louisiana | H176: 1 | I176: 6
A177: 2020-06-23 | B177: 6 | C177: 36 | D177: 28 | E177: 3 | F177: 73 | G177: Louisiana | H177: 2 | I177: 6
A178: 2020-06-24 | B178: 94 | C178: 80 | D178: 54 | E178: 46 | F178: 274 | G178: Louisiana | H178: 3 | I178: 6
A179: 2020-06-25 | B179: 37 | C179: 35 | D179: 87 | E179: 38 | F179: 197 | G179: Louisiana | H179: 4 | I179: 6
A180: 2020-06-26 | B180: 10 | C180: 92 | D180: 119 | E180: 24 | F180: 245 | G180: Louisiana | H180: 5 | I180: 6
A181: 2020-06-27 | B181: 90 | C181: 37 | D181: 65 | E181: 21 | F181: 213 | G181: Louisiana | H181: 6 | I181: 6
A182: 2020-06-28 | B182: 6 | C182: 5 | D182: 21 | E182: 11 | F182: 43 | G182: Louisiana | H182: 7 | I182: 6
A183: 2020-06-29 | B183: 23 | C183: 89 | D183: 140 | E183: 14 | F183: 266 | G183: Louisiana | H183: 1 | I183: 6
A184: 2020-06-30 | B184: 30 | C184: 44 | D184: 49 | E184: 7 | F184: 130 | G184: Louisiana | H184: 2 | I184: 6
A185: 2020-07-01 | B185: 71 | C185: 100 | D185: 86 | E185: 44 | F185: 301 | G185: Maine | H185: 3 | I185: 7
A186: 2020-07-02 | B186: 25 | C186: 68 | D186: 109 | E186: 13 | F186: 215 | G186: Maine | H186: 4 | I186: 7
A187: 2020-07-03 | B187: 40 | C187: 99 | D187: 70 | E187: 42 | F187: 251 | G187: Maine | H187: 5 | I187: 7
A188: 2020-07-04 | B188: 16 | C188: 78 | D188: 146 | E188: 29 | F188: 269 | G188: Maine | H188: 6 | I188: 7
A189: 2020-07-05 | B189: 32 | C189: 18 | D189: 19 | E189: 10 | F189: 79 | G189: Maine | H189: 7 | I189: 7
A190: 2020-07-06 | B190: 57 | C190: 63 | D190: 53 | E190: 39 | F190: 212 | G190: Maine | H190: 1 | I190: 7
A191: 2020-07-07 | B191: 22 | C191: 29 | D191: 51 | E191: 13 | F191: 115 | G191: Maine | H191: 2 | I191: 7
A192: 2020-07-08 | B192: 77 | C192: 51 | D192: 102 | E192: 8 | F192: 238 | G192: Maine | H192: 3 | I192: 7
A193: 2020-07-09 | B193: 10 | C193: 41 | D193: 128 | E193: 37 | F193: 216 | G193: Maine | H193: 4 | I193: 7
A194: 2020-07-10 | B194: 61 | C194: 32 | D194: 68 | E194: 11 | F194: 172 | G194: Maine | H194: 5 | I194: 7
A195: 2020-07-11 | B195: 71 | C195: 62 | D195: 107 | E195: 39 | F195: 279 | G195: Maine | H195: 6 | I195: 7
A196: 2020-07-12 | B196: 14 | C196: 18 | D196: 39 | E196: 11 | F196: =SUM(B196:E196) -> 82 | G196: Maine | H196: =WEEKDAY(A196,2) -> 7 | I196: =MONTH(A196) -> 7
A197: 2020-07-13 | B197: 28 | C197: 93 | D197: 34 | E197: 22 | F197: 177 | G197: Maine | H197: 1 | I197: 7
A198: 2020-07-14 | B198: 37 | C198: 41 | D198: 7 | E198: 2 | F198: 87 | G198: Maine | H198: 2 | I198: 7
A199: 2020-07-15 | B199: 73 | C199: 11 | D199: 132 | E199: 11 | F199: 227 | G199: Maine | H199: 3 | I199: 7
A200: 2020-07-16 | B200: 24 | C200: 96 | D200: 19 | E200: 47 | F200: 186 | G200: Maine | H200: 4 | I200: 7
... 169 more rows

Sheet 3-Manager
A1: Date | B1: Product Groups | F1: Total sales | G1: State | H1: Days of the week | I1: № Month | J1: https://exceltable.com/en/templates/3d-menu-for-dashboard-in-excel
B2: A | C2: B | D2: C | E2: D
A3: 2020-01-01 | B3: 32 | C3: 19 | D3: 23 | E3: 13 | F3: =SUM(B3:E3) -> 87 | G3: Minnesota | H3: =WEEKDAY(A3,2) -> 3 | I3: =MONTH(A3) -> 1
A4: 2020-01-02 | B4: 47 | C4: 37 | D4: 50 | E4: 32 | F4: 166 | G4: Minnesota | H4: =WEEKDAY(A4,2) -> 4 | I4: =MONTH(A4) -> 1
A5: 2020-01-03 | B5: 54 | C5: 33 | D5: 38 | E5: 15 | F5: 140 | G5: Minnesota | H5: 5 | I5: 1
A6: 2020-01-04 | B6: 93 | C6: 42 | D6: 26 | E6: 23 | F6: 184 | G6: Minnesota | H6: 6 | I6: 1
A7: 2020-01-05 | B7: 23 | C7: 6 | D7: 8 | E7: 8 | F7: 45 | G7: Minnesota | H7: 7 | I7: 1
A8: 2020-01-06 | B8: 55 | C8: 5 | D8: 17 | E8: 28 | F8: 105 | G8: Minnesota | H8: 1 | I8: 1
A9: 2020-01-07 | B9: 97 | C9: 30 | D9: 18 | E9: 13 | F9: 158 | G9: Minnesota | H9: 2 | I9: 1
A10: 2020-01-08 | B10: 75 | C10: 22 | D10: 20 | E10: 25 | F10: 142 | G10: Minnesota | H10: 3 | I10: 1
A11: 2020-01-09 | B11: 15 | C11: 17 | D11: 48 | E11: 6 | F11: 86 | G11: Minnesota | H11: 4 | I11: 1
A12: 2020-01-10 | B12: 57 | C12: 36 | D12: 37 | E12: 24 | F12: 154 | G12: Minnesota | H12: 5 | I12: 1
A13: 2020-01-11 | B13: 47 | C13: 18 | D13: 17 | E13: 28 | F13: 110 | G13: Minnesota | H13: 6 | I13: 1
A14: 2020-01-12 | B14: 5 | C14: 3 | D14: 13 | E14: 4 | F14: 25 | G14: Minnesota | H14: 7 | I14: 1
A15: 2020-01-13 | B15: 59 | C15: 29 | D15: 26 | E15: 24 | F15: 138 | G15: Minnesota | H15: 1 | I15: 1
A16: 2020-01-14 | B16: 89 | C16: 45 | D16: 15 | E16: 25 | F16: 174 | G16: Minnesota | H16: 2 | I16: 1
A17: 2020-01-15 | B17: 68 | C17: 9 | D17: 7 | E17: 17 | F17: 101 | G17: Minnesota | H17: 3 | I17: 1
A18: 2020-01-16 | B18: 127 | C18: 14 | D18: 13 | E18: 41 | F18: 195 | G18: Minnesota | H18: 4 | I18: 1
A19: 2020-01-17 | B19: 71 | C19: 17 | D19: 35 | E19: 47 | F19: 170 | G19: Minnesota | H19: 5 | I19: 1
A20: 2020-01-18 | B20: 47 | C20: 46 | D20: 13 | E20: 5 | F20: 111 | G20: Minnesota | H20: 6 | I20: 1
A21: 2020-01-19 | B21: 21 | C21: 7 | D21: 15 | E21: 14 | F21: 57 | G21: Minnesota | H21: 7 | I21: 1
A22: 2020-01-20 | B22: 144 | C22: 11 | D22: 44 | E22: 15 | F22: 214 | G22: Minnesota | H22: 1 | I22: 1
A23: 2020-01-21 | B23: 105 | C23: 9 | D23: 21 | E23: 17 | F23: 152 | G23: Minnesota | H23: 2 | I23: 1
A24: 2020-01-22 | B24: 71 | C24: 5 | D24: 8 | E24: 4 | F24: 88 | G24: Minnesota | H24: 3 | I24: 1
A25: 2020-01-23 | B25: 77 | C25: 23 | D25: 23 | E25: 37 | F25: 160 | G25: Minnesota | H25: 4 | I25: 1
A26: 2020-01-24 | B26: 85 | C26: 46 | D26: 15 | E26: 32 | F26: 178 | G26: Minnesota | H26: 5 | I26: 1
A27: 2020-01-25 | B27: 63 | C27: 38 | D27: 21 | E27: 32 | F27: 154 | G27: Minnesota | H27: 6 | I27: 1
A28: 2020-01-26 | B28: 24 | C28: 14 | D28: 12 | E28: 10 | F28: 60 | G28: Minnesota | H28: 7 | I28: 1
A29: 2020-01-27 | B29: 122 | C29: 10 | D29: 16 | E29: 36 | F29: 184 | G29: Minnesota | H29: 1 | I29: 1
A30: 2020-01-28 | B30: 144 | C30: 32 | D30: 29 | E30: 46 | F30: 251 | G30: Minnesota | H30: 2 | I30: 1
A31: 2020-01-29 | B31: 56 | C31: 25 | D31: 5 | E31: 2 | F31: 88 | G31: Minnesota | H31: 3 | I31: 1
A32: 2020-01-30 | B32: 131 | C32: 14 | D32: 19 | E32: 36 | F32: 200 | G32: Minnesota | H32: 4 | I32: 1
A33: 2020-01-31 | B33: 114 | C33: 13 | D33: 20 | E33: 36 | F33: 183 | G33: Minnesota | H33: 5 | I33: 1
A34: 2020-02-01 | B34: 92 | C34: 28 | D34: 9 | E34: 28 | F34: 157 | G34: Mississippi | H34: 6 | I34: 2
A35: 2020-02-02 | B35: 48 | C35: 3 | D35: 14 | E35: 14 | F35: 79 | G35: Mississippi | H35: 7 | I35: 2
A36: 2020-02-03 | B36: 132 | C36: 9 | D36: 17 | E36: 22 | F36: 180 | G36: Mississippi | H36: 1 | I36: 2
A37: 2020-02-04 | B37: 147 | C37: 5 | D37: 45 | E37: 49 | F37: 246 | G37: Mississippi | H37: 2 | I37: 2
A38: 2020-02-05 | B38: 38 | C38: 4 | D38: 15 | E38: 11 | F38: 68 | G38: Mississippi | H38: 3 | I38: 2
A39: 2020-02-06 | B39: 99 | C39: 50 | D39: 34 | E39: 45 | F39: 228 | G39: Mississippi | H39: 4 | I39: 2
A40: 2020-02-07 | B40: 26 | C40: 29 | D40: 23 | E40: 22 | F40: 100 | G40: Mississippi | H40: 5 | I40: 2
A41: 2020-02-08 | B41: 16 | C41: 41 | D41: 44 | E41: 18 | F41: 119 | G41: Mississippi | H41: 6 | I41: 2
A42: 2020-02-09 | B42: 18 | C42: 14 | D42: 5 | E42: 2 | F42: 39 | G42: Mississippi | H42: 7 | I42: 2
A43: 2020-02-10 | B43: 88 | C43: 27 | D43: 21 | E43: 38 | F43: 174 | G43: Mississippi | H43: 1 | I43: 2
A44: 2020-02-11 | B44: 30 | C44: 30 | D44: 33 | E44: 50 | F44: 143 | G44: Mississippi | H44: 2 | I44: 2
A45: 2020-02-12 | B45: 24 | C45: 14 | D45: 10 | E45: 21 | F45: 69 | G45: Mississippi | H45: 3 | I45: 2
A46: 2020-02-13 | B46: 134 | C46: 33 | D46: 33 | E46: 26 | F46: 226 | G46: Mississippi | H46: 4 | I46: 2
A47: 2020-02-14 | B47: 109 | C47: 21 | D47: 20 | E47: 43 | F47: 193 | G47: Mississippi | H47: 5 | I47: 2
A48: 2020-02-15 | B48: 62 | C48: 22 | D48: 26 | E48: 6 | F48: 116 | G48: Mississippi | H48: 6 | I48: 2
A49: 2020-02-16 | B49: 48 | C49: 9 | D49: 8 | E49: 11 | F49: 76 | G49: Mississippi | H49: 7 | I49: 2
A50: 2020-02-17 | B50: 127 | C50: 26 | D50: 20 | E50: 20 | F50: 193 | G50: Mississippi | H50: 1 | I50: 2
A51: 2020-02-18 | B51: 122 | C51: 16 | D51: 44 | E51: 28 | F51: 210 | G51: Mississippi | H51: 2 | I51: 2
A52: 2020-02-19 | B52: 69 | C52: 22 | D52: 21 | E52: 22 | F52: 134 | G52: Mississippi | H52: 3 | I52: 2
A53: 2020-02-20 | B53: 87 | C53: 48 | D53: 45 | E53: 48 | F53: 228 | G53: Mississippi | H53: 4 | I53: 2
A54: 2020-02-21 | B54: 74 | C54: 22 | D54: 9 | E54: 25 | F54: 130 | G54: Mississippi | H54: 5 | I54: 2
A55: 2020-02-22 | B55: 44 | C55: 46 | D55: 34 | E55: 9 | F55: 133 | G55: Mississippi | H55: 6 | I55: 2
A56: 2020-02-23 | B56: 21 | C56: 3 | D56: 6 | E56: 16 | F56: 46 | G56: Mississippi | H56: 7 | I56: 2
A57: 2020-02-24 | B57: 51 | C57: 26 | D57: 39 | E57: 10 | F57: 126 | G57: Mississippi | H57: 1 | I57: 2
A58: 2020-02-25 | B58: 43 | C58: 35 | D58: 27 | E58: 10 | F58: 115 | G58: Mississippi | H58: 2 | I58: 2
A59: 2020-02-26 | B59: 26 | C59: 14 | D59: 12 | E59: 8 | F59: 60 | G59: Mississippi | H59: 3 | I59: 2
A60: 2020-02-27 | B60: 137 | C60: 49 | D60: 13 | E60: 33 | F60: 232 | G60: Mississippi | H60: 4 | I60: 2
A61: 2020-02-28 | B61: 16 | C61: 21 | D61: 49 | E61: 50 | F61: 136 | G61: Mississippi | H61: 5 | I61: 2
A62: 2020-02-29 | B62: 81 | C62: 15 | D62: 49 | E62: 46 | F62: 191 | G62: Mississippi | H62: 6 | I62: 2
A63: 2020-03-01 | B63: 14 | C63: 3 | D63: 14 | E63: 4 | F63: 35 | G63: Missouri | H63: 7 | I63: 3
A64: 2020-03-02 | B64: 24 | C64: 39 | D64: 15 | E64: 50 | F64: 128 | G64: Missouri | H64: 1 | I64: 3
A65: 2020-03-03 | B65: 134 | C65: 10 | D65: 40 | E65: 5 | F65: 189 | G65: Missouri | H65: 2 | I65: 3
A66: 2020-03-04 | B66: 71 | C66: 25 | D66: 9 | E66: 11 | F66: 116 | G66: Missouri | H66: 3 | I66: 3
A67: 2020-03-05 | B67: 55 | C67: 28 | D67: 8 | E67: 20 | F67: 111 | G67: Missouri | H67: 4 | I67: 3
A68: 2020-03-06 | B68: 130 | C68: 15 | D68: 44 | E68: 15 | F68: =SUM(B68:E68) -> 204 | G68: Missouri | H68: =WEEKDAY(A68,2) -> 5 | I68: =MONTH(A68) -> 3
A69: 2020-03-07 | B69: 132 | C69: 26 | D69: 10 | E69: 10 | F69: 178 | G69: Missouri | H69: 6 | I69: 3
A70: 2020-03-08 | B70: 9 | C70: 14 | D70: 8 | E70: 15 | F70: 46 | G70: Missouri | H70: 7 | I70: 3
A71: 2020-03-09 | B71: 80 | C71: 48 | D71: 39 | E71: 28 | F71: 195 | G71: Missouri | H71: 1 | I71: 3
A72: 2020-03-10 | B72: 109 | C72: 8 | D72: 34 | E72: 42 | F72: 193 | G72: Missouri | H72: 2 | I72: 3
A73: 2020-03-11 | B73: 54 | C73: 11 | D73: 13 | E73: 4 | F73: 82 | G73: Missouri | H73: 3 | I73: 3
A74: 2020-03-12 | B74: 109 | C74: 36 | D74: 20 | E74: 33 | F74: 198 | G74: Missouri | H74: 4 | I74: 3
A75: 2020-03-13 | B75: 84 | C75: 43 | D75: 49 | E75: 25 | F75: 201 | G75: Missouri | H75: 5 | I75: 3
A76: 2020-03-14 | B76: 36 | C76: 7 | D76: 11 | E76: 22 | F76: 76 | G76: Missouri | H76: 6 | I76: 3
A77: 2020-03-15 | B77: 10 | C77: 10 | D77: 6 | E77: 7 | F77: 33 | G77: Missouri | H77: 7 | I77: 3
A78: 2020-03-16 | B78: 129 | C78: 9 | D78: 42 | E78: 32 | F78: 212 | G78: Missouri | H78: 1 | I78: 3
A79: 2020-03-17 | B79: 102 | C79: 42 | D79: 41 | E79: 35 | F79: 220 | G79: Missouri | H79: 2 | I79: 3
A80: 2020-03-18 | B80: 73 | C80: 4 | D80: 15 | E80: 5 | F80: 97 | G80: Missouri | H80: 3 | I80: 3
A81: 2020-03-19 | B81: 110 | C81: 15 | D81: 31 | E81: 22 | F81: 178 | G81: Missouri | H81: 4 | I81: 3
A82: 2020-03-20 | B82: 147 | C82: 33 | D82: 7 | E82: 36 | F82: 223 | G82: Missouri | H82: 5 | I82: 3
A83: 2020-03-21 | B83: 52 | C83: 12 | D83: 22 | E83: 8 | F83: 94 | G83: Missouri | H83: 6 | I83: 3
A84: 2020-03-22 | B84: 49 | C84: 3 | D84: 15 | E84: 14 | F84: 81 | G84: Missouri | H84: 7 | I84: 3
A85: 2020-03-23 | B85: 45 | C85: 45 | D85: 50 | E85: 32 | F85: 172 | G85: Missouri | H85: 1 | I85: 3
A86: 2020-03-24 | B86: 99 | C86: 10 | D86: 50 | E86: 19 | F86: 178 | G86: Missouri | H86: 2 | I86: 3
A87: 2020-03-25 | B87: 59 | C87: 12 | D87: 21 | E87: 24 | F87: 116 | G87: Missouri | H87: 3 | I87: 3
A88: 2020-03-26 | B88: 127 | C88: 42 | D88: 49 | E88: 7 | F88: 225 | G88: Missouri | H88: 4 | I88: 3
A89: 2020-03-27 | B89: 141 | C89: 17 | D89: 11 | E89: 25 | F89: 194 | G89: Missouri | H89: 5 | I89: 3
A90: 2020-03-28 | B90: 69 | C90: 38 | D90: 8 | E90: 41 | F90: 156 | G90: Missouri | H90: 6 | I90: 3
A91: 2020-03-29 | B91: 40 | C91: 14 | D91: 9 | E91: 16 | F91: 79 | G91: Missouri | H91: 7 | I91: 3
A92: 2020-03-30 | B92: 61 | C92: 29 | D92: 26 | E92: 30 | F92: 146 | G92: Missouri | H92: 1 | I92: 3
A93: 2020-03-31 | B93: 56 | C93: 22 | D93: 28 | E93: 15 | F93: 121 | G93: Missouri | H93: 2 | I93: 3
A94: 2020-04-01 | B94: 36 | C94: 17 | D94: 22 | E94: 23 | F94: 98 | G94: Montana | H94: 3 | I94: 4
A95: 2020-04-02 | B95: 36 | C95: 37 | D95: 34 | E95: 36 | F95: 143 | G95: Montana | H95: 4 | I95: 4
A96: 2020-04-03 | B96: 49 | C96: 33 | D96: 7 | E96: 27 | F96: 116 | G96: Montana | H96: 5 | I96: 4
A97: 2020-04-04 | B97: 39 | C97: 18 | D97: 8 | E97: 11 | F97: 76 | G97: Montana | H97: 6 | I97: 4
A98: 2020-04-05 | B98: 6 | C98: 2 | D98: 10 | E98: 3 | F98: 21 | G98: Montana | H98: 7 | I98: 4
A99: 2020-04-06 | B99: 38 | C99: 39 | D99: 34 | E99: 9 | F99: 120 | G99: Montana | H99: 1 | I99: 4
A100: 2020-04-07 | B100: 42 | C100: 8 | D100: 42 | E100: 10 | F100: 102 | G100: Montana | H100: 2 | I100: 4
A101: 2020-04-08 | B101: 35 | C101: 20 | D101: 18 | E101: 16 | F101: 89 | G101: Montana | H101: 3 | I101: 4
A102: 2020-04-09 | B102: 116 | C102: 46 | D102: 37 | E102: 35 | F102: 234 | G102: Montana | H102: 4 | I102: 4
A103: 2020-04-10 | B103: 33 | C103: 32 | D103: 11 | E103: 13 | F103: 89 | G103: Montana | H103: 5 | I103: 4
A104: 2020-04-11 | B104: 111 | C104: 31 | D104: 23 | E104: 31 | F104: 196 | G104: Montana | H104: 6 | I104: 4
A105: 2020-04-12 | B105: 35 | C105: 4 | D105: 7 | E105: 16 | F105: 62 | G105: Montana | H105: 7 | I105: 4
A106: 2020-04-13 | B106: 64 | C106: 37 | D106: 16 | E106: 28 | F106: 145 | G106: Montana | H106: 1 | I106: 4
A107: 2020-04-14 | B107: 150 | C107: 33 | D107: 36 | E107: 49 | F107: 268 | G107: Montana | H107: 2 | I107: 4
A108: 2020-04-15 | B108: 53 | C108: 14 | D108: 2 | E108: 25 | F108: 94 | G108: Montana | H108: 3 | I108: 4
A109: 2020-04-16 | B109: 117 | C109: 16 | D109: 20 | E109: 39 | F109: 192 | G109: Montana | H109: 4 | I109: 4
A110: 2020-04-17 | B110: 37 | C110: 48 | D110: 30 | E110: 48 | F110: 163 | G110: Montana | H110: 5 | I110: 4
A111: 2020-04-18 | B111: 35 | C111: 24 | D111: 25 | E111: 7 | F111: 91 | G111: Montana | H111: 6 | I111: 4
A112: 2020-04-19 | B112: 10 | C112: 8 | D112: 7 | E112: 7 | F112: 32 | G112: Montana | H112: 7 | I112: 4
A113: 2020-04-20 | B113: 39 | C113: 7 | D113: 23 | E113: 17 | F113: 86 | G113: Montana | H113: 1 | I113: 4
A114: 2020-04-21 | B114: 78 | C114: 28 | D114: 9 | E114: 31 | F114: 146 | G114: Montana | H114: 2 | I114: 4
A115: 2020-04-22 | B115: 11 | C115: 24 | D115: 14 | E115: 7 | F115: 56 | G115: Montana | H115: 3 | I115: 4
A116: 2020-04-23 | B116: 126 | C116: 32 | D116: 48 | E116: 27 | F116: 233 | G116: Montana | H116: 4 | I116: 4
A117: 2020-04-24 | B117: 16 | C117: 19 | D117: 40 | E117: 48 | F117: 123 | G117: Montana | H117: 5 | I117: 4
A118: 2020-04-25 | B118: 139 | C118: 29 | D118: 42 | E118: 14 | F118: 224 | G118: Montana | H118: 6 | I118: 4
A119: 2020-04-26 | B119: 7 | C119: 8 | D119: 3 | E119: 13 | F119: 31 | G119: Montana | H119: 7 | I119: 4
A120: 2020-04-27 | B120: 103 | C120: 49 | D120: 46 | E120: 14 | F120: 212 | G120: Montana | H120: 1 | I120: 4
A121: 2020-04-28 | B121: 18 | C121: 33 | D121: 25 | E121: 11 | F121: 87 | G121: Montana | H121: 2 | I121: 4
A122: 2020-04-29 | B122: 46 | C122: 19 | D122: 12 | E122: 9 | F122: 86 | G122: Montana | H122: 3 | I122: 4
A123: 2020-04-30 | B123: 130 | C123: 9 | D123: 48 | E123: 40 | F123: 227 | G123: Montana | H123: 4 | I123: 4
A124: 2020-05-01 | B124: 126 | C124: 39 | D124: 29 | E124: 44 | F124: 238 | G124: Nebraska | H124: 5 | I124: 5
A125: 2020-05-02 | B125: 128 | C125: 13 | D125: 48 | E125: 32 | F125: 221 | G125: Nebraska | H125: 6 | I125: 5
A126: 2020-05-03 | B126: 27 | C126: 7 | D126: 15 | E126: 15 | F126: 64 | G126: Nebraska | H126: 7 | I126: 5
A127: 2020-05-04 | B127: 46 | C127: 34 | D127: 5 | E127: 21 | F127: 106 | G127: Nebraska | H127: 1 | I127: 5
A128: 2020-05-05 | B128: 31 | C128: 44 | D128: 26 | E128: 18 | F128: 119 | G128: Nebraska | H128: 2 | I128: 5
A129: 2020-05-06 | B129: 57 | C129: 20 | D129: 12 | E129: 10 | F129: 99 | G129: Nebraska | H129: 3 | I129: 5
A130: 2020-05-07 | B130: 45 | C130: 7 | D130: 38 | E130: 16 | F130: 106 | G130: Nebraska | H130: 4 | I130: 5
A131: 2020-05-08 | B131: 106 | C131: 34 | D131: 6 | E131: 35 | F131: 181 | G131: Nebraska | H131: 5 | I131: 5
A132: 2020-05-09 | B132: 35 | C132: 12 | D132: 25 | E132: 41 | F132: =SUM(B132:E132) -> 113 | G132: Nebraska | H132: =WEEKDAY(A132,2) -> 6 | I132: =MONTH(A132) -> 5
A133: 2020-05-10 | B133: 23 | C133: 12 | D133: 10 | E133: 6 | F133: 51 | G133: Nebraska | H133: 7 | I133: 5
A134: 2020-05-11 | B134: 28 | C134: 35 | D134: 24 | E134: 32 | F134: 119 | G134: Nebraska | H134: 1 | I134: 5
A135: 2020-05-12 | B135: 71 | C135: 44 | D135: 47 | E135: 29 | F135: 191 | G135: Nebraska | H135: 2 | I135: 5
A136: 2020-05-13 | B136: 54 | C136: 21 | D136: 9 | E136: 18 | F136: 102 | G136: Nebraska | H136: 3 | I136: 5
A137: 2020-05-14 | B137: 50 | C137: 33 | D137: 8 | E137: 26 | F137: 117 | G137: Nebraska | H137: 4 | I137: 5
A138: 2020-05-15 | B138: 70 | C138: 30 | D138: 48 | E138: 46 | F138: 194 | G138: Nebraska | H138: 5 | I138: 5
A139: 2020-05-16 | B139: 147 | C139: 44 | D139: 45 | E139: 47 | F139: 283 | G139: Nebraska | H139: 6 | I139: 5
A140: 2020-05-17 | B140: 42 | C140: 10 | D140: 2 | E140: 13 | F140: 67 | G140: Nebraska | H140: 7 | I140: 5
A141: 2020-05-18 | B141: 41 | C141: 8 | D141: 13 | E141: 49 | F141: 111 | G141: Nebraska | H141: 1 | I141: 5
A142: 2020-05-19 | B142: 90 | C142: 8 | D142: 13 | E142: 21 | F142: 132 | G142: Nebraska | H142: 2 | I142: 5
A143: 2020-05-20 | B143: 23 | C143: 22 | D143: 11 | E143: 13 | F143: 69 | G143: Nebraska | H143: 3 | I143: 5
A144: 2020-05-21 | B144: 76 | C144: 16 | D144: 50 | E144: 42 | F144: 184 | G144: Nebraska | H144: 4 | I144: 5
A145: 2020-05-22 | B145: 29 | C145: 40 | D145: 41 | E145: 27 | F145: 137 | G145: Nebraska | H145: 5 | I145: 5
A146: 2020-05-23 | B146: 95 | C146: 12 | D146: 26 | E146: 10 | F146: 143 | G146: Nebraska | H146: 6 | I146: 5
A147: 2020-05-24 | B147: 41 | C147: 8 | D147: 11 | E147: 2 | F147: 62 | G147: Nebraska | H147: 7 | I147: 5
A148: 2020-05-25 | B148: 68 | C148: 48 | D148: 20 | E148: 35 | F148: 171 | G148: Nebraska | H148: 1 | I148: 5
A149: 2020-05-26 | B149: 126 | C149: 5 | D149: 11 | E149: 18 | F149: 160 | G149: Nebraska | H149: 2 | I149: 5
A150: 2020-05-27 | B150: 64 | C150: 11 | D150: 19 | E150: 15 | F150: 109 | G150: Nebraska | H150: 3 | I150: 5
A151: 2020-05-28 | B151: 52 | C151: 44 | D151: 47 | E151: 24 | F151: 167 | G151: Nebraska | H151: 4 | I151: 5
A152: 2020-05-29 | B152: 103 | C152: 39 | D152: 36 | E152: 28 | F152: 206 | G152: Nebraska | H152: 5 | I152: 5
A153: 2020-05-30 | B153: 40 | C153: 26 | D153: 6 | E153: 31 | F153: 103 | G153: Nebraska | H153: 6 | I153: 5
A154: 2020-05-31 | B154: 34 | C154: 14 | D154: 4 | E154: 6 | F154: 58 | G154: Nebraska | H154: 7 | I154: 5
A155: 2020-06-01 | B155: 46 | C155: 17 | D155: 39 | E155: 22 | F155: 124 | G155: Nevada | H155: 1 | I155: 6
A156: 2020-06-02 | B156: 98 | C156: 14 | D156: 36 | E156: 48 | F156: 196 | G156: Nevada | H156: 2 | I156: 6
A157: 2020-06-03 | B157: 44 | C157: 14 | D157: 16 | E157: 13 | F157: 87 | G157: Nevada | H157: 3 | I157: 6
A158: 2020-06-04 | B158: 113 | C158: 46 | D158: 11 | E158: 18 | F158: 188 | G158: Nevada | H158: 4 | I158: 6
A159: 2020-06-05 | B159: 47 | C159: 20 | D159: 12 | E159: 43 | F159: 122 | G159: Nevada | H159: 5 | I159: 6
A160: 2020-06-06 | B160: 23 | C160: 8 | D160: 45 | E160: 23 | F160: 99 | G160: Nevada | H160: 6 | I160: 6
A161: 2020-06-07 | B161: 47 | C161: 11 | D161: 12 | E161: 10 | F161: 80 | G161: Nevada | H161: 7 | I161: 6
A162: 2020-06-08 | B162: 39 | C162: 18 | D162: 50 | E162: 43 | F162: 150 | G162: Nevada | H162: 1 | I162: 6
A163: 2020-06-09 | B163: 71 | C163: 16 | D163: 38 | E163: 37 | F163: 162 | G163: Nevada | H163: 2 | I163: 6
A164: 2020-06-10 | B164: 12 | C164: 16 | D164: 18 | E164: 18 | F164: 64 | G164: Nevada | H164: 3 | I164: 6
A165: 2020-06-11 | B165: 62 | C165: 23 | D165: 48 | E165: 12 | F165: 145 | G165: Nevada | H165: 4 | I165: 6
A166: 2020-06-12 | B166: 130 | C166: 33 | D166: 17 | E166: 10 | F166: 190 | G166: Nevada | H166: 5 | I166: 6
A167: 2020-06-13 | B167: 32 | C167: 48 | D167: 48 | E167: 47 | F167: 175 | G167: Nevada | H167: 6 | I167: 6
A168: 2020-06-14 | B168: 41 | C168: 15 | D168: 11 | E168: 3 | F168: 70 | G168: Nevada | H168: 7 | I168: 6
A169: 2020-06-15 | B169: 124 | C169: 23 | D169: 42 | E169: 26 | F169: 215 | G169: Nevada | H169: 1 | I169: 6
A170: 2020-06-16 | B170: 100 | C170: 36 | D170: 8 | E170: 22 | F170: 166 | G170: Nevada | H170: 2 | I170: 6
A171: 2020-06-17 | B171: 17 | C171: 15 | D171: 8 | E171: 18 | F171: 58 | G171: Nevada | H171: 3 | I171: 6
A172: 2020-06-18 | B172: 79 | C172: 21 | D172: 16 | E172: 14 | F172: 130 | G172: Nevada | H172: 4 | I172: 6
A173: 2020-06-19 | B173: 16 | C173: 8 | D173: 27 | E173: 48 | F173: 99 | G173: Nevada | H173: 5 | I173: 6
A174: 2020-06-20 | B174: 15 | C174: 30 | D174: 5 | E174: 9 | F174: 59 | G174: Nevada | H174: 6 | I174: 6
A175: 2020-06-21 | B175: 31 | C175: 11 | D175: 2 | E175: 14 | F175: 58 | G175: Nevada | H175: 7 | I175: 6
A176: 2020-06-22 | B176: 91 | C176: 7 | D176: 43 | E176: 29 | F176: 170 | G176: Nevada | H176: 1 | I176: 6
A177: 2020-06-23 | B177: 131 | C177: 34 | D177: 36 | E177: 15 | F177: 216 | G177: Nevada | H177: 2 | I177: 6
A178: 2020-06-24 | B178: 27 | C178: 5 | D178: 16 | E178: 19 | F178: 67 | G178: Nevada | H178: 3 | I178: 6
A179: 2020-06-25 | B179: 93 | C179: 39 | D179: 21 | E179: 43 | F179: 196 | G179: Nevada | H179: 4 | I179: 6
A180: 2020-06-26 | B180: 84 | C180: 34 | D180: 50 | E180: 6 | F180: 174 | G180: Nevada | H180: 5 | I180: 6
A181: 2020-06-27 | B181: 142 | C181: 19 | D181: 17 | E181: 42 | F181: 220 | G181: Nevada | H181: 6 | I181: 6
A182: 2020-06-28 | B182: 8 | C182: 12 | D182: 16 | E182: 7 | F182: 43 | G182: Nevada | H182: 7 | I182: 6
A183: 2020-06-29 | B183: 37 | C183: 34 | D183: 31 | E183: 45 | F183: 147 | G183: Nevada | H183: 1 | I183: 6
A184: 2020-06-30 | B184: 76 | C184: 24 | D184: 16 | E184: 17 | F184: 133 | G184: Nevada | H184: 2 | I184: 6
A185: 2020-07-01 | B185: 49 | C185: 10 | D185: 13 | E185: 3 | F185: 75 | G185: New hampshire | H185: 3 | I185: 7
A186: 2020-07-02 | B186: 88 | C186: 34 | D186: 20 | E186: 21 | F186: 163 | G186: New hampshire | H186: 4 | I186: 7
A187: 2020-07-03 | B187: 137 | C187: 50 | D187: 21 | E187: 40 | F187: 248 | G187: New hampshire | H187: 5 | I187: 7
A188: 2020-07-04 | B188: 102 | C188: 47 | D188: 33 | E188: 48 | F188: 230 | G188: New hampshire | H188: 6 | I188: 7
A189: 2020-07-05 | B189: 20 | C189: 16 | D189: 16 | E189: 3 | F189: 55 | G189: New hampshire | H189: 7 | I189: 7
A190: 2020-07-06 | B190: 41 | C190: 21 | D190: 6 | E190: 36 | F190: 104 | G190: New hampshire | H190: 1 | I190: 7
A191: 2020-07-07 | B191: 133 | C191: 32 | D191: 33 | E191: 31 | F191: 229 | G191: New hampshire | H191: 2 | I191: 7
A192: 2020-07-08 | B192: 35 | C192: 12 | D192: 21 | E192: 16 | F192: 84 | G192: New hampshire | H192: 3 | I192: 7
A193: 2020-07-09 | B193: 32 | C193: 19 | D193: 23 | E193: 49 | F193: 123 | G193: New hampshire | H193: 4 | I193: 7
A194: 2020-07-10 | B194: 60 | C194: 25 | D194: 43 | E194: 40 | F194: 168 | G194: New hampshire | H194: 5 | I194: 7
A195: 2020-07-11 | B195: 65 | C195: 49 | D195: 34 | E195: 22 | F195: 170 | G195: New hampshire | H195: 6 | I195: 7
A196: 2020-07-12 | B196: 39 | C196: 12 | D196: 11 | E196: 11 | F196: =SUM(B196:E196) -> 73 | G196: New hampshire | H196: =WEEKDAY(A196,2) -> 7 | I196: =MONTH(A196) -> 7
A197: 2020-07-13 | B197: 89 | C197: 32 | D197: 50 | E197: 29 | F197: 200 | G197: New hampshire | H197: 1 | I197: 7
A198: 2020-07-14 | B198: 76 | C198: 12 | D198: 32 | E198: 27 | F198: 147 | G198: New hampshire | H198: 2 | I198: 7
A199: 2020-07-15 | B199: 69 | C199: 14 | D199: 4 | E199: 12 | F199: 99 | G199: New hampshire | H199: 3 | I199: 7
A200: 2020-07-16 | B200: 115 | C200: 15 | D200: 10 | E200: 37 | F200: 177 | G200: New hampshire | H200: 4 | I200: 7
... 169 more rows

Sheet 4-Manager
A1: Date | B1: Product Groups | F1: Total sales | G1: State | H1: Days of the week | I1: № Month | J1: https://exceltable.com/en/templates/3d-menu-for-dashboard-in-excel
B2: A | C2: B | D2: C | E2: D
A3: 2020-01-01 | B3: 20 | C3: 19 | D3: 100 | E3: 6 | F3: =SUM(B3:E3) -> 145 | G3: North Carolina | H3: =WEEKDAY(A3,2) -> 3 | I3: =MONTH(A3) -> 1
A4: 2020-01-02 | B4: 7 | C4: 9 | D4: 44 | E4: 1 | F4: 61 | G4: North Carolina | H4: =WEEKDAY(A4,2) -> 4 | I4: =MONTH(A4) -> 1
A5: 2020-01-03 | B5: 9 | C5: 17 | D5: 11 | E5: 4 | F5: 41 | G5: North Carolina | H5: 5 | I5: 1
A6: 2020-01-04 | B6: 7 | C6: 3 | D6: 56 | E6: 27 | F6: 93 | G6: North Carolina | H6: 6 | I6: 1
A7: 2020-01-05 | B7: 6 | C7: 9 | D7: 7 | E7: 1 | F7: 23 | G7: North Carolina | H7: 7 | I7: 1
A8: 2020-01-06 | B8: 27 | C8: 5 | D8: 47 | E8: 12 | F8: 91 | G8: North Carolina | H8: 1 | I8: 1
A9: 2020-01-07 | B9: 6 | C9: 5 | D9: 63 | E9: 28 | F9: 102 | G9: North Carolina | H9: 2 | I9: 1
A10: 2020-01-08 | B10: 21 | C10: 3 | D10: 48 | E10: 16 | F10: 88 | G10: North Carolina | H10: 3 | I10: 1
A11: 2020-01-09 | B11: 1 | C11: 10 | D11: 19 | E11: 6 | F11: 36 | G11: North Carolina | H11: 4 | I11: 1
A12: 2020-01-10 | B12: 19 | C12: 20 | D12: 23 | E12: 28 | F12: 90 | G12: North Carolina | H12: 5 | I12: 1
A13: 2020-01-11 | B13: 17 | C13: 30 | D13: 69 | E13: 26 | F13: 142 | G13: North Carolina | H13: 6 | I13: 1
A14: 2020-01-12 | B14: 9 | C14: 4 | D14: 17 | E14: 1 | F14: 31 | G14: North Carolina | H14: 7 | I14: 1
A15: 2020-01-13 | B15: 15 | C15: 6 | D15: 10 | E15: 24 | F15: 55 | G15: North Carolina | H15: 1 | I15: 1
A16: 2020-01-14 | B16: 26 | C16: 14 | D16: 29 | E16: 6 | F16: 75 | G16: North Carolina | H16: 2 | I16: 1
A17: 2020-01-15 | B17: 18 | C17: 20 | D17: 80 | E17: 6 | F17: 124 | G17: North Carolina | H17: 3 | I17: 1
A18: 2020-01-16 | B18: 6 | C18: 7 | D18: 41 | E18: 2 | F18: 56 | G18: North Carolina | H18: 4 | I18: 1
A19: 2020-01-17 | B19: 17 | C19: 7 | D19: 60 | E19: 5 | F19: 89 | G19: North Carolina | H19: 5 | I19: 1
A20: 2020-01-18 | B20: 24 | C20: 19 | D20: 19 | E20: 18 | F20: 80 | G20: North Carolina | H20: 6 | I20: 1
A21: 2020-01-19 | B21: 6 | C21: 8 | D21: 4 | E21: 7 | F21: 25 | G21: North Carolina | H21: 7 | I21: 1
A22: 2020-01-20 | B22: 16 | C22: 22 | D22: 81 | E22: 23 | F22: 142 | G22: North Carolina | H22: 1 | I22: 1
A23: 2020-01-21 | B23: 10 | C23: 22 | D23: 67 | E23: 10 | F23: 109 | G23: North Carolina | H23: 2 | I23: 1
A24: 2020-01-22 | B24: 12 | C24: 25 | D24: 51 | E24: 8 | F24: 96 | G24: North Carolina | H24: 3 | I24: 1
A25: 2020-01-23 | B25: 13 | C25: 2 | D25: 24 | E25: 4 | F25: 43 | G25: North Carolina | H25: 4 | I25: 1
A26: 2020-01-24 | B26: 20 | C26: 26 | D26: 21 | E26: 30 | F26: 97 | G26: North Carolina | H26: 5 | I26: 1
A27: 2020-01-25 | B27: 3 | C27: 11 | D27: 89 | E27: 30 | F27: 133 | G27: North Carolina | H27: 6 | I27: 1
A28: 2020-01-26 | B28: 8 | C28: 9 | D28: 24 | E28: 8 | F28: 49 | G28: North Carolina | H28: 7 | I28: 1
A29: 2020-01-27 | B29: 22 | C29: 10 | D29: 15 | E29: 29 | F29: 76 | G29: North Carolina | H29: 1 | I29: 1
A30: 2020-01-28 | B30: 22 | C30: 8 | D30: 34 | E30: 19 | F30: 83 | G30: North Carolina | H30: 2 | I30: 1
A31: 2020-01-29 | B31: 21 | C31: 7 | D31: 48 | E31: 17 | F31: 93 | G31: North Carolina | H31: 3 | I31: 1
A32: 2020-01-30 | B32: 13 | C32: 10 | D32: 41 | E32: 9 | F32: 73 | G32: North Carolina | H32: 4 | I32: 1
A33: 2020-01-31 | B33: 11 | C33: 14 | D33: 71 | E33: 27 | F33: 123 | G33: North Carolina | H33: 5 | I33: 1
A34: 2020-02-01 | B34: 13 | C34: 3 | D34: 75 | E34: 27 | F34: 118 | G34: North Dakota | H34: 6 | I34: 2
A35: 2020-02-02 | B35: 4 | C35: 5 | D35: 14 | E35: 7 | F35: 30 | G35: North Dakota | H35: 7 | I35: 2
A36: 2020-02-03 | B36: 11 | C36: 26 | D36: 30 | E36: 12 | F36: 79 | G36: North Dakota | H36: 1 | I36: 2
A37: 2020-02-04 | B37: 5 | C37: 26 | D37: 41 | E37: 26 | F37: 98 | G37: North Dakota | H37: 2 | I37: 2
A38: 2020-02-05 | B38: 17 | C38: 4 | D38: 50 | E38: 10 | F38: 81 | G38: North Dakota | H38: 3 | I38: 2
A39: 2020-02-06 | B39: 3 | C39: 3 | D39: 27 | E39: 15 | F39: 48 | G39: North Dakota | H39: 4 | I39: 2
A40: 2020-02-07 | B40: 25 | C40: 3 | D40: 60 | E40: 7 | F40: 95 | G40: North Dakota | H40: 5 | I40: 2
A41: 2020-02-08 | B41: 14 | C41: 19 | D41: 94 | E41: 20 | F41: 147 | G41: North Dakota | H41: 6 | I41: 2
A42: 2020-02-09 | B42: 3 | C42: 6 | D42: 31 | E42: 1 | F42: 41 | G42: North Dakota | H42: 7 | I42: 2
A43: 2020-02-10 | B43: 20 | C43: 18 | D43: 21 | E43: 5 | F43: 64 | G43: North Dakota | H43: 1 | I43: 2
A44: 2020-02-11 | B44: 27 | C44: 11 | D44: 75 | E44: 28 | F44: 141 | G44: North Dakota | H44: 2 | I44: 2
A45: 2020-02-12 | B45: 25 | C45: 22 | D45: 13 | E45: 7 | F45: 67 | G45: North Dakota | H45: 3 | I45: 2
A46: 2020-02-13 | B46: 13 | C46: 4 | D46: 7 | E46: 6 | F46: 30 | G46: North Dakota | H46: 4 | I46: 2
A47: 2020-02-14 | B47: 29 | C47: 10 | D47: 22 | E47: 11 | F47: 72 | G47: North Dakota | H47: 5 | I47: 2
A48: 2020-02-15 | B48: 3 | C48: 4 | D48: 61 | E48: 24 | F48: 92 | G48: North Dakota | H48: 6 | I48: 2
A49: 2020-02-16 | B49: 8 | C49: 9 | D49: 10 | E49: 3 | F49: 30 | G49: North Dakota | H49: 7 | I49: 2
A50: 2020-02-17 | B50: 20 | C50: 19 | D50: 32 | E50: 3 | F50: 74 | G50: North Dakota | H50: 1 | I50: 2
A51: 2020-02-18 | B51: 27 | C51: 23 | D51: 32 | E51: 15 | F51: 97 | G51: North Dakota | H51: 2 | I51: 2
A52: 2020-02-19 | B52: 23 | C52: 5 | D52: 50 | E52: 27 | F52: 105 | G52: North Dakota | H52: 3 | I52: 2
A53: 2020-02-20 | B53: 12 | C53: 2 | D53: 18 | E53: 14 | F53: 46 | G53: North Dakota | H53: 4 | I53: 2
A54: 2020-02-21 | B54: 23 | C54: 15 | D54: 93 | E54: 5 | F54: 136 | G54: North Dakota | H54: 5 | I54: 2
A55: 2020-02-22 | B55: 30 | C55: 6 | D55: 12 | E55: 9 | F55: 57 | G55: North Dakota | H55: 6 | I55: 2
A56: 2020-02-23 | B56: 3 | C56: 8 | D56: 20 | E56: 9 | F56: 40 | G56: North Dakota | H56: 7 | I56: 2
A57: 2020-02-24 | B57: 13 | C57: 30 | D57: 86 | E57: 13 | F57: 142 | G57: North Dakota | H57: 1 | I57: 2
A58: 2020-02-25 | B58: 7 | C58: 27 | D58: 70 | E58: 24 | F58: 128 | G58: North Dakota | H58: 2 | I58: 2
A59: 2020-02-26 | B59: 29 | C59: 16 | D59: 67 | E59: 4 | F59: 116 | G59: North Dakota | H59: 3 | I59: 2
A60: 2020-02-27 | B60: 9 | C60: 10 | D60: 6 | E60: 2 | F60: 27 | G60: North Dakota | H60: 4 | I60: 2
A61: 2020-02-28 | B61: 24 | C61: 27 | D61: 30 | E61: 15 | F61: 96 | G61: North Dakota | H61: 5 | I61: 2
A62: 2020-02-29 | B62: 4 | C62: 5 | D62: 72 | E62: 7 | F62: 88 | G62: North Dakota | H62: 6 | I62: 2
A63: 2020-03-01 | B63: 1 | C63: 4 | D63: 4 | E63: 7 | F63: 16 | G63: Ohio | H63: 7 | I63: 3
A64: 2020-03-02 | B64: 8 | C64: 15 | D64: 59 | E64: 13 | F64: 95 | G64: Ohio | H64: 1 | I64: 3
A65: 2020-03-03 | B65: 27 | C65: 15 | D65: 82 | E65: 15 | F65: 139 | G65: Ohio | H65: 2 | I65: 3
A66: 2020-03-04 | B66: 3 | C66: 10 | D66: 35 | E66: 30 | F66: 78 | G66: Ohio | H66: 3 | I66: 3
A67: 2020-03-05 | B67: 11 | C67: 12 | D67: 18 | E67: 8 | F67: 49 | G67: Ohio | H67: 4 | I67: 3
A68: 2020-03-06 | B68: 29 | C68: 20 | D68: 87 | E68: 15 | F68: =SUM(B68:E68) -> 151 | G68: Ohio | H68: =WEEKDAY(A68,2) -> 5 | I68: =MONTH(A68) -> 3
A69: 2020-03-07 | B69: 6 | C69: 15 | D69: 41 | E69: 10 | F69: 72 | G69: Ohio | H69: 6 | I69: 3
A70: 2020-03-08 | B70: 3 | C70: 9 | D70: 8 | E70: 10 | F70: 30 | G70: Ohio | H70: 7 | I70: 3
A71: 2020-03-09 | B71: 27 | C71: 21 | D71: 65 | E71: 7 | F71: 120 | G71: Ohio | H71: 1 | I71: 3
A72: 2020-03-10 | B72: 7 | C72: 24 | D72: 27 | E72: 15 | F72: 73 | G72: Ohio | H72: 2 | I72: 3
A73: 2020-03-11 | B73: 9 | C73: 17 | D73: 97 | E73: 5 | F73: 128 | G73: Ohio | H73: 3 | I73: 3
A74: 2020-03-12 | B74: 8 | C74: 8 | D74: 10 | E74: 15 | F74: 41 | G74: Ohio | H74: 4 | I74: 3
A75: 2020-03-13 | B75: 29 | C75: 24 | D75: 27 | E75: 16 | F75: 96 | G75: Ohio | H75: 5 | I75: 3
A76: 2020-03-14 | B76: 6 | C76: 26 | D76: 49 | E76: 18 | F76: 99 | G76: Ohio | H76: 6 | I76: 3
A77: 2020-03-15 | B77: 8 | C77: 4 | D77: 25 | E77: 4 | F77: 41 | G77: Ohio | H77: 7 | I77: 3
A78: 2020-03-16 | B78: 16 | C78: 15 | D78: 46 | E78: 23 | F78: 100 | G78: Ohio | H78: 1 | I78: 3
A79: 2020-03-17 | B79: 11 | C79: 6 | D79: 23 | E79: 29 | F79: 69 | G79: Ohio | H79: 2 | I79: 3
A80: 2020-03-18 | B80: 12 | C80: 25 | D80: 65 | E80: 20 | F80: 122 | G80: Ohio | H80: 3 | I80: 3
A81: 2020-03-19 | B81: 10 | C81: 9 | D81: 25 | E81: 5 | F81: 49 | G81: Ohio | H81: 4 | I81: 3
A82: 2020-03-20 | B82: 9 | C82: 18 | D82: 75 | E82: 4 | F82: 106 | G82: Ohio | H82: 5 | I82: 3
A83: 2020-03-21 | B83: 15 | C83: 20 | D83: 74 | E83: 29 | F83: 138 | G83: Ohio | H83: 6 | I83: 3
A84: 2020-03-22 | B84: 1 | C84: 8 | D84: 8 | E84: 2 | F84: 19 | G84: Ohio | H84: 7 | I84: 3
A85: 2020-03-23 | B85: 20 | C85: 8 | D85: 12 | E85: 20 | F85: 60 | G85: Ohio | H85: 1 | I85: 3
A86: 2020-03-24 | B86: 3 | C86: 14 | D86: 82 | E86: 15 | F86: 114 | G86: Ohio | H86: 2 | I86: 3
A87: 2020-03-25 | B87: 16 | C87: 4 | D87: 67 | E87: 26 | F87: 113 | G87: Ohio | H87: 3 | I87: 3
A88: 2020-03-26 | B88: 8 | C88: 15 | D88: 9 | E88: 6 | F88: 38 | G88: Ohio | H88: 4 | I88: 3
A89: 2020-03-27 | B89: 19 | C89: 7 | D89: 81 | E89: 17 | F89: 124 | G89: Ohio | H89: 5 | I89: 3
A90: 2020-03-28 | B90: 14 | C90: 6 | D90: 19 | E90: 29 | F90: 68 | G90: Ohio | H90: 6 | I90: 3
A91: 2020-03-29 | B91: 7 | C91: 7 | D91: 20 | E91: 2 | F91: 36 | G91: Ohio | H91: 7 | I91: 3
A92: 2020-03-30 | B92: 27 | C92: 23 | D92: 12 | E92: 13 | F92: 75 | G92: Ohio | H92: 1 | I92: 3
A93: 2020-03-31 | B93: 21 | C93: 28 | D93: 18 | E93: 30 | F93: 97 | G93: Ohio | H93: 2 | I93: 3
A94: 2020-04-01 | B94: 25 | C94: 26 | D94: 25 | E94: 27 | F94: 103 | G94: Oklahoma | H94: 3 | I94: 4
A95: 2020-04-02 | B95: 12 | C95: 5 | D95: 6 | E95: 14 | F95: 37 | G95: Oklahoma | H95: 4 | I95: 4
A96: 2020-04-03 | B96: 22 | C96: 22 | D96: 55 | E96: 27 | F96: 126 | G96: Oklahoma | H96: 5 | I96: 4
A97: 2020-04-04 | B97: 22 | C97: 28 | D97: 70 | E97: 16 | F97: 136 | G97: Oklahoma | H97: 6 | I97: 4
A98: 2020-04-05 | B98: 9 | C98: 9 | D98: 29 | E98: 8 | F98: 55 | G98: Oklahoma | H98: 7 | I98: 4
A99: 2020-04-06 | B99: 29 | C99: 9 | D99: 24 | E99: 15 | F99: 77 | G99: Oklahoma | H99: 1 | I99: 4
A100: 2020-04-07 | B100: 30 | C100: 29 | D100: 97 | E100: 28 | F100: 184 | G100: Oklahoma | H100: 2 | I100: 4
A101: 2020-04-08 | B101: 24 | C101: 6 | D101: 43 | E101: 27 | F101: 100 | G101: Oklahoma | H101: 3 | I101: 4
A102: 2020-04-09 | B102: 7 | C102: 10 | D102: 5 | E102: 6 | F102: 28 | G102: Oklahoma | H102: 4 | I102: 4
A103: 2020-04-10 | B103: 11 | C103: 24 | D103: 97 | E103: 18 | F103: 150 | G103: Oklahoma | H103: 5 | I103: 4
A104: 2020-04-11 | B104: 14 | C104: 17 | D104: 57 | E104: 6 | F104: 94 | G104: Oklahoma | H104: 6 | I104: 4
A105: 2020-04-12 | B105: 7 | C105: 9 | D105: 31 | E105: 8 | F105: 55 | G105: Oklahoma | H105: 7 | I105: 4
A106: 2020-04-13 | B106: 24 | C106: 5 | D106: 71 | E106: 26 | F106: 126 | G106: Oklahoma | H106: 1 | I106: 4
A107: 2020-04-14 | B107: 11 | C107: 14 | D107: 67 | E107: 3 | F107: 95 | G107: Oklahoma | H107: 2 | I107: 4
A108: 2020-04-15 | B108: 15 | C108: 19 | D108: 35 | E108: 7 | F108: 76 | G108: Oklahoma | H108: 3 | I108: 4
A109: 2020-04-16 | B109: 4 | C109: 9 | D109: 11 | E109: 13 | F109: 37 | G109: Oklahoma | H109: 4 | I109: 4
A110: 2020-04-17 | B110: 5 | C110: 15 | D110: 49 | E110: 18 | F110: 87 | G110: Oklahoma | H110: 5 | I110: 4
A111: 2020-04-18 | B111: 27 | C111: 10 | D111: 77 | E111: 5 | F111: 119 | G111: Oklahoma | H111: 6 | I111: 4
A112: 2020-04-19 | B112: 8 | C112: 4 | D112: 18 | E112: 5 | F112: 35 | G112: Oklahoma | H112: 7 | I112: 4
A113: 2020-04-20 | B113: 26 | C113: 30 | D113: 27 | E113: 4 | F113: 87 | G113: Oklahoma | H113: 1 | I113: 4
A114: 2020-04-21 | B114: 24 | C114: 4 | D114: 84 | E114: 29 | F114: 141 | G114: Oklahoma | H114: 2 | I114: 4
A115: 2020-04-22 | B115: 29 | C115: 23 | D115: 88 | E115: 25 | F115: 165 | G115: Oklahoma | H115: 3 | I115: 4
A116: 2020-04-23 | B116: 8 | C116: 9 | D116: 26 | E116: 7 | F116: 50 | G116: Oklahoma | H116: 4 | I116: 4
A117: 2020-04-24 | B117: 13 | C117: 14 | D117: 75 | E117: 29 | F117: 131 | G117: Oklahoma | H117: 5 | I117: 4
A118: 2020-04-25 | B118: 18 | C118: 28 | D118: 21 | E118: 7 | F118: 74 | G118: Oklahoma | H118: 6 | I118: 4
A119: 2020-04-26 | B119: 8 | C119: 7 | D119: 30 | E119: 7 | F119: 52 | G119: Oklahoma | H119: 7 | I119: 4
A120: 2020-04-27 | B120: 26 | C120: 13 | D120: 37 | E120: 12 | F120: 88 | G120: Oklahoma | H120: 1 | I120: 4
A121: 2020-04-28 | B121: 26 | C121: 22 | D121: 20 | E121: 20 | F121: 88 | G121: Oklahoma | H121: 2 | I121: 4
A122: 2020-04-29 | B122: 25 | C122: 4 | D122: 100 | E122: 22 | F122: 151 | G122: Oklahoma | H122: 3 | I122: 4
A123: 2020-04-30 | B123: 3 | C123: 1 | D123: 18 | E123: 4 | F123: 26 | G123: Oklahoma | H123: 4 | I123: 4
A124: 2020-05-01 | B124: 24 | C124: 29 | D124: 85 | E124: 23 | F124: 161 | G124: Oregon | H124: 5 | I124: 5
A125: 2020-05-02 | B125: 26 | C125: 13 | D125: 88 | E125: 26 | F125: 153 | G125: Oregon | H125: 6 | I125: 5
A126: 2020-05-03 | B126: 3 | C126: 6 | D126: 24 | E126: 5 | F126: 38 | G126: Oregon | H126: 7 | I126: 5
A127: 2020-05-04 | B127: 27 | C127: 5 | D127: 80 | E127: 20 | F127: 132 | G127: Oregon | H127: 1 | I127: 5
A128: 2020-05-05 | B128: 28 | C128: 24 | D128: 19 | E128: 26 | F128: 97 | G128: Oregon | H128: 2 | I128: 5
A129: 2020-05-06 | B129: 9 | C129: 4 | D129: 37 | E129: 25 | F129: 75 | G129: Oregon | H129: 3 | I129: 5
A130: 2020-05-07 | B130: 3 | C130: 8 | D130: 25 | E130: 5 | F130: 41 | G130: Oregon | H130: 4 | I130: 5
A131: 2020-05-08 | B131: 16 | C131: 20 | D131: 40 | E131: 3 | F131: 79 | G131: Oregon | H131: 5 | I131: 5
A132: 2020-05-09 | B132: 12 | C132: 3 | D132: 15 | E132: 14 | F132: =SUM(B132:E132) -> 44 | G132: Oregon | H132: =WEEKDAY(A132,2) -> 6 | I132: =MONTH(A132) -> 5
A133: 2020-05-10 | B133: 3 | C133: 6 | D133: 6 | E133: 5 | F133: 20 | G133: Oregon | H133: 7 | I133: 5
A134: 2020-05-11 | B134: 13 | C134: 5 | D134: 64 | E134: 16 | F134: 98 | G134: Oregon | H134: 1 | I134: 5
A135: 2020-05-12 | B135: 15 | C135: 26 | D135: 22 | E135: 28 | F135: 91 | G135: Oregon | H135: 2 | I135: 5
A136: 2020-05-13 | B136: 26 | C136: 22 | D136: 37 | E136: 11 | F136: 96 | G136: Oregon | H136: 3 | I136: 5
A137: 2020-05-14 | B137: 9 | C137: 14 | D137: 11 | E137: 13 | F137: 47 | G137: Oregon | H137: 4 | I137: 5
A138: 2020-05-15 | B138: 29 | C138: 18 | D138: 86 | E138: 18 | F138: 151 | G138: Oregon | H138: 5 | I138: 5
A139: 2020-05-16 | B139: 5 | C139: 22 | D139: 38 | E139: 4 | F139: 69 | G139: Oregon | H139: 6 | I139: 5
A140: 2020-05-17 | B140: 6 | C140: 1 | D140: 7 | E140: 9 | F140: 23 | G140: Oregon | H140: 7 | I140: 5
A141: 2020-05-18 | B141: 17 | C141: 11 | D141: 91 | E141: 11 | F141: 130 | G141: Oregon | H141: 1 | I141: 5
A142: 2020-05-19 | B142: 24 | C142: 3 | D142: 95 | E142: 6 | F142: 128 | G142: Oregon | H142: 2 | I142: 5
A143: 2020-05-20 | B143: 30 | C143: 26 | D143: 80 | E143: 20 | F143: 156 | G143: Oregon | H143: 3 | I143: 5
A144: 2020-05-21 | B144: 14 | C144: 2 | D144: 24 | E144: 9 | F144: 49 | G144: Oregon | H144: 4 | I144: 5
A145: 2020-05-22 | B145: 13 | C145: 28 | D145: 20 | E145: 5 | F145: 66 | G145: Oregon | H145: 5 | I145: 5
A146: 2020-05-23 | B146: 8 | C146: 21 | D146: 85 | E146: 8 | F146: 122 | G146: Oregon | H146: 6 | I146: 5
A147: 2020-05-24 | B147: 2 | C147: 8 | D147: 32 | E147: 1 | F147: 43 | G147: Oregon | H147: 7 | I147: 5
A148: 2020-05-25 | B148: 13 | C148: 26 | D148: 24 | E148: 28 | F148: 91 | G148: Oregon | H148: 1 | I148: 5
A149: 2020-05-26 | B149: 15 | C149: 29 | D149: 91 | E149: 7 | F149: 142 | G149: Oregon | H149: 2 | I149: 5
A150: 2020-05-27 | B150: 30 | C150: 13 | D150: 60 | E150: 9 | F150: 112 | G150: Oregon | H150: 3 | I150: 5
A151: 2020-05-28 | B151: 15 | C151: 5 | D151: 36 | E151: 4 | F151: 60 | G151: Oregon | H151: 4 | I151: 5
A152: 2020-05-29 | B152: 7 | C152: 15 | D152: 41 | E152: 11 | F152: 74 | G152: Oregon | H152: 5 | I152: 5
A153: 2020-05-30 | B153: 14 | C153: 15 | D153: 64 | E153: 28 | F153: 121 | G153: Oregon | H153: 6 | I153: 5
A154: 2020-05-31 | B154: 9 | C154: 1 | D154: 3 | E154: 8 | F154: 21 | G154: Oregon | H154: 7 | I154: 5
A155: 2020-06-01 | B155: 3 | C155: 26 | D155: 25 | E155: 24 | F155: 78 | G155: Pennsylvania | H155: 1 | I155: 6
A156: 2020-06-02 | B156: 21 | C156: 25 | D156: 87 | E156: 19 | F156: 152 | G156: Pennsylvania | H156: 2 | I156: 6
A157: 2020-06-03 | B157: 29 | C157: 29 | D157: 97 | E157: 30 | F157: 185 | G157: Pennsylvania | H157: 3 | I157: 6
A158: 2020-06-04 | B158: 10 | C158: 9 | D158: 50 | E158: 6 | F158: 75 | G158: Pennsylvania | H158: 4 | I158: 6
A159: 2020-06-05 | B159: 10 | C159: 27 | D159: 92 | E159: 15 | F159: 144 | G159: Pennsylvania | H159: 5 | I159: 6
A160: 2020-06-06 | B160: 7 | C160: 12 | D160: 78 | E160: 24 | F160: 121 | G160: Pennsylvania | H160: 6 | I160: 6
A161: 2020-06-07 | B161: 10 | C161: 4 | D161: 24 | E161: 10 | F161: 48 | G161: Pennsylvania | H161: 7 | I161: 6
A162: 2020-06-08 | B162: 23 | C162: 23 | D162: 77 | E162: 17 | F162: 140 | G162: Pennsylvania | H162: 1 | I162: 6
A163: 2020-06-09 | B163: 14 | C163: 17 | D163: 53 | E163: 14 | F163: 98 | G163: Pennsylvania | H163: 2 | I163: 6
A164: 2020-06-10 | B164: 9 | C164: 21 | D164: 30 | E164: 20 | F164: 80 | G164: Pennsylvania | H164: 3 | I164: 6
A165: 2020-06-11 | B165: 4 | C165: 3 | D165: 49 | E165: 6 | F165: 62 | G165: Pennsylvania | H165: 4 | I165: 6
A166: 2020-06-12 | B166: 21 | C166: 12 | D166: 59 | E166: 17 | F166: 109 | G166: Pennsylvania | H166: 5 | I166: 6
A167: 2020-06-13 | B167: 25 | C167: 14 | D167: 67 | E167: 30 | F167: 136 | G167: Pennsylvania | H167: 6 | I167: 6
A168: 2020-06-14 | B168: 3 | C168: 7 | D168: 10 | E168: 7 | F168: 27 | G168: Pennsylvania | H168: 7 | I168: 6
A169: 2020-06-15 | B169: 9 | C169: 9 | D169: 66 | E169: 5 | F169: 89 | G169: Pennsylvania | H169: 1 | I169: 6
A170: 2020-06-16 | B170: 15 | C170: 20 | D170: 42 | E170: 6 | F170: 83 | G170: Pennsylvania | H170: 2 | I170: 6
A171: 2020-06-17 | B171: 6 | C171: 30 | D171: 69 | E171: 13 | F171: 118 | G171: Pennsylvania | H171: 3 | I171: 6
A172: 2020-06-18 | B172: 9 | C172: 12 | D172: 30 | E172: 12 | F172: 63 | G172: Pennsylvania | H172: 4 | I172: 6
A173: 2020-06-19 | B173: 30 | C173: 17 | D173: 49 | E173: 25 | F173: 121 | G173: Pennsylvania | H173: 5 | I173: 6
A174: 2020-06-20 | B174: 28 | C174: 23 | D174: 47 | E174: 4 | F174: 102 | G174: Pennsylvania | H174: 6 | I174: 6
A175: 2020-06-21 | B175: 5 | C175: 9 | D175: 12 | E175: 5 | F175: 31 | G175: Pennsylvania | H175: 7 | I175: 6
A176: 2020-06-22 | B176: 21 | C176: 24 | D176: 73 | E176: 15 | F176: 133 | G176: Pennsylvania | H176: 1 | I176: 6
A177: 2020-06-23 | B177: 22 | C177: 22 | D177: 18 | E177: 6 | F177: 68 | G177: Pennsylvania | H177: 2 | I177: 6
A178: 2020-06-24 | B178: 10 | C178: 10 | D178: 91 | E178: 13 | F178: 124 | G178: Pennsylvania | H178: 3 | I178: 6
A179: 2020-06-25 | B179: 6 | C179: 12 | D179: 19 | E179: 6 | F179: 43 | G179: Pennsylvania | H179: 4 | I179: 6
A180: 2020-06-26 | B180: 3 | C180: 13 | D180: 76 | E180: 10 | F180: 102 | G180: Pennsylvania | H180: 5 | I180: 6
A181: 2020-06-27 | B181: 14 | C181: 22 | D181: 58 | E181: 9 | F181: 103 | G181: Pennsylvania | H181: 6 | I181: 6
A182: 2020-06-28 | B182: 6 | C182: 5 | D182: 29 | E182: 5 | F182: 45 | G182: Pennsylvania | H182: 7 | I182: 6
A183: 2020-06-29 | B183: 26 | C183: 30 | D183: 28 | E183: 17 | F183: 101 | G183: Pennsylvania | H183: 1 | I183: 6
A184: 2020-06-30 | B184: 28 | C184: 11 | D184: 24 | E184: 25 | F184: 88 | G184: Pennsylvania | H184: 2 | I184: 6
A185: 2020-07-01 | B185: 17 | C185: 19 | D185: 29 | E185: 21 | F185: 86 | G185: Rhode Island | H185: 3 | I185: 7
A186: 2020-07-02 | B186: 5 | C186: 12 | D186: 8 | E186: 11 | F186: 36 | G186: Rhode Island | H186: 4 | I186: 7
A187: 2020-07-03 | B187: 7 | C187: 18 | D187: 97 | E187: 30 | F187: 152 | G187: Rhode Island | H187: 5 | I187: 7
A188: 2020-07-04 | B188: 26 | C188: 18 | D188: 48 | E188: 10 | F188: 102 | G188: Rhode Island | H188: 6 | I188: 7
A189: 2020-07-05 | B189: 6 | C189: 7 | D189: 21 | E189: 2 | F189: 36 | G189: Rhode Island | H189: 7 | I189: 7
A190: 2020-07-06 | B190: 18 | C190: 19 | D190: 10 | E190: 23 | F190: 70 | G190: Rhode Island | H190: 1 | I190: 7
A191: 2020-07-07 | B191: 6 | C191: 11 | D191: 54 | E191: 8 | F191: 79 | G191: Rhode Island | H191: 2 | I191: 7
A192: 2020-07-08 | B192: 5 | C192: 26 | D192: 35 | E192: 3 | F192: 69 | G192: Rhode Island | H192: 3 | I192: 7
A193: 2020-07-09 | B193: 7 | C193: 9 | D193: 32 | E193: 7 | F193: 55 | G193: Rhode Island | H193: 4 | I193: 7
A194: 2020-07-10 | B194: 6 | C194: 21 | D194: 80 | E194: 26 | F194: 133 | G194: Rhode Island | H194: 5 | I194: 7
A195: 2020-07-11 | B195: 13 | C195: 3 | D195: 93 | E195: 4 | F195: 113 | G195: Rhode Island | H195: 6 | I195: 7
A196: 2020-07-12 | B196: 9 | C196: 1 | D196: 27 | E196: 6 | F196: =SUM(B196:E196) -> 43 | G196: Rhode Island | H196: =WEEKDAY(A196,2) -> 7 | I196: =MONTH(A196) -> 7
A197: 2020-07-13 | B197: 19 | C197: 19 | D197: 53 | E197: 19 | F197: 110 | G197: Rhode Island | H197: 1 | I197: 7
A198: 2020-07-14 | B198: 15 | C198: 20 | D198: 89 | E198: 9 | F198: 133 | G198: Rhode Island | H198: 2 | I198: 7
A199: 2020-07-15 | B199: 27 | C199: 20 | D199: 87 | E199: 18 | F199: 152 | G199: Rhode Island | H199: 3 | I199: 7
A200: 2020-07-16 | B200: 12 | C200: 4 | D200: 30 | E200: 5 | F200: 51 | G200: Rhode Island | H200: 4 | I200: 7
... 169 more rows

Sheet 5-Manager
A1: Date | B1: Product Groups | F1: Total sales | G1: State | H1: Days of the week | I1: № Month | J1: https://exceltable.com/en/templates/3d-menu-for-dashboard-in-excel
B2: A | C2: B | D2: C | E2: D
A3: 2020-01-01 | B3: 15 | C3: 9 | D3: 8 | E3: 77 | F3: =SUM(B3:E3) -> 109 | G3: Texas | H3: =WEEKDAY(A3,2) -> 3 | I3: =MONTH(A3) -> 1
A4: 2020-01-02 | B4: 11 | C4: 5 | D4: 49 | E4: 29 | F4: 94 | G4: Texas | H4: =WEEKDAY(A4,2) -> 4 | I4: =MONTH(A4) -> 1
A5: 2020-01-03 | B5: 20 | C5: 8 | D5: 30 | E5: 19 | F5: 77 | G5: Texas | H5: 5 | I5: 1
A6: 2020-01-04 | B6: 4 | C6: 1 | D6: 22 | E6: 12 | F6: 39 | G6: Texas | H6: 6 | I6: 1
A7: 2020-01-05 | B7: 2 | C7: 3 | D7: 8 | E7: 18 | F7: 31 | G7: Texas | H7: 7 | I7: 1
A8: 2020-01-06 | B8: 7 | C8: 6 | D8: 19 | E8: 85 | F8: 117 | G8: Texas | H8: 1 | I8: 1
A9: 2020-01-07 | B9: 13 | C9: 4 | D9: 19 | E9: 24 | F9: 60 | G9: Texas | H9: 2 | I9: 1
A10: 2020-01-08 | B10: 16 | C10: 6 | D10: 10 | E10: 28 | F10: 60 | G10: Texas | H10: 3 | I10: 1
A11: 2020-01-09 | B11: 16 | C11: 7 | D11: 49 | E11: 89 | F11: 161 | G11: Texas | H11: 4 | I11: 1
A12: 2020-01-10 | B12: 2 | C12: 5 | D12: 25 | E12: 57 | F12: 89 | G12: Texas | H12: 5 | I12: 1
A13: 2020-01-11 | B13: 5 | C13: 1 | D13: 17 | E13: 21 | F13: 44 | G13: Texas | H13: 6 | I13: 1
A14: 2020-01-12 | B14: 6 | C14: 2 | D14: 2 | E14: 16 | F14: 26 | G14: Texas | H14: 7 | I14: 1
A15: 2020-01-13 | B15: 11 | C15: 10 | D15: 29 | E15: 48 | F15: 98 | G15: Texas | H15: 1 | I15: 1
A16: 2020-01-14 | B16: 15 | C16: 6 | D16: 48 | E16: 96 | F16: 165 | G16: Texas | H16: 2 | I16: 1
A17: 2020-01-15 | B17: 5 | C17: 10 | D17: 12 | E17: 30 | F17: 57 | G17: Texas | H17: 3 | I17: 1
A18: 2020-01-16 | B18: 16 | C18: 2 | D18: 26 | E18: 72 | F18: 116 | G18: Texas | H18: 4 | I18: 1
A19: 2020-01-17 | B19: 17 | C19: 5 | D19: 44 | E19: 47 | F19: 113 | G19: Texas | H19: 5 | I19: 1
A20: 2020-01-18 | B20: 5 | C20: 3 | D20: 14 | E20: 8 | F20: 30 | G20: Texas | H20: 6 | I20: 1
A21: 2020-01-19 | B21: 5 | C21: 0 | D21: 1 | E21: 5 | F21: 11 | G21: Texas | H21: 7 | I21: 1
A22: 2020-01-20 | B22: 18 | C22: 2 | D22: 26 | E22: 53 | F22: 99 | G22: Texas | H22: 1 | I22: 1
A23: 2020-01-21 | B23: 5 | C23: 6 | D23: 49 | E23: 31 | F23: 91 | G23: Texas | H23: 2 | I23: 1
A24: 2020-01-22 | B24: 5 | C24: 5 | D24: 33 | E24: 68 | F24: 111 | G24: Texas | H24: 3 | I24: 1
A25: 2020-01-23 | B25: 11 | C25: 7 | D25: 8 | E25: 75 | F25: 101 | G25: Texas | H25: 4 | I25: 1
A26: 2020-01-24 | B26: 6 | C26: 5 | D26: 33 | E26: 56 | F26: 100 | G26: Texas | H26: 5 | I26: 1
A27: 2020-01-25 | B27: 9 | C27: 4 | D27: 14 | E27: 11 | F27: 38 | G27: Texas | H27: 6 | I27: 1
A28: 2020-01-26 | B28: 4 | C28: 1 | D28: 10 | E28: 31 | F28: 46 | G28: Texas | H28: 7 | I28: 1
A29: 2020-01-27 | B29: 12 | C29: 2 | D29: 40 | E29: 79 | F29: 133 | G29: Texas | H29: 1 | I29: 1
A30: 2020-01-28 | B30: 20 | C30: 6 | D30: 6 | E30: 92 | F30: 124 | G30: Texas | H30: 2 | I30: 1
A31: 2020-01-29 | B31: 5 | C31: 5 | D31: 40 | E31: 55 | F31: 105 | G31: Texas | H31: 3 | I31: 1
A32: 2020-01-30 | B32: 5 | C32: 7 | D32: 8 | E32: 59 | F32: 79 | G32: Texas | H32: 4 | I32: 1
A33: 2020-01-31 | B33: 6 | C33: 7 | D33: 31 | E33: 27 | F33: 71 | G33: Texas | H33: 5 | I33: 1
A34: 2020-02-01 | B34: 7 | C34: 1 | D34: 10 | E34: 5 | F34: 23 | G34: Utah | H34: 6 | I34: 2
A35: 2020-02-02 | B35: 3 | C35: 0 | D35: 2 | E35: 31 | F35: 36 | G35: Utah | H35: 7 | I35: 2
A36: 2020-02-03 | B36: 5 | C36: 8 | D36: 8 | E36: 33 | F36: 54 | G36: Utah | H36: 1 | I36: 2
A37: 2020-02-04 | B37: 12 | C37: 3 | D37: 19 | E37: 78 | F37: 112 | G37: Utah | H37: 2 | I37: 2
A38: 2020-02-05 | B38: 7 | C38: 5 | D38: 38 | E38: 28 | F38: 78 | G38: Utah | H38: 3 | I38: 2
A39: 2020-02-06 | B39: 16 | C39: 10 | D39: 24 | E39: 70 | F39: 120 | G39: Utah | H39: 4 | I39: 2
A40: 2020-02-07 | B40: 3 | C40: 6 | D40: 6 | E40: 32 | F40: 47 | G40: Utah | H40: 5 | I40: 2
A41: 2020-02-08 | B41: 10 | C41: 2 | D41: 9 | E41: 31 | F41: 52 | G41: Utah | H41: 6 | I41: 2
A42: 2020-02-09 | B42: 4 | C42: 1 | D42: 3 | E42: 18 | F42: 26 | G42: Utah | H42: 7 | I42: 2
A43: 2020-02-10 | B43: 6 | C43: 4 | D43: 12 | E43: 54 | F43: 76 | G43: Utah | H43: 1 | I43: 2
A44: 2020-02-11 | B44: 15 | C44: 6 | D44: 10 | E44: 63 | F44: 94 | G44: Utah | H44: 2 | I44: 2
A45: 2020-02-12 | B45: 6 | C45: 8 | D45: 17 | E45: 29 | F45: 60 | G45: Utah | H45: 3 | I45: 2
A46: 2020-02-13 | B46: 17 | C46: 3 | D46: 50 | E46: 40 | F46: 110 | G46: Utah | H46: 4 | I46: 2
A47: 2020-02-14 | B47: 17 | C47: 2 | D47: 6 | E47: 62 | F47: 87 | G47: Utah | H47: 5 | I47: 2
A48: 2020-02-15 | B48: 2 | C48: 2 | D48: 21 | E48: 33 | F48: 58 | G48: Utah | H48: 6 | I48: 2
A49: 2020-02-16 | B49: 2 | C49: 0 | D49: 12 | E49: 15 | F49: 29 | G49: Utah | H49: 7 | I49: 2
A50: 2020-02-17 | B50: 6 | C50: 9 | D50: 18 | E50: 10 | F50: 43 | G50: Utah | H50: 1 | I50: 2
A51: 2020-02-18 | B51: 16 | C51: 8 | D51: 13 | E51: 76 | F51: 113 | G51: Utah | H51: 2 | I51: 2
A52: 2020-02-19 | B52: 7 | C52: 1 | D52: 49 | E52: 16 | F52: 73 | G52: Utah | H52: 3 | I52: 2
A53: 2020-02-20 | B53: 4 | C53: 9 | D53: 16 | E53: 25 | F53: 54 | G53: Utah | H53: 4 | I53: 2
A54: 2020-02-21 | B54: 19 | C54: 8 | D54: 36 | E54: 97 | F54: 160 | G54: Utah | H54: 5 | I54: 2
A55: 2020-02-22 | B55: 4 | C55: 3 | D55: 15 | E55: 35 | F55: 57 | G55: Utah | H55: 6 | I55: 2
A56: 2020-02-23 | B56: 5 | C56: 2 | D56: 3 | E56: 7 | F56: 17 | G56: Utah | H56: 7 | I56: 2
A57: 2020-02-24 | B57: 19 | C57: 2 | D57: 29 | E57: 74 | F57: 124 | G57: Utah | H57: 1 | I57: 2
A58: 2020-02-25 | B58: 3 | C58: 8 | D58: 32 | E58: 80 | F58: 123 | G58: Utah | H58: 2 | I58: 2
A59: 2020-02-26 | B59: 14 | C59: 1 | D59: 15 | E59: 77 | F59: 107 | G59: Utah | H59: 3 | I59: 2
A60: 2020-02-27 | B60: 8 | C60: 9 | D60: 16 | E60: 40 | F60: 73 | G60: Utah | H60: 4 | I60: 2
A61: 2020-02-28 | B61: 2 | C61: 1 | D61: 37 | E61: 37 | F61: 77 | G61: Utah | H61: 5 | I61: 2
A62: 2020-02-29 | B62: 3 | C62: 4 | D62: 11 | E62: 39 | F62: 57 | G62: Utah | H62: 6 | I62: 2
A63: 2020-03-01 | B63: 6 | C63: 2 | D63: 4 | E63: 17 | F63: 29 | G63: Vermont | H63: 7 | I63: 3
A64: 2020-03-02 | B64: 17 | C64: 2 | D64: 14 | E64: 44 | F64: 77 | G64: Vermont | H64: 1 | I64: 3
A65: 2020-03-03 | B65: 4 | C65: 2 | D65: 38 | E65: 45 | F65: 89 | G65: Vermont | H65: 2 | I65: 3
A66: 2020-03-04 | B66: 14 | C66: 8 | D66: 38 | E66: 56 | F66: 116 | G66: Vermont | H66: 3 | I66: 3
A67: 2020-03-05 | B67: 8 | C67: 4 | D67: 18 | E67: 77 | F67: 107 | G67: Vermont | H67: 4 | I67: 3
A68: 2020-03-06 | B68: 3 | C68: 5 | D68: 23 | E68: 38 | F68: =SUM(B68:E68) -> 69 | G68: Vermont | H68: =WEEKDAY(A68,2) -> 5 | I68: =MONTH(A68) -> 3
A69: 2020-03-07 | B69: 9 | C69: 4 | D69: 24 | E69: 28 | F69: 65 | G69: Vermont | H69: 6 | I69: 3
A70: 2020-03-08 | B70: 1 | C70: 1 | D70: 11 | E70: 14 | F70: 27 | G70: Vermont | H70: 7 | I70: 3
A71: 2020-03-09 | B71: 3 | C71: 9 | D71: 16 | E71: 54 | F71: 82 | G71: Vermont | H71: 1 | I71: 3
A72: 2020-03-10 | B72: 10 | C72: 8 | D72: 23 | E72: 42 | F72: 83 | G72: Vermont | H72: 2 | I72: 3
A73: 2020-03-11 | B73: 10 | C73: 1 | D73: 41 | E73: 28 | F73: 80 | G73: Vermont | H73: 3 | I73: 3
A74: 2020-03-12 | B74: 2 | C74: 5 | D74: 13 | E74: 75 | F74: 95 | G74: Vermont | H74: 4 | I74: 3
A75: 2020-03-13 | B75: 15 | C75: 6 | D75: 9 | E75: 97 | F75: 127 | G75: Vermont | H75: 5 | I75: 3
A76: 2020-03-14 | B76: 1 | C76: 1 | D76: 4 | E76: 47 | F76: 53 | G76: Vermont | H76: 6 | I76: 3
A77: 2020-03-15 | B77: 2 | C77: 3 | D77: 2 | E77: 11 | F77: 18 | G77: Vermont | H77: 7 | I77: 3
A78: 2020-03-16 | B78: 19 | C78: 6 | D78: 6 | E78: 53 | F78: 84 | G78: Vermont | H78: 1 | I78: 3
A79: 2020-03-17 | B79: 12 | C79: 4 | D79: 11 | E79: 48 | F79: 75 | G79: Vermont | H79: 2 | I79: 3
A80: 2020-03-18 | B80: 13 | C80: 7 | D80: 32 | E80: 12 | F80: 64 | G80: Vermont | H80: 3 | I80: 3
A81: 2020-03-19 | B81: 5 | C81: 2 | D81: 22 | E81: 56 | F81: 85 | G81: Vermont | H81: 4 | I81: 3
A82: 2020-03-20 | B82: 5 | C82: 9 | D82: 18 | E82: 73 | F82: 105 | G82: Vermont | H82: 5 | I82: 3
A83: 2020-03-21 | B83: 8 | C83: 1 | D83: 15 | E83: 50 | F83: 74 | G83: Vermont | H83: 6 | I83: 3
A84: 2020-03-22 | B84: 4 | C84: 2 | D84: 4 | E84: 23 | F84: 33 | G84: Vermont | H84: 7 | I84: 3
A85: 2020-03-23 | B85: 20 | C85: 10 | D85: 48 | E85: 96 | F85: 174 | G85: Vermont | H85: 1 | I85: 3
A86: 2020-03-24 | B86: 6 | C86: 2 | D86: 22 | E86: 12 | F86: 42 | G86: Vermont | H86: 2 | I86: 3
A87: 2020-03-25 | B87: 16 | C87: 5 | D87: 43 | E87: 16 | F87: 80 | G87: Vermont | H87: 3 | I87: 3
A88: 2020-03-26 | B88: 18 | C88: 3 | D88: 36 | E88: 93 | F88: 150 | G88: Vermont | H88: 4 | I88: 3
A89: 2020-03-27 | B89: 15 | C89: 2 | D89: 25 | E89: 92 | F89: 134 | G89: Vermont | H89: 5 | I89: 3
A90: 2020-03-28 | B90: 5 | C90: 3 | D90: 17 | E90: 15 | F90: 40 | G90: Vermont | H90: 6 | I90: 3
A91: 2020-03-29 | B91: 6 | C91: 1 | D91: 5 | E91: 25 | F91: 37 | G91: Vermont | H91: 7 | I91: 3
A92: 2020-03-30 | B92: 17 | C92: 10 | D92: 18 | E92: 91 | F92: 136 | G92: Vermont | H92: 1 | I92: 3
A93: 2020-03-31 | B93: 3 | C93: 5 | D93: 50 | E93: 94 | F93: 152 | G93: Vermont | H93: 2 | I93: 3
A94: 2020-04-01 | B94: 9 | C94: 5 | D94: 21 | E94: 43 | F94: 78 | G94: Virginia | H94: 3 | I94: 4
A95: 2020-04-02 | B95: 8 | C95: 9 | D95: 34 | E95: 45 | F95: 96 | G95: Virginia | H95: 4 | I95: 4
A96: 2020-04-03 | B96: 11 | C96: 1 | D96: 10 | E96: 59 | F96: 81 | G96: Virginia | H96: 5 | I96: 4
A97: 2020-04-04 | B97: 9 | C97: 3 | D97: 25 | E97: 29 | F97: 66 | G97: Virginia | H97: 6 | I97: 4
A98: 2020-04-05 | B98: 1 | C98: 1 | D98: 12 | E98: 16 | F98: 30 | G98: Virginia | H98: 7 | I98: 4
A99: 2020-04-06 | B99: 19 | C99: 5 | D99: 12 | E99: 47 | F99: 83 | G99: Virginia | H99: 1 | I99: 4
A100: 2020-04-07 | B100: 14 | C100: 8 | D100: 12 | E100: 49 | F100: 83 | G100: Virginia | H100: 2 | I100: 4
A101: 2020-04-08 | B101: 4 | C101: 7 | D101: 15 | E101: 99 | F101: 125 | G101: Virginia | H101: 3 | I101: 4
A102: 2020-04-09 | B102: 17 | C102: 8 | D102: 31 | E102: 25 | F102: 81 | G102: Virginia | H102: 4 | I102: 4
A103: 2020-04-10 | B103: 8 | C103: 3 | D103: 18 | E103: 20 | F103: 49 | G103: Virginia | H103: 5 | I103: 4
A104: 2020-04-11 | B104: 7 | C104: 4 | D104: 19 | E104: 49 | F104: 79 | G104: Virginia | H104: 6 | I104: 4
A105: 2020-04-12 | B105: 5 | C105: 2 | D105: 10 | E105: 27 | F105: 44 | G105: Virginia | H105: 7 | I105: 4
A106: 2020-04-13 | B106: 5 | C106: 3 | D106: 18 | E106: 14 | F106: 40 | G106: Virginia | H106: 1 | I106: 4
A107: 2020-04-14 | B107: 10 | C107: 1 | D107: 43 | E107: 62 | F107: 116 | G107: Virginia | H107: 2 | I107: 4
A108: 2020-04-15 | B108: 9 | C108: 1 | D108: 21 | E108: 64 | F108: 95 | G108: Virginia | H108: 3 | I108: 4
A109: 2020-04-16 | B109: 7 | C109: 5 | D109: 48 | E109: 98 | F109: 158 | G109: Virginia | H109: 4 | I109: 4
A110: 2020-04-17 | B110: 2 | C110: 9 | D110: 38 | E110: 56 | F110: 105 | G110: Virginia | H110: 5 | I110: 4
A111: 2020-04-18 | B111: 8 | C111: 1 | D111: 3 | E111: 21 | F111: 33 | G111: Virginia | H111: 6 | I111: 4
A112: 2020-04-19 | B112: 5 | C112: 2 | D112: 2 | E112: 8 | F112: 17 | G112: Virginia | H112: 7 | I112: 4
A113: 2020-04-20 | B113: 20 | C113: 8 | D113: 6 | E113: 72 | F113: 106 | G113: Virginia | H113: 1 | I113: 4
A114: 2020-04-21 | B114: 20 | C114: 5 | D114: 10 | E114: 22 | F114: 57 | G114: Virginia | H114: 2 | I114: 4
A115: 2020-04-22 | B115: 15 | C115: 1 | D115: 15 | E115: 96 | F115: 127 | G115: Virginia | H115: 3 | I115: 4
A116: 2020-04-23 | B116: 17 | C116: 9 | D116: 23 | E116: 33 | F116: 82 | G116: Virginia | H116: 4 | I116: 4
A117: 2020-04-24 | B117: 12 | C117: 7 | D117: 32 | E117: 35 | F117: 86 | G117: Virginia | H117: 5 | I117: 4
A118: 2020-04-25 | B118: 5 | C118: 1 | D118: 15 | E118: 41 | F118: 62 | G118: Virginia | H118: 6 | I118: 4
A119: 2020-04-26 | B119: 3 | C119: 2 | D119: 5 | E119: 19 | F119: 29 | G119: Virginia | H119: 7 | I119: 4
A120: 2020-04-27 | B120: 13 | C120: 8 | D120: 15 | E120: 81 | F120: 117 | G120: Virginia | H120: 1 | I120: 4
A121: 2020-04-28 | B121: 10 | C121: 4 | D121: 46 | E121: 87 | F121: 147 | G121: Virginia | H121: 2 | I121: 4
A122: 2020-04-29 | B122: 18 | C122: 2 | D122: 26 | E122: 14 | F122: 60 | G122: Virginia | H122: 3 | I122: 4
A123: 2020-04-30 | B123: 5 | C123: 2 | D123: 44 | E123: 83 | F123: 134 | G123: Virginia | H123: 4 | I123: 4
A124: 2020-05-01 | B124: 7 | C124: 7 | D124: 28 | E124: 32 | F124: 74 | G124: Washington | H124: 5 | I124: 5
A125: 2020-05-02 | B125: 3 | C125: 4 | D125: 10 | E125: 37 | F125: 54 | G125: Washington | H125: 6 | I125: 5
A126: 2020-05-03 | B126: 1 | C126: 0 | D126: 6 | E126: 13 | F126: 20 | G126: Washington | H126: 7 | I126: 5
A127: 2020-05-04 | B127: 18 | C127: 3 | D127: 38 | E127: 17 | F127: 76 | G127: Washington | H127: 1 | I127: 5
A128: 2020-05-05 | B128: 15 | C128: 10 | D128: 6 | E128: 47 | F128: 78 | G128: Washington | H128: 2 | I128: 5
A129: 2020-05-06 | B129: 6 | C129: 7 | D129: 30 | E129: 39 | F129: 82 | G129: Washington | H129: 3 | I129: 5
A130: 2020-05-07 | B130: 5 | C130: 4 | D130: 40 | E130: 31 | F130: 80 | G130: Washington | H130: 4 | I130: 5
A131: 2020-05-08 | B131: 20 | C131: 9 | D131: 47 | E131: 22 | F131: 98 | G131: Washington | H131: 5 | I131: 5
A132: 2020-05-09 | B132: 3 | C132: 4 | D132: 23 | E132: 13 | F132: =SUM(B132:E132) -> 43 | G132: Washington | H132: =WEEKDAY(A132,2) -> 6 | I132: =MONTH(A132) -> 5
A133: 2020-05-10 | B133: 1 | C133: 3 | D133: 16 | E133: 21 | F133: 41 | G133: Washington | H133: 7 | I133: 5
A134: 2020-05-11 | B134: 18 | C134: 4 | D134: 13 | E134: 65 | F134: 100 | G134: Washington | H134: 1 | I134: 5
A135: 2020-05-12 | B135: 20 | C135: 2 | D135: 7 | E135: 77 | F135: 106 | G135: Washington | H135: 2 | I135: 5
A136: 2020-05-13 | B136: 7 | C136: 3 | D136: 47 | E136: 13 | F136: 70 | G136: Washington | H136: 3 | I136: 5
A137: 2020-05-14 | B137: 5 | C137: 1 | D137: 31 | E137: 54 | F137: 91 | G137: Washington | H137: 4 | I137: 5
A138: 2020-05-15 | B138: 3 | C138: 3 | D138: 17 | E138: 88 | F138: 111 | G138: Washington | H138: 5 | I138: 5
A139: 2020-05-16 | B139: 9 | C139: 0 | D139: 7 | E139: 12 | F139: 28 | G139: Washington | H139: 6 | I139: 5
A140: 2020-05-17 | B140: 6 | C140: 3 | D140: 13 | E140: 24 | F140: 46 | G140: Washington | H140: 7 | I140: 5
A141: 2020-05-18 | B141: 12 | C141: 6 | D141: 7 | E141: 60 | F141: 85 | G141: Washington | H141: 1 | I141: 5
A142: 2020-05-19 | B142: 8 | C142: 8 | D142: 12 | E142: 33 | F142: 61 | G142: Washington | H142: 2 | I142: 5
A143: 2020-05-20 | B143: 16 | C143: 7 | D143: 9 | E143: 57 | F143: 89 | G143: Washington | H143: 3 | I143: 5
A144: 2020-05-21 | B144: 17 | C144: 6 | D144: 24 | E144: 29 | F144: 76 | G144: Washington | H144: 4 | I144: 5
A145: 2020-05-22 | B145: 5 | C145: 1 | D145: 24 | E145: 16 | F145: 46 | G145: Washington | H145: 5 | I145: 5
A146: 2020-05-23 | B146: 1 | C146: 1 | D146: 22 | E146: 32 | F146: 56 | G146: Washington | H146: 6 | I146: 5
A147: 2020-05-24 | B147: 5 | C147: 2 | D147: 10 | E147: 20 | F147: 37 | G147: Washington | H147: 7 | I147: 5
A148: 2020-05-25 | B148: 16 | C148: 4 | D148: 6 | E148: 10 | F148: 36 | G148: Washington | H148: 1 | I148: 5
A149: 2020-05-26 | B149: 9 | C149: 8 | D149: 9 | E149: 22 | F149: 48 | G149: Washington | H149: 2 | I149: 5
A150: 2020-05-27 | B150: 16 | C150: 8 | D150: 29 | E150: 30 | F150: 83 | G150: Washington | H150: 3 | I150: 5
A151: 2020-05-28 | B151: 10 | C151: 6 | D151: 33 | E151: 81 | F151: 130 | G151: Washington | H151: 4 | I151: 5
A152: 2020-05-29 | B152: 14 | C152: 9 | D152: 16 | E152: 95 | F152: 134 | G152: Washington | H152: 5 | I152: 5
A153: 2020-05-30 | B153: 9 | C153: 1 | D153: 18 | E153: 20 | F153: 48 | G153: Washington | H153: 6 | I153: 5
A154: 2020-05-31 | B154: 0 | C154: 3 | D154: 10 | E154: 25 | F154: 38 | G154: Washington | H154: 7 | I154: 5
A155: 2020-06-01 | B155: 14 | C155: 9 | D155: 35 | E155: 30 | F155: 88 | G155: West Virginia | H155: 1 | I155: 6
A156: 2020-06-02 | B156: 4 | C156: 6 | D156: 12 | E156: 72 | F156: 94 | G156: West Virginia | H156: 2 | I156: 6
A157: 2020-06-03 | B157: 13 | C157: 6 | D157: 8 | E157: 73 | F157: 100 | G157: West Virginia | H157: 3 | I157: 6
A158: 2020-06-04 | B158: 17 | C158: 5 | D158: 16 | E158: 84 | F158: 122 | G158: West Virginia | H158: 4 | I158: 6
A159: 2020-06-05 | B159: 14 | C159: 1 | D159: 40 | E159: 91 | F159: 146 | G159: West Virginia | H159: 5 | I159: 6
A160: 2020-06-06 | B160: 4 | C160: 1 | D160: 19 | E160: 26 | F160: 50 | G160: West Virginia | H160: 6 | I160: 6
A161: 2020-06-07 | B161: 6 | C161: 1 | D161: 2 | E161: 11 | F161: 20 | G161: West Virginia | H161: 7 | I161: 6
A162: 2020-06-08 | B162: 8 | C162: 10 | D162: 15 | E162: 70 | F162: 103 | G162: West Virginia | H162: 1 | I162: 6
A163: 2020-06-09 | B163: 6 | C163: 10 | D163: 13 | E163: 34 | F163: 63 | G163: West Virginia | H163: 2 | I163: 6
A164: 2020-06-10 | B164: 9 | C164: 1 | D164: 30 | E164: 15 | F164: 55 | G164: West Virginia | H164: 3 | I164: 6
A165: 2020-06-11 | B165: 8 | C165: 5 | D165: 9 | E165: 41 | F165: 63 | G165: West Virginia | H165: 4 | I165: 6
A166: 2020-06-12 | B166: 16 | C166: 4 | D166: 36 | E166: 41 | F166: 97 | G166: West Virginia | H166: 5 | I166: 6
A167: 2020-06-13 | B167: 5 | C167: 2 | D167: 2 | E167: 47 | F167: 56 | G167: West Virginia | H167: 6 | I167: 6
A168: 2020-06-14 | B168: 3 | C168: 1 | D168: 15 | E168: 28 | F168: 47 | G168: West Virginia | H168: 7 | I168: 6
A169: 2020-06-15 | B169: 15 | C169: 3 | D169: 47 | E169: 47 | F169: 112 | G169: West Virginia | H169: 1 | I169: 6
A170: 2020-06-16 | B170: 16 | C170: 10 | D170: 37 | E170: 32 | F170: 95 | G170: West Virginia | H170: 2 | I170: 6
A171: 2020-06-17 | B171: 15 | C171: 8 | D171: 28 | E171: 55 | F171: 106 | G171: West Virginia | H171: 3 | I171: 6
A172: 2020-06-18 | B172: 9 | C172: 8 | D172: 32 | E172: 59 | F172: 108 | G172: West Virginia | H172: 4 | I172: 6
A173: 2020-06-19 | B173: 8 | C173: 3 | D173: 10 | E173: 78 | F173: 99 | G173: West Virginia | H173: 5 | I173: 6
A174: 2020-06-20 | B174: 6 | C174: 3 | D174: 22 | E174: 46 | F174: 77 | G174: West Virginia | H174: 6 | I174: 6
A175: 2020-06-21 | B175: 3 | C175: 2 | D175: 4 | E175: 8 | F175: 17 | G175: West Virginia | H175: 7 | I175: 6
A176: 2020-06-22 | B176: 14 | C176: 2 | D176: 41 | E176: 32 | F176: 89 | G176: West Virginia | H176: 1 | I176: 6
A177: 2020-06-23 | B177: 13 | C177: 5 | D177: 19 | E177: 65 | F177: 102 | G177: West Virginia | H177: 2 | I177: 6
A178: 2020-06-24 | B178: 2 | C178: 3 | D178: 43 | E178: 67 | F178: 115 | G178: West Virginia | H178: 3 | I178: 6
A179: 2020-06-25 | B179: 13 | C179: 5 | D179: 9 | E179: 94 | F179: 121 | G179: West Virginia | H179: 4 | I179: 6
A180: 2020-06-26 | B180: 19 | C180: 2 | D180: 38 | E180: 40 | F180: 99 | G180: West Virginia | H180: 5 | I180: 6
A181: 2020-06-27 | B181: 7 | C181: 3 | D181: 2 | E181: 47 | F181: 59 | G181: West Virginia | H181: 6 | I181: 6
A182: 2020-06-28 | B182: 4 | C182: 1 | D182: 16 | E182: 15 | F182: 36 | G182: West Virginia | H182: 7 | I182: 6
A183: 2020-06-29 | B183: 13 | C183: 7 | D183: 17 | E183: 91 | F183: 128 | G183: West Virginia | H183: 1 | I183: 6
A184: 2020-06-30 | B184: 7 | C184: 6 | D184: 41 | E184: 66 | F184: 120 | G184: West Virginia | H184: 2 | I184: 6
A185: 2020-07-01 | B185: 13 | C185: 9 | D185: 26 | E185: 95 | F185: 143 | G185: Wisconsin | H185: 3 | I185: 7
A186: 2020-07-02 | B186: 5 | C186: 7 | D186: 40 | E186: 69 | F186: 121 | G186: Wisconsin | H186: 4 | I186: 7
A187: 2020-07-03 | B187: 11 | C187: 1 | D187: 35 | E187: 62 | F187: 109 | G187: Wisconsin | H187: 5 | I187: 7
A188: 2020-07-04 | B188: 7 | C188: 5 | D188: 22 | E188: 38 | F188: 72 | G188: Wisconsin | H188: 6 | I188: 7
A189: 2020-07-05 | B189: 0 | C189: 0 | D189: 16 | E189: 6 | F189: 22 | G189: Wisconsin | H189: 7 | I189: 7
A190: 2020-07-06 | B190: 3 | C190: 5 | D190: 15 | E190: 80 | F190: 103 | G190: Wisconsin | H190: 1 | I190: 7
A191: 2020-07-07 | B191: 11 | C191: 1 | D191: 5 | E191: 22 | F191: 39 | G191: Wisconsin | H191: 2 | I191: 7
A192: 2020-07-08 | B192: 16 | C192: 2 | D192: 21 | E192: 89 | F192: 128 | G192: Wisconsin | H192: 3 | I192: 7
A193: 2020-07-09 | B193: 5 | C193: 9 | D193: 26 | E193: 54 | F193: 94 | G193: Wisconsin | H193: 4 | I193: 7
A194: 2020-07-10 | B194: 2 | C194: 2 | D194: 7 | E194: 35 | F194: 46 | G194: Wisconsin | H194: 5 | I194: 7
A195: 2020-07-11 | B195: 7 | C195: 4 | D195: 16 | E195: 48 | F195: 75 | G195: Wisconsin | H195: 6 | I195: 7
A196: 2020-07-12 | B196: 3 | C196: 0 | D196: 11 | E196: 25 | F196: =SUM(B196:E196) -> 39 | G196: Wisconsin | H196: =WEEKDAY(A196,2) -> 7 | I196: =MONTH(A196) -> 7
A197: 2020-07-13 | B197: 13 | C197: 8 | D197: 22 | E197: 22 | F197: 65 | G197: Wisconsin | H197: 1 | I197: 7
A198: 2020-07-14 | B198: 9 | C198: 9 | D198: 26 | E198: 36 | F198: 80 | G198: Wisconsin | H198: 2 | I198: 7
A199: 2020-07-15 | B199: 4 | C199: 1 | D199: 11 | E199: 73 | F199: 89 | G199: Wisconsin | H199: 3 | I199: 7
A200: 2020-07-16 | B200: 2 | C200: 5 | D200: 46 | E200: 73 | F200: 126 | G200: Wisconsin | H200: 4 | I200: 7
... 169 more rows

Sheet ALL
A1: Date | B1: Product Groups | F1: Total sales | H1: Days of the week | I1: № Month | K1: State | L1: 1-Manager | M1: 2-Manager | N1: 3-Manager | O1: 4-Manager | P1: 5-Manager | Q1: ALL | R1: https://exceltable.com/en/templates/3d-menu-for-dashboard-in-excel
B2: A | C2: B | D2: C | E2: D | K2: Alabama | L2: =SUMIFS('1-Manager'!$F$3:$F$368,'1-Manager'!$G$3:$G$368,ALL!K2) -> 13784 | M2: =SUMIFS('2-Manager'!$F$3:$F$368,'2-Manager'!$G$3:$G$368,ALL!K2) -> 0 | N2: =SUMIFS('3-Manager'!$F$3:$F$368,'3-Manager'!$G$3:$G$368,ALL!K2) -> 0 | O2: =SUMIFS('4-Manager'!$F$3:$F$368,'4-Manager'!$G$3:$G$368,ALL!K2) -> 0 | P2: =SUMIFS('5-Manager'!$F$3:$F$368,'5-Manager'!$G$3:$G$368,ALL!K2) -> 0 | Q2: =SUM(L2:P2) -> 13784
A3: 2020-01-01 | B3: ='1-Manager'!B3+'2-Manager'!B3+'3-Manager'!B3+'4-Manager'!B3+'5-Manager'!B3 -> 277 | C3: ='1-Manager'!C3+'2-Manager'!C3+'3-Manager'!C3+'4-Manager'!C3+'5-Manager'!C3 -> 205 | D3: ='1-Manager'!D3+'2-Manager'!D3+'3-Manager'!D3+'4-Manager'!D3+'5-Manager'!D3 -> 287 | E3: ='1-Manager'!E3+'2-Manager'!E3+'3-Manager'!E3+'4-Manager'!E3+'5-Manager'!E3 -> 161 | F3: =SUM(B3:E3) -> 930 | H3: =WEEKDAY(A3,2) -> 3 | I3: =MONTH(A3) -> 1 | K3: Arizona | L3: =SUMIFS('1-Manager'!$F$3:$F$368,'1-Manager'!$G$3:$G$368,ALL!K3) -> 13369 | M3: =SUMIFS('2-Manager'!$F$3:$F$368,'2-Manager'!$G$3:$G$368,ALL!K3) -> 0 | N3: =SUMIFS('3-Manager'!$F$3:$F$368,'3-Manager'!$G$3:$G$368,ALL!K3) -> 0 | O3: =SUMIFS('4-Manager'!$F$3:$F$368,'4-Manager'!$G$3:$G$368,ALL!K3) -> 0 | P3: =SUMIFS('5-Manager'!$F$3:$F$368,'5-Manager'!$G$3:$G$368,ALL!K3) -> 0 | Q3: =SUM(L3:P3) -> 13369
A4: 2020-01-02 | B4: ='1-Manager'!B4+'2-Manager'!B4+'3-Manager'!B4+'4-Manager'!B4+'5-Manager'!B4 -> 241 | C4: ='1-Manager'!C4+'2-Manager'!C4+'3-Manager'!C4+'4-Manager'!C4+'5-Manager'!C4 -> 181 | D4: ='1-Manager'!D4+'2-Manager'!D4+'3-Manager'!D4+'4-Manager'!D4+'5-Manager'!D4 -> 342 | E4: ='1-Manager'!E4+'2-Manager'!E4+'3-Manager'!E4+'4-Manager'!E4+'5-Manager'!E4 -> 138 | F4: =SUM(B4:E4) -> 902 | H4: =WEEKDAY(A4,2) -> 4 | I4: =MONTH(A4) -> 1 | K4: Arkansas | L4: =SUMIFS('1-Manager'!$F$3:$F$368,'1-Manager'!$G$3:$G$368,ALL!K4) -> 7209 | M4: =SUMIFS('2-Manager'!$F$3:$F$368,'2-Manager'!$G$3:$G$368,ALL!K4) -> 0 | N4: =SUMIFS('3-Manager'!$F$3:$F$368,'3-Manager'!$G$3:$G$368,ALL!K4) -> 0 | O4: =SUMIFS('4-Manager'!$F$3:$F$368,'4-Manager'!$G$3:$G$368,ALL!K4) -> 0 | P4: =SUMIFS('5-Manager'!$F$3:$F$368,'5-Manager'!$G$3:$G$368,ALL!K4) -> 0 | Q4: 7209
A5: 2020-01-03 | B5: ='1-Manager'!B5+'2-Manager'!B5+'3-Manager'!B5+'4-Manager'!B5+'5-Manager'!B5 -> 300 | C5: ='1-Manager'!C5+'2-Manager'!C5+'3-Manager'!C5+'4-Manager'!C5+'5-Manager'!C5 -> 230 | D5: ='1-Manager'!D5+'2-Manager'!D5+'3-Manager'!D5+'4-Manager'!D5+'5-Manager'!D5 -> 206 | E5: ='1-Manager'!E5+'2-Manager'!E5+'3-Manager'!E5+'4-Manager'!E5+'5-Manager'!E5 -> 68 | F5: 804 | H5: 5 | I5: 1 | K5: California | L5: =SUMIFS('1-Manager'!$F$3:$F$368,'1-Manager'!$G$3:$G$368,ALL!K5) -> 7262 | M5: =SUMIFS('2-Manager'!$F$3:$F$368,'2-Manager'!$G$3:$G$368,ALL!K5) -> 0 | N5: =SUMIFS('3-Manager'!$F$3:$F$368,'3-Manager'!$G$3:$G$368,ALL!K5) -> 0 | O5: =SUMIFS('4-Manager'!$F$3:$F$368,'4-Manager'!$G$3:$G$368,ALL!K5) -> 0 | P5: =SUMIFS('5-Manager'!$F$3:$F$368,'5-Manager'!$G$3:$G$368,ALL!K5) -> 0 | Q5: 7262
A6: 2020-01-04 | B6: ='1-Manager'!B6+'2-Manager'!B6+'3-Manager'!B6+'4-Manager'!B6+'5-Manager'!B6 -> 369 | C6: ='1-Manager'!C6+'2-Manager'!C6+'3-Manager'!C6+'4-Manager'!C6+'5-Manager'!C6 -> 184 | D6: ='1-Manager'!D6+'2-Manager'!D6+'3-Manager'!D6+'4-Manager'!D6+'5-Manager'!D6 -> 367 | E6: ='1-Manager'!E6+'2-Manager'!E6+'3-Manager'!E6+'4-Manager'!E6+'5-Manager'!E6 -> 126 | F6: 1046 | H6: 6 | I6: 1 | K6: Colorado | L6: =SUMIFS('1-Manager'!$F$3:$F$368,'1-Manager'!$G$3:$G$368,ALL!K6) -> 7077 | M6: =SUMIFS('2-Manager'!$F$3:$F$368,'2-Manager'!$G$3:$G$368,ALL!K6) -> 0 | N6: =SUMIFS('3-Manager'!$F$3:$F$368,'3-Manager'!$G$3:$G$368,ALL!K6) -> 0 | O6: =SUMIFS('4-Manager'!$F$3:$F$368,'4-Manager'!$G$3:$G$368,ALL!K6) -> 0 | P6: =SUMIFS('5-Manager'!$F$3:$F$368,'5-Manager'!$G$3:$G$368,ALL!K6) -> 0 | Q6: 7077
A7: 2020-01-05 | B7: ='1-Manager'!B7+'2-Manager'!B7+'3-Manager'!B7+'4-Manager'!B7+'5-Manager'!B7 -> 66 | C7: ='1-Manager'!C7+'2-Manager'!C7+'3-Manager'!C7+'4-Manager'!C7+'5-Manager'!C7 -> 74 | D7: ='1-Manager'!D7+'2-Manager'!D7+'3-Manager'!D7+'4-Manager'!D7+'5-Manager'!D7 -> 52 | E7: ='1-Manager'!E7+'2-Manager'!E7+'3-Manager'!E7+'4-Manager'!E7+'5-Manager'!E7 -> 54 | F7: 246 | H7: 7 | I7: 1 | K7: Connecticut | L7: =SUMIFS('1-Manager'!$F$3:$F$368,'1-Manager'!$G$3:$G$368,ALL!K7) -> 7010 | M7: =SUMIFS('2-Manager'!$F$3:$F$368,'2-Manager'!$G$3:$G$368,ALL!K7) -> 0 | N7: =SUMIFS('3-Manager'!$F$3:$F$368,'3-Manager'!$G$3:$G$368,ALL!K7) -> 0 | O7: =SUMIFS('4-Manager'!$F$3:$F$368,'4-Manager'!$G$3:$G$368,ALL!K7) -> 0 | P7: =SUMIFS('5-Manager'!$F$3:$F$368,'5-Manager'!$G$3:$G$368,ALL!K7) -> 0 | Q7: 7010
A8: 2020-01-06 | B8: ='1-Manager'!B8+'2-Manager'!B8+'3-Manager'!B8+'4-Manager'!B8+'5-Manager'!B8 -> 159 | C8: ='1-Manager'!C8+'2-Manager'!C8+'3-Manager'!C8+'4-Manager'!C8+'5-Manager'!C8 -> 134 | D8: ='1-Manager'!D8+'2-Manager'!D8+'3-Manager'!D8+'4-Manager'!D8+'5-Manager'!D8 -> 256 | E8: ='1-Manager'!E8+'2-Manager'!E8+'3-Manager'!E8+'4-Manager'!E8+'5-Manager'!E8 -> 165 | F8: 714 | H8: 1 | I8: 1 | K8: Delaware | L8: =SUMIFS('1-Manager'!$F$3:$F$368,'1-Manager'!$G$3:$G$368,ALL!K8) -> 7481 | M8: =SUMIFS('2-Manager'!$F$3:$F$368,'2-Manager'!$G$3:$G$368,ALL!K8) -> 0 | N8: =SUMIFS('3-Manager'!$F$3:$F$368,'3-Manager'!$G$3:$G$368,ALL!K8) -> 0 | O8: =SUMIFS('4-Manager'!$F$3:$F$368,'4-Manager'!$G$3:$G$368,ALL!K8) -> 0 | P8: =SUMIFS('5-Manager'!$F$3:$F$368,'5-Manager'!$G$3:$G$368,ALL!K8) -> 0 | Q8: 7481
A9: 2020-01-07 | B9: ='1-Manager'!B9+'2-Manager'!B9+'3-Manager'!B9+'4-Manager'!B9+'5-Manager'!B9 -> 154 | C9: ='1-Manager'!C9+'2-Manager'!C9+'3-Manager'!C9+'4-Manager'!C9+'5-Manager'!C9 -> 135 | D9: ='1-Manager'!D9+'2-Manager'!D9+'3-Manager'!D9+'4-Manager'!D9+'5-Manager'!D9 -> 244 | E9: ='1-Manager'!E9+'2-Manager'!E9+'3-Manager'!E9+'4-Manager'!E9+'5-Manager'!E9 -> 108 | F9: 641 | H9: 2 | I9: 1 | K9: Florida | L9: =SUMIFS('1-Manager'!$F$3:$F$368,'1-Manager'!$G$3:$G$368,ALL!K9) -> 6868 | M9: =SUMIFS('2-Manager'!$F$3:$F$368,'2-Manager'!$G$3:$G$368,ALL!K9) -> 0 | N9: =SUMIFS('3-Manager'!$F$3:$F$368,'3-Manager'!$G$3:$G$368,ALL!K9) -> 0 | O9: =SUMIFS('4-Manager'!$F$3:$F$368,'4-Manager'!$G$3:$G$368,ALL!K9) -> 0 | P9: =SUMIFS('5-Manager'!$F$3:$F$368,'5-Manager'!$G$3:$G$368,ALL!K9) -> 0 | Q9: 6868
A10: 2020-01-08 | B10: ='1-Manager'!B10+'2-Manager'!B10+'3-Manager'!B10+'4-Manager'!B10+'5-Manager'!B10 -> 252 | C10: ='1-Manager'!C10+'2-Manager'!C10+'3-Manager'!C10+'4-Manager'!C10+'5-Manager'!C10 -> 156 | D10: ='1-Manager'!D10+'2-Manager'!D10+'3-Manager'!D10+'4-Manager'!D10+'5-Manager'!D10 -> 117 | E10: ='1-Manager'!E10+'2-Manager'!E10+'3-Manager'!E10+'4-Manager'!E10+'5-Manager'!E10 -> 144 | F10: 669 | H10: 3 | I10: 1 | K10: Georgia | L10: =SUMIFS('1-Manager'!$F$3:$F$368,'1-Manager'!$G$3:$G$368,ALL!K10) -> 6942 | M10: =SUMIFS('2-Manager'!$F$3:$F$368,'2-Manager'!$G$3:$G$368,ALL!K10) -> 0 | N10: =SUMIFS('3-Manager'!$F$3:$F$368,'3-Manager'!$G$3:$G$368,ALL!K10) -> 0 | O10: =SUMIFS('4-Manager'!$F$3:$F$368,'4-Manager'!$G$3:$G$368,ALL!K10) -> 0 | P10: =SUMIFS('5-Manager'!$F$3:$F$368,'5-Manager'!$G$3:$G$368,ALL!K10) -> 0 | Q10: 6942
A11: 2020-01-09 | B11: ='1-Manager'!B11+'2-Manager'!B11+'3-Manager'!B11+'4-Manager'!B11+'5-Manager'!B11 -> 72 | C11: ='1-Manager'!C11+'2-Manager'!C11+'3-Manager'!C11+'4-Manager'!C11+'5-Manager'!C11 -> 77 | D11: ='1-Manager'!D11+'2-Manager'!D11+'3-Manager'!D11+'4-Manager'!D11+'5-Manager'!D11 -> 301 | E11: ='1-Manager'!E11+'2-Manager'!E11+'3-Manager'!E11+'4-Manager'!E11+'5-Manager'!E11 -> 128 | F11: 578 | H11: 4 | I11: 1 | K11: Idaho | L11: =SUMIFS('1-Manager'!$F$3:$F$368,'1-Manager'!$G$3:$G$368,ALL!K11) -> 6891 | M11: =SUMIFS('2-Manager'!$F$3:$F$368,'2-Manager'!$G$3:$G$368,ALL!K11) -> 0 | N11: =SUMIFS('3-Manager'!$F$3:$F$368,'3-Manager'!$G$3:$G$368,ALL!K11) -> 0 | O11: =SUMIFS('4-Manager'!$F$3:$F$368,'4-Manager'!$G$3:$G$368,ALL!K11) -> 0 | P11: =SUMIFS('5-Manager'!$F$3:$F$368,'5-Manager'!$G$3:$G$368,ALL!K11) -> 0 | Q11: 6891
A12: 2020-01-10 | B12: ='1-Manager'!B12+'2-Manager'!B12+'3-Manager'!B12+'4-Manager'!B12+'5-Manager'!B12 -> 191 | C12: ='1-Manager'!C12+'2-Manager'!C12+'3-Manager'!C12+'4-Manager'!C12+'5-Manager'!C12 -> 188 | D12: ='1-Manager'!D12+'2-Manager'!D12+'3-Manager'!D12+'4-Manager'!D12+'5-Manager'!D12 -> 235 | E12: ='1-Manager'!E12+'2-Manager'!E12+'3-Manager'!E12+'4-Manager'!E12+'5-Manager'!E12 -> 183 | F12: 797 | H12: 5 | I12: 1 | K12: Illinois | L12: =SUMIFS('1-Manager'!$F$3:$F$368,'1-Manager'!$G$3:$G$368,ALL!K12) -> 0 | M12: =SUMIFS('2-Manager'!$F$3:$F$368,'2-Manager'!$G$3:$G$368,ALL!K12) -> 11426 | N12: =SUMIFS('3-Manager'!$F$3:$F$368,'3-Manager'!$G$3:$G$368,ALL!K12) -> 0 | O12: =SUMIFS('4-Manager'!$F$3:$F$368,'4-Manager'!$G$3:$G$368,ALL!K12) -> 0 | P12: =SUMIFS('5-Manager'!$F$3:$F$368,'5-Manager'!$G$3:$G$368,ALL!K12) -> 0 | Q12: 11426
A13: 2020-01-11 | B13: ='1-Manager'!B13+'2-Manager'!B13+'3-Manager'!B13+'4-Manager'!B13+'5-Manager'!B13 -> 279 | C13: ='1-Manager'!C13+'2-Manager'!C13+'3-Manager'!C13+'4-Manager'!C13+'5-Manager'!C13 -> 180 | D13: ='1-Manager'!D13+'2-Manager'!D13+'3-Manager'!D13+'4-Manager'!D13+'5-Manager'!D13 -> 224 | E13: ='1-Manager'!E13+'2-Manager'!E13+'3-Manager'!E13+'4-Manager'!E13+'5-Manager'!E13 -> 136 | F13: 819 | H13: 6 | I13: 1 | K13: Indiana | L13: =SUMIFS('1-Manager'!$F$3:$F$368,'1-Manager'!$G$3:$G$368,ALL!K13) -> 0 | M13: =SUMIFS('2-Manager'!$F$3:$F$368,'2-Manager'!$G$3:$G$368,ALL!K13) -> 11075 | N13: =SUMIFS('3-Manager'!$F$3:$F$368,'3-Manager'!$G$3:$G$368,ALL!K13) -> 0 | O13: =SUMIFS('4-Manager'!$F$3:$F$368,'4-Manager'!$G$3:$G$368,ALL!K13) -> 0 | P13: =SUMIFS('5-Manager'!$F$3:$F$368,'5-Manager'!$G$3:$G$368,ALL!K13) -> 0 | Q13: 11075
A14: 2020-01-12 | B14: ='1-Manager'!B14+'2-Manager'!B14+'3-Manager'!B14+'4-Manager'!B14+'5-Manager'!B14 -> 65 | C14: ='1-Manager'!C14+'2-Manager'!C14+'3-Manager'!C14+'4-Manager'!C14+'5-Manager'!C14 -> 41 | D14: ='1-Manager'!D14+'2-Manager'!D14+'3-Manager'!D14+'4-Manager'!D14+'5-Manager'!D14 -> 93 | E14: ='1-Manager'!E14+'2-Manager'!E14+'3-Manager'!E14+'4-Manager'!E14+'5-Manager'!E14 -> 34 | F14: 233 | H14: 7 | I14: 1 | K14: Iowa | L14: =SUMIFS('1-Manager'!$F$3:$F$368,'1-Manager'!$G$3:$G$368,ALL!K14) -> 0 | M14: =SUMIFS('2-Manager'!$F$3:$F$368,'2-Manager'!$G$3:$G$368,ALL!K14) -> 5576 | N14: =SUMIFS('3-Manager'!$F$3:$F$368,'3-Manager'!$G$3:$G$368,ALL!K14) -> 0 | O14: =SUMIFS('4-Manager'!$F$3:$F$368,'4-Manager'!$G$3:$G$368,ALL!K14) -> 0 | P14: =SUMIFS('5-Manager'!$F$3:$F$368,'5-Manager'!$G$3:$G$368,ALL!K14) -> 0 | Q14: 5576
A15: 2020-01-13 | B15: ='1-Manager'!B15+'2-Manager'!B15+'3-Manager'!B15+'4-Manager'!B15+'5-Manager'!B15 -> 211 | C15: ='1-Manager'!C15+'2-Manager'!C15+'3-Manager'!C15+'4-Manager'!C15+'5-Manager'!C15 -> 169 | D15: ='1-Manager'!D15+'2-Manager'!D15+'3-Manager'!D15+'4-Manager'!D15+'5-Manager'!D15 -> 266 | E15: ='1-Manager'!E15+'2-Manager'!E15+'3-Manager'!E15+'4-Manager'!E15+'5-Manager'!E15 -> 151 | F15: 797 | H15: 1 | I15: 1 | K15: Kansas | L15: =SUMIFS('1-Manager'!$F$3:$F$368,'1-Manager'!$G$3:$G$368,ALL!K15) -> 0 | M15: =SUMIFS('2-Manager'!$F$3:$F$368,'2-Manager'!$G$3:$G$368,ALL!K15) -> 5402 | N15: =SUMIFS('3-Manager'!$F$3:$F$368,'3-Manager'!$G$3:$G$368,ALL!K15) -> 0 | O15: =SUMIFS('4-Manager'!$F$3:$F$368,'4-Manager'!$G$3:$G$368,ALL!K15) -> 0 | P15: =SUMIFS('5-Manager'!$F$3:$F$368,'5-Manager'!$G$3:$G$368,ALL!K15) -> 0 | Q15: 5402
A16: 2020-01-14 | B16: ='1-Manager'!B16+'2-Manager'!B16+'3-Manager'!B16+'4-Manager'!B16+'5-Manager'!B16 -> 246 | C16: ='1-Manager'!C16+'2-Manager'!C16+'3-Manager'!C16+'4-Manager'!C16+'5-Manager'!C16 -> 163 | D16: ='1-Manager'!D16+'2-Manager'!D16+'3-Manager'!D16+'4-Manager'!D16+'5-Manager'!D16 -> 262 | E16: ='1-Manager'!E16+'2-Manager'!E16+'3-Manager'!E16+'4-Manager'!E16+'5-Manager'!E16 -> 178 | F16: 849 | H16: 2 | I16: 1 | K16: Kentucky | L16: =SUMIFS('1-Manager'!$F$3:$F$368,'1-Manager'!$G$3:$G$368,ALL!K16) -> 0 | M16: =SUMIFS('2-Manager'!$F$3:$F$368,'2-Manager'!$G$3:$G$368,ALL!K16) -> 5376 | N16: =SUMIFS('3-Manager'!$F$3:$F$368,'3-Manager'!$G$3:$G$368,ALL!K16) -> 0 | O16: =SUMIFS('4-Manager'!$F$3:$F$368,'4-Manager'!$G$3:$G$368,ALL!K16) -> 0 | P16: =SUMIFS('5-Manager'!$F$3:$F$368,'5-Manager'!$G$3:$G$368,ALL!K16) -> 0 | Q16: 5376
A17: 2020-01-15 | B17: ='1-Manager'!B17+'2-Manager'!B17+'3-Manager'!B17+'4-Manager'!B17+'5-Manager'!B17 -> 350 | C17: ='1-Manager'!C17+'2-Manager'!C17+'3-Manager'!C17+'4-Manager'!C17+'5-Manager'!C17 -> 211 | D17: ='1-Manager'!D17+'2-Manager'!D17+'3-Manager'!D17+'4-Manager'!D17+'5-Manager'!D17 -> 192 | E17: ='1-Manager'!E17+'2-Manager'!E17+'3-Manager'!E17+'4-Manager'!E17+'5-Manager'!E17 -> 86 | F17: 839 | H17: 3 | I17: 1 | K17: Louisiana | L17: =SUMIFS('1-Manager'!$F$3:$F$368,'1-Manager'!$G$3:$G$368,ALL!K17) -> 0 | M17: =SUMIFS('2-Manager'!$F$3:$F$368,'2-Manager'!$G$3:$G$368,ALL!K17) -> 6041 | N17: =SUMIFS('3-Manager'!$F$3:$F$368,'3-Manager'!$G$3:$G$368,ALL!K17) -> 0 | O17: =SUMIFS('4-Manager'!$F$3:$F$368,'4-Manager'!$G$3:$G$368,ALL!K17) -> 0 | P17: =SUMIFS('5-Manager'!$F$3:$F$368,'5-Manager'!$G$3:$G$368,ALL!K17) -> 0 | Q17: 6041
A18: 2020-01-16 | B18: ='1-Manager'!B18+'2-Manager'!B18+'3-Manager'!B18+'4-Manager'!B18+'5-Manager'!B18 -> 418 | C18: ='1-Manager'!C18+'2-Manager'!C18+'3-Manager'!C18+'4-Manager'!C18+'5-Manager'!C18 -> 96 | D18: ='1-Manager'!D18+'2-Manager'!D18+'3-Manager'!D18+'4-Manager'!D18+'5-Manager'!D18 -> 334 | E18: ='1-Manager'!E18+'2-Manager'!E18+'3-Manager'!E18+'4-Manager'!E18+'5-Manager'!E18 -> 130 | F18: 978 | H18: 4 | I18: 1 | K18: Maine | L18: =SUMIFS('1-Manager'!$F$3:$F$368,'1-Manager'!$G$3:$G$368,ALL!K18) -> 0 | M18: =SUMIFS('2-Manager'!$F$3:$F$368,'2-Manager'!$G$3:$G$368,ALL!K18) -> 5837 | N18: =SUMIFS('3-Manager'!$F$3:$F$368,'3-Manager'!$G$3:$G$368,ALL!K18) -> 0 | O18: =SUMIFS('4-Manager'!$F$3:$F$368,'4-Manager'!$G$3:$G$368,ALL!K18) -> 0 | P18: =SUMIFS('5-Manager'!$F$3:$F$368,'5-Manager'!$G$3:$G$368,ALL!K18) -> 0 | Q18: 5837
A19: 2020-01-17 | B19: ='1-Manager'!B19+'2-Manager'!B19+'3-Manager'!B19+'4-Manager'!B19+'5-Manager'!B19 -> 263 | C19: ='1-Manager'!C19+'2-Manager'!C19+'3-Manager'!C19+'4-Manager'!C19+'5-Manager'!C19 -> 96 | D19: ='1-Manager'!D19+'2-Manager'!D19+'3-Manager'!D19+'4-Manager'!D19+'5-Manager'!D19 -> 314 | E19: ='1-Manager'!E19+'2-Manager'!E19+'3-Manager'!E19+'4-Manager'!E19+'5-Manager'!E19 -> 168 | F19: 841 | H19: 5 | I19: 1 | K19: Maryland | L19: =SUMIFS('1-Manager'!$F$3:$F$368,'1-Manager'!$G$3:$G$368,ALL!K19) -> 0 | M19: =SUMIFS('2-Manager'!$F$3:$F$368,'2-Manager'!$G$3:$G$368,ALL!K19) -> 5748 | N19: =SUMIFS('3-Manager'!$F$3:$F$368,'3-Manager'!$G$3:$G$368,ALL!K19) -> 0 | O19: =SUMIFS('4-Manager'!$F$3:$F$368,'4-Manager'!$G$3:$G$368,ALL!K19) -> 0 | P19: =SUMIFS('5-Manager'!$F$3:$F$368,'5-Manager'!$G$3:$G$368,ALL!K19) -> 0 | Q19: 5748
A20: 2020-01-18 | B20: ='1-Manager'!B20+'2-Manager'!B20+'3-Manager'!B20+'4-Manager'!B20+'5-Manager'!B20 -> 243 | C20: ='1-Manager'!C20+'2-Manager'!C20+'3-Manager'!C20+'4-Manager'!C20+'5-Manager'!C20 -> 157 | D20: ='1-Manager'!D20+'2-Manager'!D20+'3-Manager'!D20+'4-Manager'!D20+'5-Manager'!D20 -> 242 | E20: ='1-Manager'!E20+'2-Manager'!E20+'3-Manager'!E20+'4-Manager'!E20+'5-Manager'!E20 -> 84 | F20: 726 | H20: 6 | I20: 1 | K20: Massachusetts | L20: =SUMIFS('1-Manager'!$F$3:$F$368,'1-Manager'!$G$3:$G$368,ALL!K20) -> 0 | M20: =SUMIFS('2-Manager'!$F$3:$F$368,'2-Manager'!$G$3:$G$368,ALL!K20) -> 5524 | N20: =SUMIFS('3-Manager'!$F$3:$F$368,'3-Manager'!$G$3:$G$368,ALL!K20) -> 0 | O20: =SUMIFS('4-Manager'!$F$3:$F$368,'4-Manager'!$G$3:$G$368,ALL!K20) -> 0 | P20: =SUMIFS('5-Manager'!$F$3:$F$368,'5-Manager'!$G$3:$G$368,ALL!K20) -> 0 | Q20: 5524
A21: 2020-01-19 | B21: ='1-Manager'!B21+'2-Manager'!B21+'3-Manager'!B21+'4-Manager'!B21+'5-Manager'!B21 -> 113 | C21: ='1-Manager'!C21+'2-Manager'!C21+'3-Manager'!C21+'4-Manager'!C21+'5-Manager'!C21 -> 30 | D21: ='1-Manager'!D21+'2-Manager'!D21+'3-Manager'!D21+'4-Manager'!D21+'5-Manager'!D21 -> 59 | E21: ='1-Manager'!E21+'2-Manager'!E21+'3-Manager'!E21+'4-Manager'!E21+'5-Manager'!E21 -> 47 | F21: 249 | H21: 7 | I21: 1 | K21: Michigan | L21: =SUMIFS('1-Manager'!$F$3:$F$368,'1-Manager'!$G$3:$G$368,ALL!K21) -> 0 | M21: =SUMIFS('2-Manager'!$F$3:$F$368,'2-Manager'!$G$3:$G$368,ALL!K21) -> 6099 | N21: =SUMIFS('3-Manager'!$F$3:$F$368,'3-Manager'!$G$3:$G$368,ALL!K21) -> 0 | O21: =SUMIFS('4-Manager'!$F$3:$F$368,'4-Manager'!$G$3:$G$368,ALL!K21) -> 0 | P21: =SUMIFS('5-Manager'!$F$3:$F$368,'5-Manager'!$G$3:$G$368,ALL!K21) -> 0 | Q21: 6099
A22: 2020-01-20 | B22: ='1-Manager'!B22+'2-Manager'!B22+'3-Manager'!B22+'4-Manager'!B22+'5-Manager'!B22 -> 244 | C22: ='1-Manager'!C22+'2-Manager'!C22+'3-Manager'!C22+'4-Manager'!C22+'5-Manager'!C22 -> 86 | D22: ='1-Manager'!D22+'2-Manager'!D22+'3-Manager'!D22+'4-Manager'!D22+'5-Manager'!D22 -> 282 | E22: ='1-Manager'!E22+'2-Manager'!E22+'3-Manager'!E22+'4-Manager'!E22+'5-Manager'!E22 -> 100 | F22: 712 | H22: 1 | I22: 1 | K22: Minnesota | L22: =SUMIFS('1-Manager'!$F$3:$F$368,'1-Manager'!$G$3:$G$368,ALL!K22) -> 0 | M22: =SUMIFS('2-Manager'!$F$3:$F$368,'2-Manager'!$G$3:$G$368,ALL!K22) -> 0 | N22: =SUMIFS('3-Manager'!$F$3:$F$368,'3-Manager'!$G$3:$G$368,ALL!K22) -> 8132 | O22: =SUMIFS('4-Manager'!$F$3:$F$368,'4-Manager'!$G$3:$G$368,ALL!K22) -> 0 | P22: =SUMIFS('5-Manager'!$F$3:$F$368,'5-Manager'!$G$3:$G$368,ALL!K22) -> 0 | Q22: 8132
A23: 2020-01-21 | B23: ='1-Manager'!B23+'2-Manager'!B23+'3-Manager'!B23+'4-Manager'!B23+'5-Manager'!B23 -> 233 | C23: ='1-Manager'!C23+'2-Manager'!C23+'3-Manager'!C23+'4-Manager'!C23+'5-Manager'!C23 -> 154 | D23: ='1-Manager'!D23+'2-Manager'!D23+'3-Manager'!D23+'4-Manager'!D23+'5-Manager'!D23 -> 295 | E23: ='1-Manager'!E23+'2-Manager'!E23+'3-Manager'!E23+'4-Manager'!E23+'5-Manager'!E23 -> 90 | F23: 772 | H23: 2 | I23: 1 | K23: Mississippi | L23: =SUMIFS('1-Manager'!$F$3:$F$368,'1-Manager'!$G$3:$G$368,ALL!K23) -> 0 | M23: =SUMIFS('2-Manager'!$F$3:$F$368,'2-Manager'!$G$3:$G$368,ALL!K23) -> 0 | N23: =SUMIFS('3-Manager'!$F$3:$F$368,'3-Manager'!$G$3:$G$368,ALL!K23) -> 8769 | O23: =SUMIFS('4-Manager'!$F$3:$F$368,'4-Manager'!$G$3:$G$368,ALL!K23) -> 0 | P23: =SUMIFS('5-Manager'!$F$3:$F$368,'5-Manager'!$G$3:$G$368,ALL!K23) -> 0 | Q23: 8769
A24: 2020-01-22 | B24: ='1-Manager'!B24+'2-Manager'!B24+'3-Manager'!B24+'4-Manager'!B24+'5-Manager'!B24 -> 285 | C24: ='1-Manager'!C24+'2-Manager'!C24+'3-Manager'!C24+'4-Manager'!C24+'5-Manager'!C24 -> 97 | D24: ='1-Manager'!D24+'2-Manager'!D24+'3-Manager'!D24+'4-Manager'!D24+'5-Manager'!D24 -> 209 | E24: ='1-Manager'!E24+'2-Manager'!E24+'3-Manager'!E24+'4-Manager'!E24+'5-Manager'!E24 -> 92 | F24: 683 | H24: 3 | I24: 1 | K24: Missouri | L24: =SUMIFS('1-Manager'!$F$3:$F$368,'1-Manager'!$G$3:$G$368,ALL!K24) -> 0 | M24: =SUMIFS('2-Manager'!$F$3:$F$368,'2-Manager'!$G$3:$G$368,ALL!K24) -> 0 | N24: =SUMIFS('3-Manager'!$F$3:$F$368,'3-Manager'!$G$3:$G$368,ALL!K24) -> 4477 | O24: =SUMIFS('4-Manager'!$F$3:$F$368,'4-Manager'!$G$3:$G$368,ALL!K24) -> 0 | P24: =SUMIFS('5-Manager'!$F$3:$F$368,'5-Manager'!$G$3:$G$368,ALL!K24) -> 0 | Q24: 4477
A25: 2020-01-23 | B25: ='1-Manager'!B25+'2-Manager'!B25+'3-Manager'!B25+'4-Manager'!B25+'5-Manager'!B25 -> 269 | C25: ='1-Manager'!C25+'2-Manager'!C25+'3-Manager'!C25+'4-Manager'!C25+'5-Manager'!C25 -> 149 | D25: ='1-Manager'!D25+'2-Manager'!D25+'3-Manager'!D25+'4-Manager'!D25+'5-Manager'!D25 -> 167 | E25: ='1-Manager'!E25+'2-Manager'!E25+'3-Manager'!E25+'4-Manager'!E25+'5-Manager'!E25 -> 165 | F25: 750 | H25: 4 | I25: 1 | K25: Montana | L25: =SUMIFS('1-Manager'!$F$3:$F$368,'1-Manager'!$G$3:$G$368,ALL!K25) -> 0 | M25: =SUMIFS('2-Manager'!$F$3:$F$368,'2-Manager'!$G$3:$G$368,ALL!K25) -> 0 | N25: =SUMIFS('3-Manager'!$F$3:$F$368,'3-Manager'!$G$3:$G$368,ALL!K25) -> 3842 | O25: =SUMIFS('4-Manager'!$F$3:$F$368,'4-Manager'!$G$3:$G$368,ALL!K25) -> 0 | P25: =SUMIFS('5-Manager'!$F$3:$F$368,'5-Manager'!$G$3:$G$368,ALL!K25) -> 0 | Q25: 3842
A26: 2020-01-24 | B26: ='1-Manager'!B26+'2-Manager'!B26+'3-Manager'!B26+'4-Manager'!B26+'5-Manager'!B26 -> 305 | C26: ='1-Manager'!C26+'2-Manager'!C26+'3-Manager'!C26+'4-Manager'!C26+'5-Manager'!C26 -> 111 | D26: ='1-Manager'!D26+'2-Manager'!D26+'3-Manager'!D26+'4-Manager'!D26+'5-Manager'!D26 -> 227 | E26: ='1-Manager'!E26+'2-Manager'!E26+'3-Manager'!E26+'4-Manager'!E26+'5-Manager'!E26 -> 161 | F26: 804 | H26: 5 | I26: 1 | K26: Nebraska | L26: =SUMIFS('1-Manager'!$F$3:$F$368,'1-Manager'!$G$3:$G$368,ALL!K26) -> 0 | M26: =SUMIFS('2-Manager'!$F$3:$F$368,'2-Manager'!$G$3:$G$368,ALL!K26) -> 0 | N26: =SUMIFS('3-Manager'!$F$3:$F$368,'3-Manager'!$G$3:$G$368,ALL!K26) -> 4183 | O26: =SUMIFS('4-Manager'!$F$3:$F$368,'4-Manager'!$G$3:$G$368,ALL!K26) -> 0 | P26: =SUMIFS('5-Manager'!$F$3:$F$368,'5-Manager'!$G$3:$G$368,ALL!K26) -> 0 | Q26: 4183
A27: 2020-01-25 | B27: ='1-Manager'!B27+'2-Manager'!B27+'3-Manager'!B27+'4-Manager'!B27+'5-Manager'!B27 -> 272 | C27: ='1-Manager'!C27+'2-Manager'!C27+'3-Manager'!C27+'4-Manager'!C27+'5-Manager'!C27 -> 126 | D27: ='1-Manager'!D27+'2-Manager'!D27+'3-Manager'!D27+'4-Manager'!D27+'5-Manager'!D27 -> 373 | E27: ='1-Manager'!E27+'2-Manager'!E27+'3-Manager'!E27+'4-Manager'!E27+'5-Manager'!E27 -> 115 | F27: 886 | H27: 6 | I27: 1 | K27: Nevada | L27: =SUMIFS('1-Manager'!$F$3:$F$368,'1-Manager'!$G$3:$G$368,ALL!K27) -> 0 | M27: =SUMIFS('2-Manager'!$F$3:$F$368,'2-Manager'!$G$3:$G$368,ALL!K27) -> 0 | N27: =SUMIFS('3-Manager'!$F$3:$F$368,'3-Manager'!$G$3:$G$368,ALL!K27) -> 4003 | O27: =SUMIFS('4-Manager'!$F$3:$F$368,'4-Manager'!$G$3:$G$368,ALL!K27) -> 0 | P27: =SUMIFS('5-Manager'!$F$3:$F$368,'5-Manager'!$G$3:$G$368,ALL!K27) -> 0 | Q27: 4003
A28: 2020-01-26 | B28: ='1-Manager'!B28+'2-Manager'!B28+'3-Manager'!B28+'4-Manager'!B28+'5-Manager'!B28 -> 115 | C28: ='1-Manager'!C28+'2-Manager'!C28+'3-Manager'!C28+'4-Manager'!C28+'5-Manager'!C28 -> 70 | D28: ='1-Manager'!D28+'2-Manager'!D28+'3-Manager'!D28+'4-Manager'!D28+'5-Manager'!D28 -> 86 | E28: ='1-Manager'!E28+'2-Manager'!E28+'3-Manager'!E28+'4-Manager'!E28+'5-Manager'!E28 -> 74 | F28: 345 | H28: 7 | I28: 1 | K28: New hampshire | L28: =SUMIFS('1-Manager'!$F$3:$F$368,'1-Manager'!$G$3:$G$368,ALL!K28) -> 0 | M28: =SUMIFS('2-Manager'!$F$3:$F$368,'2-Manager'!$G$3:$G$368,ALL!K28) -> 0 | N28: =SUMIFS('3-Manager'!$F$3:$F$368,'3-Manager'!$G$3:$G$368,ALL!K28) -> 4455 | O28: =SUMIFS('4-Manager'!$F$3:$F$368,'4-Manager'!$G$3:$G$368,ALL!K28) -> 0 | P28: =SUMIFS('5-Manager'!$F$3:$F$368,'5-Manager'!$G$3:$G$368,ALL!K28) -> 0 | Q28: 4455
A29: 2020-01-27 | B29: ='1-Manager'!B29+'2-Manager'!B29+'3-Manager'!B29+'4-Manager'!B29+'5-Manager'!B29 -> 250 | C29: ='1-Manager'!C29+'2-Manager'!C29+'3-Manager'!C29+'4-Manager'!C29+'5-Manager'!C29 -> 129 | D29: ='1-Manager'!D29+'2-Manager'!D29+'3-Manager'!D29+'4-Manager'!D29+'5-Manager'!D29 -> 230 | E29: ='1-Manager'!E29+'2-Manager'!E29+'3-Manager'!E29+'4-Manager'!E29+'5-Manager'!E29 -> 214 | F29: 823 | H29: 1 | I29: 1 | K29: New Jersey | L29: =SUMIFS('1-Manager'!$F$3:$F$368,'1-Manager'!$G$3:$G$368,ALL!K29) -> 0 | M29: =SUMIFS('2-Manager'!$F$3:$F$368,'2-Manager'!$G$3:$G$368,ALL!K29) -> 0 | N29: =SUMIFS('3-Manager'!$F$3:$F$368,'3-Manager'!$G$3:$G$368,ALL!K29) -> 3997 | O29: =SUMIFS('4-Manager'!$F$3:$F$368,'4-Manager'!$G$3:$G$368,ALL!K29) -> 0 | P29: =SUMIFS('5-Manager'!$F$3:$F$368,'5-Manager'!$G$3:$G$368,ALL!K29) -> 0 | Q29: 3997
A30: 2020-01-28 | B30: ='1-Manager'!B30+'2-Manager'!B30+'3-Manager'!B30+'4-Manager'!B30+'5-Manager'!B30 -> 313 | C30: ='1-Manager'!C30+'2-Manager'!C30+'3-Manager'!C30+'4-Manager'!C30+'5-Manager'!C30 -> 142 | D30: ='1-Manager'!D30+'2-Manager'!D30+'3-Manager'!D30+'4-Manager'!D30+'5-Manager'!D30 -> 272 | E30: ='1-Manager'!E30+'2-Manager'!E30+'3-Manager'!E30+'4-Manager'!E30+'5-Manager'!E30 -> 219 | F30: 946 | H30: 2 | I30: 1 | K30: New Mexico | L30: =SUMIFS('1-Manager'!$F$3:$F$368,'1-Manager'!$G$3:$G$368,ALL!K30) -> 0 | M30: =SUMIFS('2-Manager'!$F$3:$F$368,'2-Manager'!$G$3:$G$368,ALL!K30) -> 0 | N30: =SUMIFS('3-Manager'!$F$3:$F$368,'3-Manager'!$G$3:$G$368,ALL!K30) -> 3801 | O30: =SUMIFS('4-Manager'!$F$3:$F$368,'4-Manager'!$G$3:$G$368,ALL!K30) -> 0 | P30: =SUMIFS('5-Manager'!$F$3:$F$368,'5-Manager'!$G$3:$G$368,ALL!K30) -> 0 | Q30: 3801
A31: 2020-01-29 | B31: ='1-Manager'!B31+'2-Manager'!B31+'3-Manager'!B31+'4-Manager'!B31+'5-Manager'!B31 -> 162 | C31: ='1-Manager'!C31+'2-Manager'!C31+'3-Manager'!C31+'4-Manager'!C31+'5-Manager'!C31 -> 119 | D31: ='1-Manager'!D31+'2-Manager'!D31+'3-Manager'!D31+'4-Manager'!D31+'5-Manager'!D31 -> 283 | E31: ='1-Manager'!E31+'2-Manager'!E31+'3-Manager'!E31+'4-Manager'!E31+'5-Manager'!E31 -> 137 | F31: 701 | H31: 3 | I31: 1 | K31: New York | L31: =SUMIFS('1-Manager'!$F$3:$F$368,'1-Manager'!$G$3:$G$368,ALL!K31) -> 0 | M31: =SUMIFS('2-Manager'!$F$3:$F$368,'2-Manager'!$G$3:$G$368,ALL!K31) -> 0 | N31: =SUMIFS('3-Manager'!$F$3:$F$368,'3-Manager'!$G$3:$G$368,ALL!K31) -> 4385 | O31: =SUMIFS('4-Manager'!$F$3:$F$368,'4-Manager'!$G$3:$G$368,ALL!K31) -> 0 | P31: =SUMIFS('5-Manager'!$F$3:$F$368,'5-Manager'!$G$3:$G$368,ALL!K31) -> 0 | Q31: 4385
A32: 2020-01-30 | B32: ='1-Manager'!B32+'2-Manager'!B32+'3-Manager'!B32+'4-Manager'!B32+'5-Manager'!B32 -> 310 | C32: ='1-Manager'!C32+'2-Manager'!C32+'3-Manager'!C32+'4-Manager'!C32+'5-Manager'!C32 -> 138 | D32: ='1-Manager'!D32+'2-Manager'!D32+'3-Manager'!D32+'4-Manager'!D32+'5-Manager'!D32 -> 138 | E32: ='1-Manager'!E32+'2-Manager'!E32+'3-Manager'!E32+'4-Manager'!E32+'5-Manager'!E32 -> 142 | F32: 728 | H32: 4 | I32: 1 | K32: North Carolina | L32: =SUMIFS('1-Manager'!$F$3:$F$368,'1-Manager'!$G$3:$G$368,ALL!K32) -> 0 | M32: =SUMIFS('2-Manager'!$F$3:$F$368,'2-Manager'!$G$3:$G$368,ALL!K32) -> 0 | N32: =SUMIFS('3-Manager'!$F$3:$F$368,'3-Manager'!$G$3:$G$368,ALL!K32) -> 0 | O32: =SUMIFS('4-Manager'!$F$3:$F$368,'4-Manager'!$G$3:$G$368,ALL!K32) -> 5059 | P32: =SUMIFS('5-Manager'!$F$3:$F$368,'5-Manager'!$G$3:$G$368,ALL!K32) -> 0 | Q32: 5059
A33: 2020-01-31 | B33: ='1-Manager'!B33+'2-Manager'!B33+'3-Manager'!B33+'4-Manager'!B33+'5-Manager'!B33 -> 388 | C33: ='1-Manager'!C33+'2-Manager'!C33+'3-Manager'!C33+'4-Manager'!C33+'5-Manager'!C33 -> 95 | D33: ='1-Manager'!D33+'2-Manager'!D33+'3-Manager'!D33+'4-Manager'!D33+'5-Manager'!D33 -> 192 | E33: ='1-Manager'!E33+'2-Manager'!E33+'3-Manager'!E33+'4-Manager'!E33+'5-Manager'!E33 -> 175 | F33: 850 | H33: 5 | I33: 1 | K33: North Dakota | L33: =SUMIFS('1-Manager'!$F$3:$F$368,'1-Manager'!$G$3:$G$368,ALL!K33) -> 0 | M33: =SUMIFS('2-Manager'!$F$3:$F$368,'2-Manager'!$G$3:$G$368,ALL!K33) -> 0 | N33: =SUMIFS('3-Manager'!$F$3:$F$368,'3-Manager'!$G$3:$G$368,ALL!K33) -> 0 | O33: =SUMIFS('4-Manager'!$F$3:$F$368,'4-Manager'!$G$3:$G$368,ALL!K33) -> 5351 | P33: =SUMIFS('5-Manager'!$F$3:$F$368,'5-Manager'!$G$3:$G$368,ALL!K33) -> 0 | Q33: 5351
A34: 2020-02-01 | B34: ='1-Manager'!B34+'2-Manager'!B34+'3-Manager'!B34+'4-Manager'!B34+'5-Manager'!B34 -> 328 | C34: ='1-Manager'!C34+'2-Manager'!C34+'3-Manager'!C34+'4-Manager'!C34+'5-Manager'!C34 -> 151 | D34: ='1-Manager'!D34+'2-Manager'!D34+'3-Manager'!D34+'4-Manager'!D34+'5-Manager'!D34 -> 179 | E34: ='1-Manager'!E34+'2-Manager'!E34+'3-Manager'!E34+'4-Manager'!E34+'5-Manager'!E34 -> 125 | F34: 783 | H34: 6 | I34: 2 | K34: Ohio | L34: =SUMIFS('1-Manager'!$F$3:$F$368,'1-Manager'!$G$3:$G$368,ALL!K34) -> 0 | M34: =SUMIFS('2-Manager'!$F$3:$F$368,'2-Manager'!$G$3:$G$368,ALL!K34) -> 0 | N34: =SUMIFS('3-Manager'!$F$3:$F$368,'3-Manager'!$G$3:$G$368,ALL!K34) -> 0 | O34: =SUMIFS('4-Manager'!$F$3:$F$368,'4-Manager'!$G$3:$G$368,ALL!K34) -> 2556 | P34: =SUMIFS('5-Manager'!$F$3:$F$368,'5-Manager'!$G$3:$G$368,ALL!K34) -> 0 | Q34: 2556
A35: 2020-02-02 | B35: ='1-Manager'!B35+'2-Manager'!B35+'3-Manager'!B35+'4-Manager'!B35+'5-Manager'!B35 -> 135 | C35: ='1-Manager'!C35+'2-Manager'!C35+'3-Manager'!C35+'4-Manager'!C35+'5-Manager'!C35 -> 49 | D35: ='1-Manager'!D35+'2-Manager'!D35+'3-Manager'!D35+'4-Manager'!D35+'5-Manager'!D35 -> 116 | E35: ='1-Manager'!E35+'2-Manager'!E35+'3-Manager'!E35+'4-Manager'!E35+'5-Manager'!E35 -> 71 | F35: 371 | H35: 7 | I35: 2 | K35: Oklahoma | L35: =SUMIFS('1-Manager'!$F$3:$F$368,'1-Manager'!$G$3:$G$368,ALL!K35) -> 0 | M35: =SUMIFS('2-Manager'!$F$3:$F$368,'2-Manager'!$G$3:$G$368,ALL!K35) -> 0 | N35: =SUMIFS('3-Manager'!$F$3:$F$368,'3-Manager'!$G$3:$G$368,ALL!K35) -> 0 | O35: =SUMIFS('4-Manager'!$F$3:$F$368,'4-Manager'!$G$3:$G$368,ALL!K35) -> 2773 | P35: =SUMIFS('5-Manager'!$F$3:$F$368,'5-Manager'!$G$3:$G$368,ALL!K35) -> 0 | Q35: 2773
A36: 2020-02-03 | B36: ='1-Manager'!B36+'2-Manager'!B36+'3-Manager'!B36+'4-Manager'!B36+'5-Manager'!B36 -> 225 | C36: ='1-Manager'!C36+'2-Manager'!C36+'3-Manager'!C36+'4-Manager'!C36+'5-Manager'!C36 -> 98 | D36: ='1-Manager'!D36+'2-Manager'!D36+'3-Manager'!D36+'4-Manager'!D36+'5-Manager'!D36 -> 174 | E36: ='1-Manager'!E36+'2-Manager'!E36+'3-Manager'!E36+'4-Manager'!E36+'5-Manager'!E36 -> 85 | F36: 582 | H36: 1 | I36: 2 | K36: Oregon | L36: =SUMIFS('1-Manager'!$F$3:$F$368,'1-Manager'!$G$3:$G$368,ALL!K36) -> 0 | M36: =SUMIFS('2-Manager'!$F$3:$F$368,'2-Manager'!$G$3:$G$368,ALL!K36) -> 0 | N36: =SUMIFS('3-Manager'!$F$3:$F$368,'3-Manager'!$G$3:$G$368,ALL!K36) -> 0 | O36: =SUMIFS('4-Manager'!$F$3:$F$368,'4-Manager'!$G$3:$G$368,ALL!K36) -> 2730 | P36: =SUMIFS('5-Manager'!$F$3:$F$368,'5-Manager'!$G$3:$G$368,ALL!K36) -> 0 | Q36: 2730
A37: 2020-02-04 | B37: ='1-Manager'!B37+'2-Manager'!B37+'3-Manager'!B37+'4-Manager'!B37+'5-Manager'!B37 -> 258 | C37: ='1-Manager'!C37+'2-Manager'!C37+'3-Manager'!C37+'4-Manager'!C37+'5-Manager'!C37 -> 92 | D37: ='1-Manager'!D37+'2-Manager'!D37+'3-Manager'!D37+'4-Manager'!D37+'5-Manager'!D37 -> 258 | E37: ='1-Manager'!E37+'2-Manager'!E37+'3-Manager'!E37+'4-Manager'!E37+'5-Manager'!E37 -> 191 | F37: 799 | H37: 2 | I37: 2 | K37: Pennsylvania | L37: =SUMIFS('1-Manager'!$F$3:$F$368,'1-Manager'!$G$3:$G$368,ALL!K37) -> 0 | M37: =SUMIFS('2-Manager'!$F$3:$F$368,'2-Manager'!$G$3:$G$368,ALL!K37) -> 0 | N37: =SUMIFS('3-Manager'!$F$3:$F$368,'3-Manager'!$G$3:$G$368,ALL!K37) -> 0 | O37: =SUMIFS('4-Manager'!$F$3:$F$368,'4-Manager'!$G$3:$G$368,ALL!K37) -> 2869 | P37: =SUMIFS('5-Manager'!$F$3:$F$368,'5-Manager'!$G$3:$G$368,ALL!K37) -> 0 | Q37: 2869
A38: 2020-02-05 | B38: ='1-Manager'!B38+'2-Manager'!B38+'3-Manager'!B38+'4-Manager'!B38+'5-Manager'!B38 -> 200 | C38: ='1-Manager'!C38+'2-Manager'!C38+'3-Manager'!C38+'4-Manager'!C38+'5-Manager'!C38 -> 126 | D38: ='1-Manager'!D38+'2-Manager'!D38+'3-Manager'!D38+'4-Manager'!D38+'5-Manager'!D38 -> 309 | E38: ='1-Manager'!E38+'2-Manager'!E38+'3-Manager'!E38+'4-Manager'!E38+'5-Manager'!E38 -> 110 | F38: 745 | H38: 3 | I38: 2 | K38: Rhode Island | L38: =SUMIFS('1-Manager'!$F$3:$F$368,'1-Manager'!$G$3:$G$368,ALL!K38) -> 0 | M38: =SUMIFS('2-Manager'!$F$3:$F$368,'2-Manager'!$G$3:$G$368,ALL!K38) -> 0 | N38: =SUMIFS('3-Manager'!$F$3:$F$368,'3-Manager'!$G$3:$G$368,ALL!K38) -> 0 | O38: =SUMIFS('4-Manager'!$F$3:$F$368,'4-Manager'!$G$3:$G$368,ALL!K38) -> 2683 | P38: =SUMIFS('5-Manager'!$F$3:$F$368,'5-Manager'!$G$3:$G$368,ALL!K38) -> 0 | Q38: 2683
A39: 2020-02-06 | B39: ='1-Manager'!B39+'2-Manager'!B39+'3-Manager'!B39+'4-Manager'!B39+'5-Manager'!B39 -> 190 | C39: ='1-Manager'!C39+'2-Manager'!C39+'3-Manager'!C39+'4-Manager'!C39+'5-Manager'!C39 -> 253 | D39: ='1-Manager'!D39+'2-Manager'!D39+'3-Manager'!D39+'4-Manager'!D39+'5-Manager'!D39 -> 285 | E39: ='1-Manager'!E39+'2-Manager'!E39+'3-Manager'!E39+'4-Manager'!E39+'5-Manager'!E39 -> 154 | F39: 882 | H39: 4 | I39: 2 | K39: South Carolina | L39: =SUMIFS('1-Manager'!$F$3:$F$368,'1-Manager'!$G$3:$G$368,ALL!K39) -> 0 | M39: =SUMIFS('2-Manager'!$F$3:$F$368,'2-Manager'!$G$3:$G$368,ALL!K39) -> 0 | N39: =SUMIFS('3-Manager'!$F$3:$F$368,'3-Manager'!$G$3:$G$368,ALL!K39) -> 0 | O39: =SUMIFS('4-Manager'!$F$3:$F$368,'4-Manager'!$G$3:$G$368,ALL!K39) -> 2328 | P39: =SUMIFS('5-Manager'!$F$3:$F$368,'5-Manager'!$G$3:$G$368,ALL!K39) -> 0 | Q39: 2328
A40: 2020-02-07 | B40: ='1-Manager'!B40+'2-Manager'!B40+'3-Manager'!B40+'4-Manager'!B40+'5-Manager'!B40 -> 170 | C40: ='1-Manager'!C40+'2-Manager'!C40+'3-Manager'!C40+'4-Manager'!C40+'5-Manager'!C40 -> 122 | D40: ='1-Manager'!D40+'2-Manager'!D40+'3-Manager'!D40+'4-Manager'!D40+'5-Manager'!D40 -> 181 | E40: ='1-Manager'!E40+'2-Manager'!E40+'3-Manager'!E40+'4-Manager'!E40+'5-Manager'!E40 -> 133 | F40: 606 | H40: 5 | I40: 2 | K40: South Dakota | L40: =SUMIFS('1-Manager'!$F$3:$F$368,'1-Manager'!$G$3:$G$368,ALL!K40) -> 0 | M40: =SUMIFS('2-Manager'!$F$3:$F$368,'2-Manager'!$G$3:$G$368,ALL!K40) -> 0 | N40: =SUMIFS('3-Manager'!$F$3:$F$368,'3-Manager'!$G$3:$G$368,ALL!K40) -> 0 | O40: =SUMIFS('4-Manager'!$F$3:$F$368,'4-Manager'!$G$3:$G$368,ALL!K40) -> 2452 | P40: =SUMIFS('5-Manager'!$F$3:$F$368,'5-Manager'!$G$3:$G$368,ALL!K40) -> 0 | Q40: 2452
A41: 2020-02-08 | B41: ='1-Manager'!B41+'2-Manager'!B41+'3-Manager'!B41+'4-Manager'!B41+'5-Manager'!B41 -> 139 | C41: ='1-Manager'!C41+'2-Manager'!C41+'3-Manager'!C41+'4-Manager'!C41+'5-Manager'!C41 -> 143 | D41: ='1-Manager'!D41+'2-Manager'!D41+'3-Manager'!D41+'4-Manager'!D41+'5-Manager'!D41 -> 321 | E41: ='1-Manager'!E41+'2-Manager'!E41+'3-Manager'!E41+'4-Manager'!E41+'5-Manager'!E41 -> 124 | F41: 727 | H41: 6 | I41: 2 | K41: Tennessee | L41: =SUMIFS('1-Manager'!$F$3:$F$368,'1-Manager'!$G$3:$G$368,ALL!K41) -> 0 | M41: =SUMIFS('2-Manager'!$F$3:$F$368,'2-Manager'!$G$3:$G$368,ALL!K41) -> 0 | N41: =SUMIFS('3-Manager'!$F$3:$F$368,'3-Manager'!$G$3:$G$368,ALL!K41) -> 0 | O41: =SUMIFS('4-Manager'!$F$3:$F$368,'4-Manager'!$G$3:$G$368,ALL!K41) -> 2641 | P41: =SUMIFS('5-Manager'!$F$3:$F$368,'5-Manager'!$G$3:$G$368,ALL!K41) -> 0 | Q41: 2641
A42: 2020-02-09 | B42: ='1-Manager'!B42+'2-Manager'!B42+'3-Manager'!B42+'4-Manager'!B42+'5-Manager'!B42 -> 94 | C42: ='1-Manager'!C42+'2-Manager'!C42+'3-Manager'!C42+'4-Manager'!C42+'5-Manager'!C42 -> 66 | D42: ='1-Manager'!D42+'2-Manager'!D42+'3-Manager'!D42+'4-Manager'!D42+'5-Manager'!D42 -> 70 | E42: ='1-Manager'!E42+'2-Manager'!E42+'3-Manager'!E42+'4-Manager'!E42+'5-Manager'!E42 -> 42 | F42: 272 | H42: 7 | I42: 2 | K42: Texas | L42: =SUMIFS('1-Manager'!$F$3:$F$368,'1-Manager'!$G$3:$G$368,ALL!K42) -> 0 | M42: =SUMIFS('2-Manager'!$F$3:$F$368,'2-Manager'!$G$3:$G$368,ALL!K42) -> 0 | N42: =SUMIFS('3-Manager'!$F$3:$F$368,'3-Manager'!$G$3:$G$368,ALL!K42) -> 0 | O42: =SUMIFS('4-Manager'!$F$3:$F$368,'4-Manager'!$G$3:$G$368,ALL!K42) -> 0 | P42: =SUMIFS('5-Manager'!$F$3:$F$368,'5-Manager'!$G$3:$G$368,ALL!K42) -> 5010 | Q42: 5010
A43: 2020-02-10 | B43: ='1-Manager'!B43+'2-Manager'!B43+'3-Manager'!B43+'4-Manager'!B43+'5-Manager'!B43 -> 183 | C43: ='1-Manager'!C43+'2-Manager'!C43+'3-Manager'!C43+'4-Manager'!C43+'5-Manager'!C43 -> 101 | D43: ='1-Manager'!D43+'2-Manager'!D43+'3-Manager'!D43+'4-Manager'!D43+'5-Manager'!D43 -> 252 | E43: ='1-Manager'!E43+'2-Manager'!E43+'3-Manager'!E43+'4-Manager'!E43+'5-Manager'!E43 -> 158 | F43: 694 | H43: 1 | I43: 2 | K43: Utah | L43: =SUMIFS('1-Manager'!$F$3:$F$368,'1-Manager'!$G$3:$G$368,ALL!K43) -> 0 | M43: =SUMIFS('2-Manager'!$F$3:$F$368,'2-Manager'!$G$3:$G$368,ALL!K43) -> 0 | N43: =SUMIFS('3-Manager'!$F$3:$F$368,'3-Manager'!$G$3:$G$368,ALL!K43) -> 0 | O43: =SUMIFS('4-Manager'!$F$3:$F$368,'4-Manager'!$G$3:$G$368,ALL!K43) -> 0 | P43: =SUMIFS('5-Manager'!$F$3:$F$368,'5-Manager'!$G$3:$G$368,ALL!K43) -> 4858 | Q43: 4858
A44: 2020-02-11 | B44: ='1-Manager'!B44+'2-Manager'!B44+'3-Manager'!B44+'4-Manager'!B44+'5-Manager'!B44 -> 254 | C44: ='1-Manager'!C44+'2-Manager'!C44+'3-Manager'!C44+'4-Manager'!C44+'5-Manager'!C44 -> 74 | D44: ='1-Manager'!D44+'2-Manager'!D44+'3-Manager'!D44+'4-Manager'!D44+'5-Manager'!D44 -> 192 | E44: ='1-Manager'!E44+'2-Manager'!E44+'3-Manager'!E44+'4-Manager'!E44+'5-Manager'!E44 -> 163 | F44: 683 | H44: 2 | I44: 2 | K44: Vermont | L44: =SUMIFS('1-Manager'!$F$3:$F$368,'1-Manager'!$G$3:$G$368,ALL!K44) -> 0 | M44: =SUMIFS('2-Manager'!$F$3:$F$368,'2-Manager'!$G$3:$G$368,ALL!K44) -> 0 | N44: =SUMIFS('3-Manager'!$F$3:$F$368,'3-Manager'!$G$3:$G$368,ALL!K44) -> 0 | O44: =SUMIFS('4-Manager'!$F$3:$F$368,'4-Manager'!$G$3:$G$368,ALL!K44) -> 0 | P44: =SUMIFS('5-Manager'!$F$3:$F$368,'5-Manager'!$G$3:$G$368,ALL!K44) -> 5100 | Q44: 5100
A45: 2020-02-12 | B45: ='1-Manager'!B45+'2-Manager'!B45+'3-Manager'!B45+'4-Manager'!B45+'5-Manager'!B45 -> 232 | C45: ='1-Manager'!C45+'2-Manager'!C45+'3-Manager'!C45+'4-Manager'!C45+'5-Manager'!C45 -> 160 | D45: ='1-Manager'!D45+'2-Manager'!D45+'3-Manager'!D45+'4-Manager'!D45+'5-Manager'!D45 -> 158 | E45: ='1-Manager'!E45+'2-Manager'!E45+'3-Manager'!E45+'4-Manager'!E45+'5-Manager'!E45 -> 142 | F45: 692 | H45: 3 | I45: 2 | K45: Virginia | L45: =SUMIFS('1-Manager'!$F$3:$F$368,'1-Manager'!$G$3:$G$368,ALL!K45) -> 0 | M45: =SUMIFS('2-Manager'!$F$3:$F$368,'2-Manager'!$G$3:$G$368,ALL!K45) -> 0 | N45: =SUMIFS('3-Manager'!$F$3:$F$368,'3-Manager'!$G$3:$G$368,ALL!K45) -> 0 | O45: =SUMIFS('4-Manager'!$F$3:$F$368,'4-Manager'!$G$3:$G$368,ALL!K45) -> 0 | P45: =SUMIFS('5-Manager'!$F$3:$F$368,'5-Manager'!$G$3:$G$368,ALL!K45) -> 4880 | Q45: 4880
A46: 2020-02-13 | B46: ='1-Manager'!B46+'2-Manager'!B46+'3-Manager'!B46+'4-Manager'!B46+'5-Manager'!B46 -> 417 | C46: ='1-Manager'!C46+'2-Manager'!C46+'3-Manager'!C46+'4-Manager'!C46+'5-Manager'!C46 -> 92 | D46: ='1-Manager'!D46+'2-Manager'!D46+'3-Manager'!D46+'4-Manager'!D46+'5-Manager'!D46 -> 246 | E46: ='1-Manager'!E46+'2-Manager'!E46+'3-Manager'!E46+'4-Manager'!E46+'5-Manager'!E46 -> 92 | F46: 847 | H46: 4 | I46: 2 | K46: Washington | L46: =SUMIFS('1-Manager'!$F$3:$F$368,'1-Manager'!$G$3:$G$368,ALL!K46) -> 0 | M46: =SUMIFS('2-Manager'!$F$3:$F$368,'2-Manager'!$G$3:$G$368,ALL!K46) -> 0 | N46: =SUMIFS('3-Manager'!$F$3:$F$368,'3-Manager'!$G$3:$G$368,ALL!K46) -> 0 | O46: =SUMIFS('4-Manager'!$F$3:$F$368,'4-Manager'!$G$3:$G$368,ALL!K46) -> 0 | P46: =SUMIFS('5-Manager'!$F$3:$F$368,'5-Manager'!$G$3:$G$368,ALL!K46) -> 2165 | Q46: 2165
A47: 2020-02-14 | B47: ='1-Manager'!B47+'2-Manager'!B47+'3-Manager'!B47+'4-Manager'!B47+'5-Manager'!B47 -> 315 | C47: ='1-Manager'!C47+'2-Manager'!C47+'3-Manager'!C47+'4-Manager'!C47+'5-Manager'!C47 -> 97 | D47: ='1-Manager'!D47+'2-Manager'!D47+'3-Manager'!D47+'4-Manager'!D47+'5-Manager'!D47 -> 243 | E47: ='1-Manager'!E47+'2-Manager'!E47+'3-Manager'!E47+'4-Manager'!E47+'5-Manager'!E47 -> 209 | F47: 864 | H47: 5 | I47: 2 | K47: West Virginia | L47: =SUMIFS('1-Manager'!$F$3:$F$368,'1-Manager'!$G$3:$G$368,ALL!K47) -> 0 | M47: =SUMIFS('2-Manager'!$F$3:$F$368,'2-Manager'!$G$3:$G$368,ALL!K47) -> 0 | N47: =SUMIFS('3-Manager'!$F$3:$F$368,'3-Manager'!$G$3:$G$368,ALL!K47) -> 0 | O47: =SUMIFS('4-Manager'!$F$3:$F$368,'4-Manager'!$G$3:$G$368,ALL!K47) -> 0 | P47: =SUMIFS('5-Manager'!$F$3:$F$368,'5-Manager'!$G$3:$G$368,ALL!K47) -> 2587 | Q47: 2587
A48: 2020-02-15 | B48: ='1-Manager'!B48+'2-Manager'!B48+'3-Manager'!B48+'4-Manager'!B48+'5-Manager'!B48 -> 301 | C48: ='1-Manager'!C48+'2-Manager'!C48+'3-Manager'!C48+'4-Manager'!C48+'5-Manager'!C48 -> 165 | D48: ='1-Manager'!D48+'2-Manager'!D48+'3-Manager'!D48+'4-Manager'!D48+'5-Manager'!D48 -> 249 | E48: ='1-Manager'!E48+'2-Manager'!E48+'3-Manager'!E48+'4-Manager'!E48+'5-Manager'!E48 -> 119 | F48: 834 | H48: 6 | I48: 2 | K48: Wisconsin | L48: =SUMIFS('1-Manager'!$F$3:$F$368,'1-Manager'!$G$3:$G$368,ALL!K48) -> 0 | M48: =SUMIFS('2-Manager'!$F$3:$F$368,'2-Manager'!$G$3:$G$368,ALL!K48) -> 0 | N48: =SUMIFS('3-Manager'!$F$3:$F$368,'3-Manager'!$G$3:$G$368,ALL!K48) -> 0 | O48: =SUMIFS('4-Manager'!$F$3:$F$368,'4-Manager'!$G$3:$G$368,ALL!K48) -> 0 | P48: =SUMIFS('5-Manager'!$F$3:$F$368,'5-Manager'!$G$3:$G$368,ALL!K48) -> 2730 | Q48: 2730
A49: 2020-02-16 | B49: ='1-Manager'!B49+'2-Manager'!B49+'3-Manager'!B49+'4-Manager'!B49+'5-Manager'!B49 -> 81 | C49: ='1-Manager'!C49+'2-Manager'!C49+'3-Manager'!C49+'4-Manager'!C49+'5-Manager'!C49 -> 83 | D49: ='1-Manager'!D49+'2-Manager'!D49+'3-Manager'!D49+'4-Manager'!D49+'5-Manager'!D49 -> 82 | E49: ='1-Manager'!E49+'2-Manager'!E49+'3-Manager'!E49+'4-Manager'!E49+'5-Manager'!E49 -> 59 | F49: 305 | H49: 7 | I49: 2 | K49: Wyoming | L49: =SUMIFS('1-Manager'!$F$3:$F$368,'1-Manager'!$G$3:$G$368,ALL!K49) -> 0 | M49: =SUMIFS('2-Manager'!$F$3:$F$368,'2-Manager'!$G$3:$G$368,ALL!K49) -> 0 | N49: =SUMIFS('3-Manager'!$F$3:$F$368,'3-Manager'!$G$3:$G$368,ALL!K49) -> 0 | O49: =SUMIFS('4-Manager'!$F$3:$F$368,'4-Manager'!$G$3:$G$368,ALL!K49) -> 0 | P49: =SUMIFS('5-Manager'!$F$3:$F$368,'5-Manager'!$G$3:$G$368,ALL!K49) -> 2602 | Q49: 2602
A50: 2020-02-17 | B50: ='1-Manager'!B50+'2-Manager'!B50+'3-Manager'!B50+'4-Manager'!B50+'5-Manager'!B50 -> 265 | C50: ='1-Manager'!C50+'2-Manager'!C50+'3-Manager'!C50+'4-Manager'!C50+'5-Manager'!C50 -> 95 | D50: ='1-Manager'!D50+'2-Manager'!D50+'3-Manager'!D50+'4-Manager'!D50+'5-Manager'!D50 -> 209 | E50: ='1-Manager'!E50+'2-Manager'!E50+'3-Manager'!E50+'4-Manager'!E50+'5-Manager'!E50 -> 57 | F50: 626 | H50: 1 | I50: 2
A51: 2020-02-18 | B51: ='1-Manager'!B51+'2-Manager'!B51+'3-Manager'!B51+'4-Manager'!B51+'5-Manager'!B51 -> 336 | C51: ='1-Manager'!C51+'2-Manager'!C51+'3-Manager'!C51+'4-Manager'!C51+'5-Manager'!C51 -> 175 | D51: ='1-Manager'!D51+'2-Manager'!D51+'3-Manager'!D51+'4-Manager'!D51+'5-Manager'!D51 -> 195 | E51: ='1-Manager'!E51+'2-Manager'!E51+'3-Manager'!E51+'4-Manager'!E51+'5-Manager'!E51 -> 170 | F51: 876 | H51: 2 | I51: 2
A52: 2020-02-19 | B52: ='1-Manager'!B52+'2-Manager'!B52+'3-Manager'!B52+'4-Manager'!B52+'5-Manager'!B52 -> 275 | C52: ='1-Manager'!C52+'2-Manager'!C52+'3-Manager'!C52+'4-Manager'!C52+'5-Manager'!C52 -> 130 | D52: ='1-Manager'!D52+'2-Manager'!D52+'3-Manager'!D52+'4-Manager'!D52+'5-Manager'!D52 -> 240 | E52: ='1-Manager'!E52+'2-Manager'!E52+'3-Manager'!E52+'4-Manager'!E52+'5-Manager'!E52 -> 137 | F52: 782 | H52: 3 | I52: 2
A53: 2020-02-20 | B53: ='1-Manager'!B53+'2-Manager'!B53+'3-Manager'!B53+'4-Manager'!B53+'5-Manager'!B53 -> 246 | C53: ='1-Manager'!C53+'2-Manager'!C53+'3-Manager'!C53+'4-Manager'!C53+'5-Manager'!C53 -> 114 | D53: ='1-Manager'!D53+'2-Manager'!D53+'3-Manager'!D53+'4-Manager'!D53+'5-Manager'!D53 -> 221 | E53: ='1-Manager'!E53+'2-Manager'!E53+'3-Manager'!E53+'4-Manager'!E53+'5-Manager'!E53 -> 139 | F53: 720 | H53: 4 | I53: 2
A54: 2020-02-21 | B54: ='1-Manager'!B54+'2-Manager'!B54+'3-Manager'!B54+'4-Manager'!B54+'5-Manager'!B54 -> 197 | C54: ='1-Manager'!C54+'2-Manager'!C54+'3-Manager'!C54+'4-Manager'!C54+'5-Manager'!C54 -> 180 | D54: ='1-Manager'!D54+'2-Manager'!D54+'3-Manager'!D54+'4-Manager'!D54+'5-Manager'!D54 -> 320 | E54: ='1-Manager'!E54+'2-Manager'!E54+'3-Manager'!E54+'4-Manager'!E54+'5-Manager'!E54 -> 188 | F54: 885 | H54: 5 | I54: 2
A55: 2020-02-22 | B55: ='1-Manager'!B55+'2-Manager'!B55+'3-Manager'!B55+'4-Manager'!B55+'5-Manager'!B55 -> 275 | C55: ='1-Manager'!C55+'2-Manager'!C55+'3-Manager'!C55+'4-Manager'!C55+'5-Manager'!C55 -> 169 | D55: ='1-Manager'!D55+'2-Manager'!D55+'3-Manager'!D55+'4-Manager'!D55+'5-Manager'!D55 -> 99 | E55: ='1-Manager'!E55+'2-Manager'!E55+'3-Manager'!E55+'4-Manager'!E55+'5-Manager'!E55 -> 97 | F55: 640 | H55: 6 | I55: 2
A56: 2020-02-23 | B56: ='1-Manager'!B56+'2-Manager'!B56+'3-Manager'!B56+'4-Manager'!B56+'5-Manager'!B56 -> 49 | C56: ='1-Manager'!C56+'2-Manager'!C56+'3-Manager'!C56+'4-Manager'!C56+'5-Manager'!C56 -> 70 | D56: ='1-Manager'!D56+'2-Manager'!D56+'3-Manager'!D56+'4-Manager'!D56+'5-Manager'!D56 -> 79 | E56: ='1-Manager'!E56+'2-Manager'!E56+'3-Manager'!E56+'4-Manager'!E56+'5-Manager'!E56 -> 50 | F56: 248 | H56: 7 | I56: 2
A57: 2020-02-24 | B57: ='1-Manager'!B57+'2-Manager'!B57+'3-Manager'!B57+'4-Manager'!B57+'5-Manager'!B57 -> 166 | C57: ='1-Manager'!C57+'2-Manager'!C57+'3-Manager'!C57+'4-Manager'!C57+'5-Manager'!C57 -> 155 | D57: ='1-Manager'!D57+'2-Manager'!D57+'3-Manager'!D57+'4-Manager'!D57+'5-Manager'!D57 -> 327 | E57: ='1-Manager'!E57+'2-Manager'!E57+'3-Manager'!E57+'4-Manager'!E57+'5-Manager'!E57 -> 156 | F57: 804 | H57: 1 | I57: 2
A58: 2020-02-25 | B58: ='1-Manager'!B58+'2-Manager'!B58+'3-Manager'!B58+'4-Manager'!B58+'5-Manager'!B58 -> 181 | C58: ='1-Manager'!C58+'2-Manager'!C58+'3-Manager'!C58+'4-Manager'!C58+'5-Manager'!C58 -> 115 | D58: ='1-Manager'!D58+'2-Manager'!D58+'3-Manager'!D58+'4-Manager'!D58+'5-Manager'!D58 -> 277 | E58: ='1-Manager'!E58+'2-Manager'!E58+'3-Manager'!E58+'4-Manager'!E58+'5-Manager'!E58 -> 124 | F58: 697 | H58: 2 | I58: 2
A59: 2020-02-26 | B59: ='1-Manager'!B59+'2-Manager'!B59+'3-Manager'!B59+'4-Manager'!B59+'5-Manager'!B59 -> 184 | C59: ='1-Manager'!C59+'2-Manager'!C59+'3-Manager'!C59+'4-Manager'!C59+'5-Manager'!C59 -> 227 | D59: ='1-Manager'!D59+'2-Manager'!D59+'3-Manager'!D59+'4-Manager'!D59+'5-Manager'!D59 -> 308 | E59: ='1-Manager'!E59+'2-Manager'!E59+'3-Manager'!E59+'4-Manager'!E59+'5-Manager'!E59 -> 164 | F59: 883 | H59: 3 | I59: 2
A60: 2020-02-27 | B60: ='1-Manager'!B60+'2-Manager'!B60+'3-Manager'!B60+'4-Manager'!B60+'5-Manager'!B60 -> 229 | C60: ='1-Manager'!C60+'2-Manager'!C60+'3-Manager'!C60+'4-Manager'!C60+'5-Manager'!C60 -> 138 | D60: ='1-Manager'!D60+'2-Manager'!D60+'3-Manager'!D60+'4-Manager'!D60+'5-Manager'!D60 -> 174 | E60: ='1-Manager'!E60+'2-Manager'!E60+'3-Manager'!E60+'4-Manager'!E60+'5-Manager'!E60 -> 129 | F60: 670 | H60: 4 | I60: 2
A61: 2020-02-28 | B61: ='1-Manager'!B61+'2-Manager'!B61+'3-Manager'!B61+'4-Manager'!B61+'5-Manager'!B61 -> 282 | C61: ='1-Manager'!C61+'2-Manager'!C61+'3-Manager'!C61+'4-Manager'!C61+'5-Manager'!C61 -> 120 | D61: ='1-Manager'!D61+'2-Manager'!D61+'3-Manager'!D61+'4-Manager'!D61+'5-Manager'!D61 -> 150 | E61: ='1-Manager'!E61+'2-Manager'!E61+'3-Manager'!E61+'4-Manager'!E61+'5-Manager'!E61 -> 139 | F61: 691 | H61: 5 | I61: 2
A62: 2020-02-29 | B62: ='1-Manager'!B62+'2-Manager'!B62+'3-Manager'!B62+'4-Manager'!B62+'5-Manager'!B62 -> 303 | C62: ='1-Manager'!C62+'2-Manager'!C62+'3-Manager'!C62+'4-Manager'!C62+'5-Manager'!C62 -> 67 | D62: ='1-Manager'!D62+'2-Manager'!D62+'3-Manager'!D62+'4-Manager'!D62+'5-Manager'!D62 -> 276 | E62: ='1-Manager'!E62+'2-Manager'!E62+'3-Manager'!E62+'4-Manager'!E62+'5-Manager'!E62 -> 146 | F62: 792 | H62: 6 | I62: 2
A63: 2020-03-01 | B63: ='1-Manager'!B63+'2-Manager'!B63+'3-Manager'!B63+'4-Manager'!B63+'5-Manager'!B63 -> 37 | C63: ='1-Manager'!C63+'2-Manager'!C63+'3-Manager'!C63+'4-Manager'!C63+'5-Manager'!C63 -> 56 | D63: ='1-Manager'!D63+'2-Manager'!D63+'3-Manager'!D63+'4-Manager'!D63+'5-Manager'!D63 -> 96 | E63: ='1-Manager'!E63+'2-Manager'!E63+'3-Manager'!E63+'4-Manager'!E63+'5-Manager'!E63 -> 53 | F63: 242 | H63: 7 | I63: 3
A64: 2020-03-02 | B64: ='1-Manager'!B64+'2-Manager'!B64+'3-Manager'!B64+'4-Manager'!B64+'5-Manager'!B64 -> 174 | C64: ='1-Manager'!C64+'2-Manager'!C64+'3-Manager'!C64+'4-Manager'!C64+'5-Manager'!C64 -> 147 | D64: ='1-Manager'!D64+'2-Manager'!D64+'3-Manager'!D64+'4-Manager'!D64+'5-Manager'!D64 -> 183 | E64: ='1-Manager'!E64+'2-Manager'!E64+'3-Manager'!E64+'4-Manager'!E64+'5-Manager'!E64 -> 153 | F64: 657 | H64: 1 | I64: 3
A65: 2020-03-03 | B65: ='1-Manager'!B65+'2-Manager'!B65+'3-Manager'!B65+'4-Manager'!B65+'5-Manager'!B65 -> 301 | C65: ='1-Manager'!C65+'2-Manager'!C65+'3-Manager'!C65+'4-Manager'!C65+'5-Manager'!C65 -> 65 | D65: ='1-Manager'!D65+'2-Manager'!D65+'3-Manager'!D65+'4-Manager'!D65+'5-Manager'!D65 -> 306 | E65: ='1-Manager'!E65+'2-Manager'!E65+'3-Manager'!E65+'4-Manager'!E65+'5-Manager'!E65 -> 85 | F65: 757 | H65: 2 | I65: 3
A66: 2020-03-04 | B66: ='1-Manager'!B66+'2-Manager'!B66+'3-Manager'!B66+'4-Manager'!B66+'5-Manager'!B66 -> 246 | C66: ='1-Manager'!C66+'2-Manager'!C66+'3-Manager'!C66+'4-Manager'!C66+'5-Manager'!C66 -> 141 | D66: ='1-Manager'!D66+'2-Manager'!D66+'3-Manager'!D66+'4-Manager'!D66+'5-Manager'!D66 -> 354 | E66: ='1-Manager'!E66+'2-Manager'!E66+'3-Manager'!E66+'4-Manager'!E66+'5-Manager'!E66 -> 164 | F66: 905 | H66: 3 | I66: 3
A67: 2020-03-05 | B67: ='1-Manager'!B67+'2-Manager'!B67+'3-Manager'!B67+'4-Manager'!B67+'5-Manager'!B67 -> 236 | C67: ='1-Manager'!C67+'2-Manager'!C67+'3-Manager'!C67+'4-Manager'!C67+'5-Manager'!C67 -> 130 | D67: ='1-Manager'!D67+'2-Manager'!D67+'3-Manager'!D67+'4-Manager'!D67+'5-Manager'!D67 -> 261 | E67: ='1-Manager'!E67+'2-Manager'!E67+'3-Manager'!E67+'4-Manager'!E67+'5-Manager'!E67 -> 159 | F67: 786 | H67: 4 | I67: 3
A68: 2020-03-06 | B68: ='1-Manager'!B68+'2-Manager'!B68+'3-Manager'!B68+'4-Manager'!B68+'5-Manager'!B68 -> 403 | C68: ='1-Manager'!C68+'2-Manager'!C68+'3-Manager'!C68+'4-Manager'!C68+'5-Manager'!C68 -> 196 | D68: ='1-Manager'!D68+'2-Manager'!D68+'3-Manager'!D68+'4-Manager'!D68+'5-Manager'!D68 -> 342 | E68: ='1-Manager'!E68+'2-Manager'!E68+'3-Manager'!E68+'4-Manager'!E68+'5-Manager'!E68 -> 124 | F68: =SUM(B68:E68) -> 1065 | H68: =WEEKDAY(A68,2) -> 5 | I68: =MONTH(A68) -> 3
A69: 2020-03-07 | B69: ='1-Manager'!B69+'2-Manager'!B69+'3-Manager'!B69+'4-Manager'!B69+'5-Manager'!B69 -> 361 | C69: ='1-Manager'!C69+'2-Manager'!C69+'3-Manager'!C69+'4-Manager'!C69+'5-Manager'!C69 -> 146 | D69: ='1-Manager'!D69+'2-Manager'!D69+'3-Manager'!D69+'4-Manager'!D69+'5-Manager'!D69 -> 310 | E69: ='1-Manager'!E69+'2-Manager'!E69+'3-Manager'!E69+'4-Manager'!E69+'5-Manager'!E69 -> 71 | F69: 888 | H69: 6 | I69: 3
A70: 2020-03-08 | B70: ='1-Manager'!B70+'2-Manager'!B70+'3-Manager'!B70+'4-Manager'!B70+'5-Manager'!B70 -> 100 | C70: ='1-Manager'!C70+'2-Manager'!C70+'3-Manager'!C70+'4-Manager'!C70+'5-Manager'!C70 -> 49 | D70: ='1-Manager'!D70+'2-Manager'!D70+'3-Manager'!D70+'4-Manager'!D70+'5-Manager'!D70 -> 83 | E70: ='1-Manager'!E70+'2-Manager'!E70+'3-Manager'!E70+'4-Manager'!E70+'5-Manager'!E70 -> 63 | F70: 295 | H70: 7 | I70: 3
A71: 2020-03-09 | B71: ='1-Manager'!B71+'2-Manager'!B71+'3-Manager'!B71+'4-Manager'!B71+'5-Manager'!B71 -> 222 | C71: ='1-Manager'!C71+'2-Manager'!C71+'3-Manager'!C71+'4-Manager'!C71+'5-Manager'!C71 -> 181 | D71: ='1-Manager'!D71+'2-Manager'!D71+'3-Manager'!D71+'4-Manager'!D71+'5-Manager'!D71 -> 341 | E71: ='1-Manager'!E71+'2-Manager'!E71+'3-Manager'!E71+'4-Manager'!E71+'5-Manager'!E71 -> 120 | F71: 864 | H71: 1 | I71: 3
A72: 2020-03-10 | B72: ='1-Manager'!B72+'2-Manager'!B72+'3-Manager'!B72+'4-Manager'!B72+'5-Manager'!B72 -> 301 | C72: ='1-Manager'!C72+'2-Manager'!C72+'3-Manager'!C72+'4-Manager'!C72+'5-Manager'!C72 -> 120 | D72: ='1-Manager'!D72+'2-Manager'!D72+'3-Manager'!D72+'4-Manager'!D72+'5-Manager'!D72 -> 179 | E72: ='1-Manager'!E72+'2-Manager'!E72+'3-Manager'!E72+'4-Manager'!E72+'5-Manager'!E72 -> 137 | F72: 737 | H72: 2 | I72: 3
A73: 2020-03-11 | B73: ='1-Manager'!B73+'2-Manager'!B73+'3-Manager'!B73+'4-Manager'!B73+'5-Manager'!B73 -> 161 | C73: ='1-Manager'!C73+'2-Manager'!C73+'3-Manager'!C73+'4-Manager'!C73+'5-Manager'!C73 -> 90 | D73: ='1-Manager'!D73+'2-Manager'!D73+'3-Manager'!D73+'4-Manager'!D73+'5-Manager'!D73 -> 244 | E73: ='1-Manager'!E73+'2-Manager'!E73+'3-Manager'!E73+'4-Manager'!E73+'5-Manager'!E73 -> 97 | F73: 592 | H73: 3 | I73: 3
A74: 2020-03-12 | B74: ='1-Manager'!B74+'2-Manager'!B74+'3-Manager'!B74+'4-Manager'!B74+'5-Manager'!B74 -> 355 | C74: ='1-Manager'!C74+'2-Manager'!C74+'3-Manager'!C74+'4-Manager'!C74+'5-Manager'!C74 -> 164 | D74: ='1-Manager'!D74+'2-Manager'!D74+'3-Manager'!D74+'4-Manager'!D74+'5-Manager'!D74 -> 169 | E74: ='1-Manager'!E74+'2-Manager'!E74+'3-Manager'!E74+'4-Manager'!E74+'5-Manager'!E74 -> 179 | F74: 867 | H74: 4 | I74: 3
A75: 2020-03-13 | B75: ='1-Manager'!B75+'2-Manager'!B75+'3-Manager'!B75+'4-Manager'!B75+'5-Manager'!B75 -> 354 | C75: ='1-Manager'!C75+'2-Manager'!C75+'3-Manager'!C75+'4-Manager'!C75+'5-Manager'!C75 -> 215 | D75: ='1-Manager'!D75+'2-Manager'!D75+'3-Manager'!D75+'4-Manager'!D75+'5-Manager'!D75 -> 250 | E75: ='1-Manager'!E75+'2-Manager'!E75+'3-Manager'!E75+'4-Manager'!E75+'5-Manager'!E75 -> 197 | F75: 1016 | H75: 5 | I75: 3
A76: 2020-03-14 | B76: ='1-Manager'!B76+'2-Manager'!B76+'3-Manager'!B76+'4-Manager'!B76+'5-Manager'!B76 -> 145 | C76: ='1-Manager'!C76+'2-Manager'!C76+'3-Manager'!C76+'4-Manager'!C76+'5-Manager'!C76 -> 190 | D76: ='1-Manager'!D76+'2-Manager'!D76+'3-Manager'!D76+'4-Manager'!D76+'5-Manager'!D76 -> 151 | E76: ='1-Manager'!E76+'2-Manager'!E76+'3-Manager'!E76+'4-Manager'!E76+'5-Manager'!E76 -> 162 | F76: 648 | H76: 6 | I76: 3
A77: 2020-03-15 | B77: ='1-Manager'!B77+'2-Manager'!B77+'3-Manager'!B77+'4-Manager'!B77+'5-Manager'!B77 -> 75 | C77: ='1-Manager'!C77+'2-Manager'!C77+'3-Manager'!C77+'4-Manager'!C77+'5-Manager'!C77 -> 65 | D77: ='1-Manager'!D77+'2-Manager'!D77+'3-Manager'!D77+'4-Manager'!D77+'5-Manager'!D77 -> 110 | E77: ='1-Manager'!E77+'2-Manager'!E77+'3-Manager'!E77+'4-Manager'!E77+'5-Manager'!E77 -> 38 | F77: 288 | H77: 7 | I77: 3
A78: 2020-03-16 | B78: ='1-Manager'!B78+'2-Manager'!B78+'3-Manager'!B78+'4-Manager'!B78+'5-Manager'!B78 -> 219 | C78: ='1-Manager'!C78+'2-Manager'!C78+'3-Manager'!C78+'4-Manager'!C78+'5-Manager'!C78 -> 98 | D78: ='1-Manager'!D78+'2-Manager'!D78+'3-Manager'!D78+'4-Manager'!D78+'5-Manager'!D78 -> 238 | E78: ='1-Manager'!E78+'2-Manager'!E78+'3-Manager'!E78+'4-Manager'!E78+'5-Manager'!E78 -> 151 | F78: 706 | H78: 1 | I78: 3
A79: 2020-03-17 | B79: ='1-Manager'!B79+'2-Manager'!B79+'3-Manager'!B79+'4-Manager'!B79+'5-Manager'!B79 -> 267 | C79: ='1-Manager'!C79+'2-Manager'!C79+'3-Manager'!C79+'4-Manager'!C79+'5-Manager'!C79 -> 109 | D79: ='1-Manager'!D79+'2-Manager'!D79+'3-Manager'!D79+'4-Manager'!D79+'5-Manager'!D79 -> 226 | E79: ='1-Manager'!E79+'2-Manager'!E79+'3-Manager'!E79+'4-Manager'!E79+'5-Manager'!E79 -> 130 | F79: 732 | H79: 2 | I79: 3
A80: 2020-03-18 | B80: ='1-Manager'!B80+'2-Manager'!B80+'3-Manager'!B80+'4-Manager'!B80+'5-Manager'!B80 -> 181 | C80: ='1-Manager'!C80+'2-Manager'!C80+'3-Manager'!C80+'4-Manager'!C80+'5-Manager'!C80 -> 153 | D80: ='1-Manager'!D80+'2-Manager'!D80+'3-Manager'!D80+'4-Manager'!D80+'5-Manager'!D80 -> 392 | E80: ='1-Manager'!E80+'2-Manager'!E80+'3-Manager'!E80+'4-Manager'!E80+'5-Manager'!E80 -> 62 | F80: 788 | H80: 3 | I80: 3
A81: 2020-03-19 | B81: ='1-Manager'!B81+'2-Manager'!B81+'3-Manager'!B81+'4-Manager'!B81+'5-Manager'!B81 -> 284 | C81: ='1-Manager'!C81+'2-Manager'!C81+'3-Manager'!C81+'4-Manager'!C81+'5-Manager'!C81 -> 102 | D81: ='1-Manager'!D81+'2-Manager'!D81+'3-Manager'!D81+'4-Manager'!D81+'5-Manager'!D81 -> 231 | E81: ='1-Manager'!E81+'2-Manager'!E81+'3-Manager'!E81+'4-Manager'!E81+'5-Manager'!E81 -> 114 | F81: 731 | H81: 4 | I81: 3
A82: 2020-03-20 | B82: ='1-Manager'!B82+'2-Manager'!B82+'3-Manager'!B82+'4-Manager'!B82+'5-Manager'!B82 -> 355 | C82: ='1-Manager'!C82+'2-Manager'!C82+'3-Manager'!C82+'4-Manager'!C82+'5-Manager'!C82 -> 115 | D82: ='1-Manager'!D82+'2-Manager'!D82+'3-Manager'!D82+'4-Manager'!D82+'5-Manager'!D82 -> 259 | E82: ='1-Manager'!E82+'2-Manager'!E82+'3-Manager'!E82+'4-Manager'!E82+'5-Manager'!E82 -> 178 | F82: 907 | H82: 5 | I82: 3
A83: 2020-03-21 | B83: ='1-Manager'!B83+'2-Manager'!B83+'3-Manager'!B83+'4-Manager'!B83+'5-Manager'!B83 -> 178 | C83: ='1-Manager'!C83+'2-Manager'!C83+'3-Manager'!C83+'4-Manager'!C83+'5-Manager'!C83 -> 176 | D83: ='1-Manager'!D83+'2-Manager'!D83+'3-Manager'!D83+'4-Manager'!D83+'5-Manager'!D83 -> 226 | E83: ='1-Manager'!E83+'2-Manager'!E83+'3-Manager'!E83+'4-Manager'!E83+'5-Manager'!E83 -> 127 | F83: 707 | H83: 6 | I83: 3
A84: 2020-03-22 | B84: ='1-Manager'!B84+'2-Manager'!B84+'3-Manager'!B84+'4-Manager'!B84+'5-Manager'!B84 -> 130 | C84: ='1-Manager'!C84+'2-Manager'!C84+'3-Manager'!C84+'4-Manager'!C84+'5-Manager'!C84 -> 57 | D84: ='1-Manager'!D84+'2-Manager'!D84+'3-Manager'!D84+'4-Manager'!D84+'5-Manager'!D84 -> 89 | E84: ='1-Manager'!E84+'2-Manager'!E84+'3-Manager'!E84+'4-Manager'!E84+'5-Manager'!E84 -> 56 | F84: 332 | H84: 7 | I84: 3
A85: 2020-03-23 | B85: ='1-Manager'!B85+'2-Manager'!B85+'3-Manager'!B85+'4-Manager'!B85+'5-Manager'!B85 -> 167 | C85: ='1-Manager'!C85+'2-Manager'!C85+'3-Manager'!C85+'4-Manager'!C85+'5-Manager'!C85 -> 162 | D85: ='1-Manager'!D85+'2-Manager'!D85+'3-Manager'!D85+'4-Manager'!D85+'5-Manager'!D85 -> 288 | E85: ='1-Manager'!E85+'2-Manager'!E85+'3-Manager'!E85+'4-Manager'!E85+'5-Manager'!E85 -> 190 | F85: 807 | H85: 1 | I85: 3
A86: 2020-03-24 | B86: ='1-Manager'!B86+'2-Manager'!B86+'3-Manager'!B86+'4-Manager'!B86+'5-Manager'!B86 -> 294 | C86: ='1-Manager'!C86+'2-Manager'!C86+'3-Manager'!C86+'4-Manager'!C86+'5-Manager'!C86 -> 99 | D86: ='1-Manager'!D86+'2-Manager'!D86+'3-Manager'!D86+'4-Manager'!D86+'5-Manager'!D86 -> 343 | E86: ='1-Manager'!E86+'2-Manager'!E86+'3-Manager'!E86+'4-Manager'!E86+'5-Manager'!E86 -> 77 | F86: 813 | H86: 2 | I86: 3
A87: 2020-03-25 | B87: ='1-Manager'!B87+'2-Manager'!B87+'3-Manager'!B87+'4-Manager'!B87+'5-Manager'!B87 -> 275 | C87: ='1-Manager'!C87+'2-Manager'!C87+'3-Manager'!C87+'4-Manager'!C87+'5-Manager'!C87 -> 193 | D87: ='1-Manager'!D87+'2-Manager'!D87+'3-Manager'!D87+'4-Manager'!D87+'5-Manager'!D87 -> 371 | E87: ='1-Manager'!E87+'2-Manager'!E87+'3-Manager'!E87+'4-Manager'!E87+'5-Manager'!E87 -> 112 | F87: 951 | H87: 3 | I87: 3
A88: 2020-03-26 | B88: ='1-Manager'!B88+'2-Manager'!B88+'3-Manager'!B88+'4-Manager'!B88+'5-Manager'!B88 -> 233 | C88: ='1-Manager'!C88+'2-Manager'!C88+'3-Manager'!C88+'4-Manager'!C88+'5-Manager'!C88 -> 149 | D88: ='1-Manager'!D88+'2-Manager'!D88+'3-Manager'!D88+'4-Manager'!D88+'5-Manager'!D88 -> 159 | E88: ='1-Manager'!E88+'2-Manager'!E88+'3-Manager'!E88+'4-Manager'!E88+'5-Manager'!E88 -> 133 | F88: 674 | H88: 4 | I88: 3
A89: 2020-03-27 | B89: ='1-Manager'!B89+'2-Manager'!B89+'3-Manager'!B89+'4-Manager'!B89+'5-Manager'!B89 -> 264 | C89: ='1-Manager'!C89+'2-Manager'!C89+'3-Manager'!C89+'4-Manager'!C89+'5-Manager'!C89 -> 155 | D89: ='1-Manager'!D89+'2-Manager'!D89+'3-Manager'!D89+'4-Manager'!D89+'5-Manager'!D89 -> 384 | E89: ='1-Manager'!E89+'2-Manager'!E89+'3-Manager'!E89+'4-Manager'!E89+'5-Manager'!E89 -> 214 | F89: 1017 | H89: 5 | I89: 3
A90: 2020-03-28 | B90: ='1-Manager'!B90+'2-Manager'!B90+'3-Manager'!B90+'4-Manager'!B90+'5-Manager'!B90 -> 261 | C90: ='1-Manager'!C90+'2-Manager'!C90+'3-Manager'!C90+'4-Manager'!C90+'5-Manager'!C90 -> 171 | D90: ='1-Manager'!D90+'2-Manager'!D90+'3-Manager'!D90+'4-Manager'!D90+'5-Manager'!D90 -> 185 | E90: ='1-Manager'!E90+'2-Manager'!E90+'3-Manager'!E90+'4-Manager'!E90+'5-Manager'!E90 -> 153 | F90: 770 | H90: 6 | I90: 3
A91: 2020-03-29 | B91: ='1-Manager'!B91+'2-Manager'!B91+'3-Manager'!B91+'4-Manager'!B91+'5-Manager'!B91 -> 152 | C91: ='1-Manager'!C91+'2-Manager'!C91+'3-Manager'!C91+'4-Manager'!C91+'5-Manager'!C91 -> 52 | D91: ='1-Manager'!D91+'2-Manager'!D91+'3-Manager'!D91+'4-Manager'!D91+'5-Manager'!D91 -> 82 | E91: ='1-Manager'!E91+'2-Manager'!E91+'3-Manager'!E91+'4-Manager'!E91+'5-Manager'!E91 -> 58 | F91: 344 | H91: 7 | I91: 3
A92: 2020-03-30 | B92: ='1-Manager'!B92+'2-Manager'!B92+'3-Manager'!B92+'4-Manager'!B92+'5-Manager'!B92 -> 295 | C92: ='1-Manager'!C92+'2-Manager'!C92+'3-Manager'!C92+'4-Manager'!C92+'5-Manager'!C92 -> 133 | D92: ='1-Manager'!D92+'2-Manager'!D92+'3-Manager'!D92+'4-Manager'!D92+'5-Manager'!D92 -> 171 | E92: ='1-Manager'!E92+'2-Manager'!E92+'3-Manager'!E92+'4-Manager'!E92+'5-Manager'!E92 -> 148 | F92: 747 | H92: 1 | I92: 3
A93: 2020-03-31 | B93: ='1-Manager'!B93+'2-Manager'!B93+'3-Manager'!B93+'4-Manager'!B93+'5-Manager'!B93 -> 273 | C93: ='1-Manager'!C93+'2-Manager'!C93+'3-Manager'!C93+'4-Manager'!C93+'5-Manager'!C93 -> 90 | D93: ='1-Manager'!D93+'2-Manager'!D93+'3-Manager'!D93+'4-Manager'!D93+'5-Manager'!D93 -> 221 | E93: ='1-Manager'!E93+'2-Manager'!E93+'3-Manager'!E93+'4-Manager'!E93+'5-Manager'!E93 -> 183 | F93: 767 | H93: 2 | I93: 3
A94: 2020-04-01 | B94: ='1-Manager'!B94+'2-Manager'!B94+'3-Manager'!B94+'4-Manager'!B94+'5-Manager'!B94 -> 288 | C94: ='1-Manager'!C94+'2-Manager'!C94+'3-Manager'!C94+'4-Manager'!C94+'5-Manager'!C94 -> 172 | D94: ='1-Manager'!D94+'2-Manager'!D94+'3-Manager'!D94+'4-Manager'!D94+'5-Manager'!D94 -> 334 | E94: ='1-Manager'!E94+'2-Manager'!E94+'3-Manager'!E94+'4-Manager'!E94+'5-Manager'!E94 -> 146 | F94: 940 | H94: 3 | I94: 4
A95: 2020-04-02 | B95: ='1-Manager'!B95+'2-Manager'!B95+'3-Manager'!B95+'4-Manager'!B95+'5-Manager'!B95 -> 255 | C95: ='1-Manager'!C95+'2-Manager'!C95+'3-Manager'!C95+'4-Manager'!C95+'5-Manager'!C95 -> 194 | D95: ='1-Manager'!D95+'2-Manager'!D95+'3-Manager'!D95+'4-Manager'!D95+'5-Manager'!D95 -> 226 | E95: ='1-Manager'!E95+'2-Manager'!E95+'3-Manager'!E95+'4-Manager'!E95+'5-Manager'!E95 -> 148 | F95: 823 | H95: 4 | I95: 4
A96: 2020-04-03 | B96: ='1-Manager'!B96+'2-Manager'!B96+'3-Manager'!B96+'4-Manager'!B96+'5-Manager'!B96 -> 214 | C96: ='1-Manager'!C96+'2-Manager'!C96+'3-Manager'!C96+'4-Manager'!C96+'5-Manager'!C96 -> 182 | D96: ='1-Manager'!D96+'2-Manager'!D96+'3-Manager'!D96+'4-Manager'!D96+'5-Manager'!D96 -> 245 | E96: ='1-Manager'!E96+'2-Manager'!E96+'3-Manager'!E96+'4-Manager'!E96+'5-Manager'!E96 -> 162 | F96: 803 | H96: 5 | I96: 4
A97: 2020-04-04 | B97: ='1-Manager'!B97+'2-Manager'!B97+'3-Manager'!B97+'4-Manager'!B97+'5-Manager'!B97 -> 275 | C97: ='1-Manager'!C97+'2-Manager'!C97+'3-Manager'!C97+'4-Manager'!C97+'5-Manager'!C97 -> 162 | D97: ='1-Manager'!D97+'2-Manager'!D97+'3-Manager'!D97+'4-Manager'!D97+'5-Manager'!D97 -> 282 | E97: ='1-Manager'!E97+'2-Manager'!E97+'3-Manager'!E97+'4-Manager'!E97+'5-Manager'!E97 -> 127 | F97: 846 | H97: 6 | I97: 4
A98: 2020-04-05 | B98: ='1-Manager'!B98+'2-Manager'!B98+'3-Manager'!B98+'4-Manager'!B98+'5-Manager'!B98 -> 73 | C98: ='1-Manager'!C98+'2-Manager'!C98+'3-Manager'!C98+'4-Manager'!C98+'5-Manager'!C98 -> 37 | D98: ='1-Manager'!D98+'2-Manager'!D98+'3-Manager'!D98+'4-Manager'!D98+'5-Manager'!D98 -> 115 | E98: ='1-Manager'!E98+'2-Manager'!E98+'3-Manager'!E98+'4-Manager'!E98+'5-Manager'!E98 -> 50 | F98: 275 | H98: 7 | I98: 4
A99: 2020-04-06 | B99: ='1-Manager'!B99+'2-Manager'!B99+'3-Manager'!B99+'4-Manager'!B99+'5-Manager'!B99 -> 180 | C99: ='1-Manager'!C99+'2-Manager'!C99+'3-Manager'!C99+'4-Manager'!C99+'5-Manager'!C99 -> 106 | D99: ='1-Manager'!D99+'2-Manager'!D99+'3-Manager'!D99+'4-Manager'!D99+'5-Manager'!D99 -> 164 | E99: ='1-Manager'!E99+'2-Manager'!E99+'3-Manager'!E99+'4-Manager'!E99+'5-Manager'!E99 -> 137 | F99: 587 | H99: 1 | I99: 4
A100: 2020-04-07 | B100: ='1-Manager'!B100+'2-Manager'!B100+'3-Manager'!B100+'4-Manager'!B100+'5-Manager'!B100 -> 259 | C100: ='1-Manager'!C100+'2-Manager'!C100+'3-Manager'!C100+'4-Manager'!C100+'5-Manager'!C100 -> 84 | D100: ='1-Manager'!D100+'2-Manager'!D100+'3-Manager'!D100+'4-Manager'!D100+'5-Manager'!D100 -> 306 | E100: ='1-Manager'!E100+'2-Manager'!E100+'3-Manager'!E100+'4-Manager'!E100+'5-Manager'!E100 -> 117 | F100: 766 | H100: 2 | I100: 4
A101: 2020-04-08 | B101: ='1-Manager'!B101+'2-Manager'!B101+'3-Manager'!B101+'4-Manager'!B101+'5-Manager'!B101 -> 345 | C101: ='1-Manager'!C101+'2-Manager'!C101+'3-Manager'!C101+'4-Manager'!C101+'5-Manager'!C101 -> 152 | D101: ='1-Manager'!D101+'2-Manager'!D101+'3-Manager'!D101+'4-Manager'!D101+'5-Manager'!D101 -> 252 | E101: ='1-Manager'!E101+'2-Manager'!E101+'3-Manager'!E101+'4-Manager'!E101+'5-Manager'!E101 -> 186 | F101: 935 | H101: 3 | I101: 4
A102: 2020-04-09 | B102: ='1-Manager'!B102+'2-Manager'!B102+'3-Manager'!B102+'4-Manager'!B102+'5-Manager'!B102 -> 302 | C102: ='1-Manager'!C102+'2-Manager'!C102+'3-Manager'!C102+'4-Manager'!C102+'5-Manager'!C102 -> 164 | D102: ='1-Manager'!D102+'2-Manager'!D102+'3-Manager'!D102+'4-Manager'!D102+'5-Manager'!D102 -> 243 | E102: ='1-Manager'!E102+'2-Manager'!E102+'3-Manager'!E102+'4-Manager'!E102+'5-Manager'!E102 -> 81 | F102: 790 | H102: 4 | I102: 4
A103: 2020-04-10 | B103: ='1-Manager'!B103+'2-Manager'!B103+'3-Manager'!B103+'4-Manager'!B103+'5-Manager'!B103 -> 181 | C103: ='1-Manager'!C103+'2-Manager'!C103+'3-Manager'!C103+'4-Manager'!C103+'5-Manager'!C103 -> 192 | D103: ='1-Manager'!D103+'2-Manager'!D103+'3-Manager'!D103+'4-Manager'!D103+'5-Manager'!D103 -> 247 | E103: ='1-Manager'!E103+'2-Manager'!E103+'3-Manager'!E103+'4-Manager'!E103+'5-Manager'!E103 -> 104 | F103: 724 | H103: 5 | I103: 4
A104: 2020-04-11 | B104: ='1-Manager'!B104+'2-Manager'!B104+'3-Manager'!B104+'4-Manager'!B104+'5-Manager'!B104 -> 363 | C104: ='1-Manager'!C104+'2-Manager'!C104+'3-Manager'!C104+'4-Manager'!C104+'5-Manager'!C104 -> 156 | D104: ='1-Manager'!D104+'2-Manager'!D104+'3-Manager'!D104+'4-Manager'!D104+'5-Manager'!D104 -> 249 | E104: ='1-Manager'!E104+'2-Manager'!E104+'3-Manager'!E104+'4-Manager'!E104+'5-Manager'!E104 -> 146 | F104: 914 | H104: 6 | I104: 4
A105: 2020-04-12 | B105: ='1-Manager'!B105+'2-Manager'!B105+'3-Manager'!B105+'4-Manager'!B105+'5-Manager'!B105 -> 137 | C105: ='1-Manager'!C105+'2-Manager'!C105+'3-Manager'!C105+'4-Manager'!C105+'5-Manager'!C105 -> 39 | D105: ='1-Manager'!D105+'2-Manager'!D105+'3-Manager'!D105+'4-Manager'!D105+'5-Manager'!D105 -> 91 | E105: ='1-Manager'!E105+'2-Manager'!E105+'3-Manager'!E105+'4-Manager'!E105+'5-Manager'!E105 -> 67 | F105: 334 | H105: 7 | I105: 4
A106: 2020-04-13 | B106: ='1-Manager'!B106+'2-Manager'!B106+'3-Manager'!B106+'4-Manager'!B106+'5-Manager'!B106 -> 201 | C106: ='1-Manager'!C106+'2-Manager'!C106+'3-Manager'!C106+'4-Manager'!C106+'5-Manager'!C106 -> 107 | D106: ='1-Manager'!D106+'2-Manager'!D106+'3-Manager'!D106+'4-Manager'!D106+'5-Manager'!D106 -> 198 | E106: ='1-Manager'!E106+'2-Manager'!E106+'3-Manager'!E106+'4-Manager'!E106+'5-Manager'!E106 -> 120 | F106: 626 | H106: 1 | I106: 4
A107: 2020-04-14 | B107: ='1-Manager'!B107+'2-Manager'!B107+'3-Manager'!B107+'4-Manager'!B107+'5-Manager'!B107 -> 223 | C107: ='1-Manager'!C107+'2-Manager'!C107+'3-Manager'!C107+'4-Manager'!C107+'5-Manager'!C107 -> 134 | D107: ='1-Manager'!D107+'2-Manager'!D107+'3-Manager'!D107+'4-Manager'!D107+'5-Manager'!D107 -> 233 | E107: ='1-Manager'!E107+'2-Manager'!E107+'3-Manager'!E107+'4-Manager'!E107+'5-Manager'!E107 -> 130 | F107: 720 | H107: 2 | I107: 4
A108: 2020-04-15 | B108: ='1-Manager'!B108+'2-Manager'!B108+'3-Manager'!B108+'4-Manager'!B108+'5-Manager'!B108 -> 273 | C108: ='1-Manager'!C108+'2-Manager'!C108+'3-Manager'!C108+'4-Manager'!C108+'5-Manager'!C108 -> 65 | D108: ='1-Manager'!D108+'2-Manager'!D108+'3-Manager'!D108+'4-Manager'!D108+'5-Manager'!D108 -> 238 | E108: ='1-Manager'!E108+'2-Manager'!E108+'3-Manager'!E108+'4-Manager'!E108+'5-Manager'!E108 -> 142 | F108: 718 | H108: 3 | I108: 4
A109: 2020-04-16 | B109: ='1-Manager'!B109+'2-Manager'!B109+'3-Manager'!B109+'4-Manager'!B109+'5-Manager'!B109 -> 318 | C109: ='1-Manager'!C109+'2-Manager'!C109+'3-Manager'!C109+'4-Manager'!C109+'5-Manager'!C109 -> 137 | D109: ='1-Manager'!D109+'2-Manager'!D109+'3-Manager'!D109+'4-Manager'!D109+'5-Manager'!D109 -> 201 | E109: ='1-Manager'!E109+'2-Manager'!E109+'3-Manager'!E109+'4-Manager'!E109+'5-Manager'!E109 -> 181 | F109: 837 | H109: 4 | I109: 4
A110: 2020-04-17 | B110: ='1-Manager'!B110+'2-Manager'!B110+'3-Manager'!B110+'4-Manager'!B110+'5-Manager'!B110 -> 248 | C110: ='1-Manager'!C110+'2-Manager'!C110+'3-Manager'!C110+'4-Manager'!C110+'5-Manager'!C110 -> 183 | D110: ='1-Manager'!D110+'2-Manager'!D110+'3-Manager'!D110+'4-Manager'!D110+'5-Manager'!D110 -> 389 | E110: ='1-Manager'!E110+'2-Manager'!E110+'3-Manager'!E110+'4-Manager'!E110+'5-Manager'!E110 -> 183 | F110: 1003 | H110: 5 | I110: 4
A111: 2020-04-18 | B111: ='1-Manager'!B111+'2-Manager'!B111+'3-Manager'!B111+'4-Manager'!B111+'5-Manager'!B111 -> 196 | C111: ='1-Manager'!C111+'2-Manager'!C111+'3-Manager'!C111+'4-Manager'!C111+'5-Manager'!C111 -> 136 | D111: ='1-Manager'!D111+'2-Manager'!D111+'3-Manager'!D111+'4-Manager'!D111+'5-Manager'!D111 -> 334 | E111: ='1-Manager'!E111+'2-Manager'!E111+'3-Manager'!E111+'4-Manager'!E111+'5-Manager'!E111 -> 48 | F111: 714 | H111: 6 | I111: 4
A112: 2020-04-19 | B112: ='1-Manager'!B112+'2-Manager'!B112+'3-Manager'!B112+'4-Manager'!B112+'5-Manager'!B112 -> 112 | C112: ='1-Manager'!C112+'2-Manager'!C112+'3-Manager'!C112+'4-Manager'!C112+'5-Manager'!C112 -> 49 | D112: ='1-Manager'!D112+'2-Manager'!D112+'3-Manager'!D112+'4-Manager'!D112+'5-Manager'!D112 -> 77 | E112: ='1-Manager'!E112+'2-Manager'!E112+'3-Manager'!E112+'4-Manager'!E112+'5-Manager'!E112 -> 41 | F112: 279 | H112: 7 | I112: 4
A113: 2020-04-20 | B113: ='1-Manager'!B113+'2-Manager'!B113+'3-Manager'!B113+'4-Manager'!B113+'5-Manager'!B113 -> 223 | C113: ='1-Manager'!C113+'2-Manager'!C113+'3-Manager'!C113+'4-Manager'!C113+'5-Manager'!C113 -> 110 | D113: ='1-Manager'!D113+'2-Manager'!D113+'3-Manager'!D113+'4-Manager'!D113+'5-Manager'!D113 -> 90 | E113: ='1-Manager'!E113+'2-Manager'!E113+'3-Manager'!E113+'4-Manager'!E113+'5-Manager'!E113 -> 118 | F113: 541 | H113: 1 | I113: 4
A114: 2020-04-21 | B114: ='1-Manager'!B114+'2-Manager'!B114+'3-Manager'!B114+'4-Manager'!B114+'5-Manager'!B114 -> 283 | C114: ='1-Manager'!C114+'2-Manager'!C114+'3-Manager'!C114+'4-Manager'!C114+'5-Manager'!C114 -> 94 | D114: ='1-Manager'!D114+'2-Manager'!D114+'3-Manager'!D114+'4-Manager'!D114+'5-Manager'!D114 -> 185 | E114: ='1-Manager'!E114+'2-Manager'!E114+'3-Manager'!E114+'4-Manager'!E114+'5-Manager'!E114 -> 137 | F114: 699 | H114: 2 | I114: 4
A115: 2020-04-22 | B115: ='1-Manager'!B115+'2-Manager'!B115+'3-Manager'!B115+'4-Manager'!B115+'5-Manager'!B115 -> 171 | C115: ='1-Manager'!C115+'2-Manager'!C115+'3-Manager'!C115+'4-Manager'!C115+'5-Manager'!C115 -> 83 | D115: ='1-Manager'!D115+'2-Manager'!D115+'3-Manager'!D115+'4-Manager'!D115+'5-Manager'!D115 -> 293 | E115: ='1-Manager'!E115+'2-Manager'!E115+'3-Manager'!E115+'4-Manager'!E115+'5-Manager'!E115 -> 175 | F115: 722 | H115: 3 | I115: 4
A116: 2020-04-23 | B116: ='1-Manager'!B116+'2-Manager'!B116+'3-Manager'!B116+'4-Manager'!B116+'5-Manager'!B116 -> 250 | C116: ='1-Manager'!C116+'2-Manager'!C116+'3-Manager'!C116+'4-Manager'!C116+'5-Manager'!C116 -> 169 | D116: ='1-Manager'!D116+'2-Manager'!D116+'3-Manager'!D116+'4-Manager'!D116+'5-Manager'!D116 -> 349 | E116: ='1-Manager'!E116+'2-Manager'!E116+'3-Manager'!E116+'4-Manager'!E116+'5-Manager'!E116 -> 133 | F116: 901 | H116: 4 | I116: 4
A117: 2020-04-24 | B117: ='1-Manager'!B117+'2-Manager'!B117+'3-Manager'!B117+'4-Manager'!B117+'5-Manager'!B117 -> 232 | C117: ='1-Manager'!C117+'2-Manager'!C117+'3-Manager'!C117+'4-Manager'!C117+'5-Manager'!C117 -> 132 | D117: ='1-Manager'!D117+'2-Manager'!D117+'3-Manager'!D117+'4-Manager'!D117+'5-Manager'!D117 -> 200 | E117: ='1-Manager'!E117+'2-Manager'!E117+'3-Manager'!E117+'4-Manager'!E117+'5-Manager'!E117 -> 175 | F117: 739 | H117: 5 | I117: 4
A118: 2020-04-25 | B118: ='1-Manager'!B118+'2-Manager'!B118+'3-Manager'!B118+'4-Manager'!B118+'5-Manager'!B118 -> 303 | C118: ='1-Manager'!C118+'2-Manager'!C118+'3-Manager'!C118+'4-Manager'!C118+'5-Manager'!C118 -> 212 | D118: ='1-Manager'!D118+'2-Manager'!D118+'3-Manager'!D118+'4-Manager'!D118+'5-Manager'!D118 -> 243 | E118: ='1-Manager'!E118+'2-Manager'!E118+'3-Manager'!E118+'4-Manager'!E118+'5-Manager'!E118 -> 143 | F118: 901 | H118: 6 | I118: 4
A119: 2020-04-26 | B119: ='1-Manager'!B119+'2-Manager'!B119+'3-Manager'!B119+'4-Manager'!B119+'5-Manager'!B119 -> 65 | C119: ='1-Manager'!C119+'2-Manager'!C119+'3-Manager'!C119+'4-Manager'!C119+'5-Manager'!C119 -> 47 | D119: ='1-Manager'!D119+'2-Manager'!D119+'3-Manager'!D119+'4-Manager'!D119+'5-Manager'!D119 -> 83 | E119: ='1-Manager'!E119+'2-Manager'!E119+'3-Manager'!E119+'4-Manager'!E119+'5-Manager'!E119 -> 62 | F119: 257 | H119: 7 | I119: 4
A120: 2020-04-27 | B120: ='1-Manager'!B120+'2-Manager'!B120+'3-Manager'!B120+'4-Manager'!B120+'5-Manager'!B120 -> 215 | C120: ='1-Manager'!C120+'2-Manager'!C120+'3-Manager'!C120+'4-Manager'!C120+'5-Manager'!C120 -> 175 | D120: ='1-Manager'!D120+'2-Manager'!D120+'3-Manager'!D120+'4-Manager'!D120+'5-Manager'!D120 -> 312 | E120: ='1-Manager'!E120+'2-Manager'!E120+'3-Manager'!E120+'4-Manager'!E120+'5-Manager'!E120 -> 146 | F120: 848 | H120: 1 | I120: 4
A121: 2020-04-28 | B121: ='1-Manager'!B121+'2-Manager'!B121+'3-Manager'!B121+'4-Manager'!B121+'5-Manager'!B121 -> 292 | C121: ='1-Manager'!C121+'2-Manager'!C121+'3-Manager'!C121+'4-Manager'!C121+'5-Manager'!C121 -> 80 | D121: ='1-Manager'!D121+'2-Manager'!D121+'3-Manager'!D121+'4-Manager'!D121+'5-Manager'!D121 -> 258 | E121: ='1-Manager'!E121+'2-Manager'!E121+'3-Manager'!E121+'4-Manager'!E121+'5-Manager'!E121 -> 140 | F121: 770 | H121: 2 | I121: 4
A122: 2020-04-29 | B122: ='1-Manager'!B122+'2-Manager'!B122+'3-Manager'!B122+'4-Manager'!B122+'5-Manager'!B122 -> 261 | C122: ='1-Manager'!C122+'2-Manager'!C122+'3-Manager'!C122+'4-Manager'!C122+'5-Manager'!C122 -> 186 | D122: ='1-Manager'!D122+'2-Manager'!D122+'3-Manager'!D122+'4-Manager'!D122+'5-Manager'!D122 -> 285 | E122: ='1-Manager'!E122+'2-Manager'!E122+'3-Manager'!E122+'4-Manager'!E122+'5-Manager'!E122 -> 104 | F122: 836 | H122: 3 | I122: 4
A123: 2020-04-30 | B123: ='1-Manager'!B123+'2-Manager'!B123+'3-Manager'!B123+'4-Manager'!B123+'5-Manager'!B123 -> 332 | C123: ='1-Manager'!C123+'2-Manager'!C123+'3-Manager'!C123+'4-Manager'!C123+'5-Manager'!C123 -> 97 | D123: ='1-Manager'!D123+'2-Manager'!D123+'3-Manager'!D123+'4-Manager'!D123+'5-Manager'!D123 -> 270 | E123: ='1-Manager'!E123+'2-Manager'!E123+'3-Manager'!E123+'4-Manager'!E123+'5-Manager'!E123 -> 198 | F123: 897 | H123: 4 | I123: 4
A124: 2020-05-01 | B124: ='1-Manager'!B124+'2-Manager'!B124+'3-Manager'!B124+'4-Manager'!B124+'5-Manager'!B124 -> 333 | C124: ='1-Manager'!C124+'2-Manager'!C124+'3-Manager'!C124+'4-Manager'!C124+'5-Manager'!C124 -> 247 | D124: ='1-Manager'!D124+'2-Manager'!D124+'3-Manager'!D124+'4-Manager'!D124+'5-Manager'!D124 -> 346 | E124: ='1-Manager'!E124+'2-Manager'!E124+'3-Manager'!E124+'4-Manager'!E124+'5-Manager'!E124 -> 160 | F124: 1086 | H124: 5 | I124: 5
A125: 2020-05-02 | B125: ='1-Manager'!B125+'2-Manager'!B125+'3-Manager'!B125+'4-Manager'!B125+'5-Manager'!B125 -> 308 | C125: ='1-Manager'!C125+'2-Manager'!C125+'3-Manager'!C125+'4-Manager'!C125+'5-Manager'!C125 -> 87 | D125: ='1-Manager'!D125+'2-Manager'!D125+'3-Manager'!D125+'4-Manager'!D125+'5-Manager'!D125 -> 213 | E125: ='1-Manager'!E125+'2-Manager'!E125+'3-Manager'!E125+'4-Manager'!E125+'5-Manager'!E125 -> 143 | F125: 751 | H125: 6 | I125: 5
A126: 2020-05-03 | B126: ='1-Manager'!B126+'2-Manager'!B126+'3-Manager'!B126+'4-Manager'!B126+'5-Manager'!B126 -> 95 | C126: ='1-Manager'!C126+'2-Manager'!C126+'3-Manager'!C126+'4-Manager'!C126+'5-Manager'!C126 -> 51 | D126: ='1-Manager'!D126+'2-Manager'!D126+'3-Manager'!D126+'4-Manager'!D126+'5-Manager'!D126 -> 87 | E126: ='1-Manager'!E126+'2-Manager'!E126+'3-Manager'!E126+'4-Manager'!E126+'5-Manager'!E126 -> 57 | F126: 290 | H126: 7 | I126: 5
A127: 2020-05-04 | B127: ='1-Manager'!B127+'2-Manager'!B127+'3-Manager'!B127+'4-Manager'!B127+'5-Manager'!B127 -> 243 | C127: ='1-Manager'!C127+'2-Manager'!C127+'3-Manager'!C127+'4-Manager'!C127+'5-Manager'!C127 -> 119 | D127: ='1-Manager'!D127+'2-Manager'!D127+'3-Manager'!D127+'4-Manager'!D127+'5-Manager'!D127 -> 200 | E127: ='1-Manager'!E127+'2-Manager'!E127+'3-Manager'!E127+'4-Manager'!E127+'5-Manager'!E127 -> 127 | F127: 689 | H127: 1 | I127: 5
A128: 2020-05-05 | B128: ='1-Manager'!B128+'2-Manager'!B128+'3-Manager'!B128+'4-Manager'!B128+'5-Manager'!B128 -> 224 | C128: ='1-Manager'!C128+'2-Manager'!C128+'3-Manager'!C128+'4-Manager'!C128+'5-Manager'!C128 -> 128 | D128: ='1-Manager'!D128+'2-Manager'!D128+'3-Manager'!D128+'4-Manager'!D128+'5-Manager'!D128 -> 163 | E128: ='1-Manager'!E128+'2-Manager'!E128+'3-Manager'!E128+'4-Manager'!E128+'5-Manager'!E128 -> 157 | F128: 672 | H128: 2 | I128: 5
A129: 2020-05-06 | B129: ='1-Manager'!B129+'2-Manager'!B129+'3-Manager'!B129+'4-Manager'!B129+'5-Manager'!B129 -> 197 | C129: ='1-Manager'!C129+'2-Manager'!C129+'3-Manager'!C129+'4-Manager'!C129+'5-Manager'!C129 -> 85 | D129: ='1-Manager'!D129+'2-Manager'!D129+'3-Manager'!D129+'4-Manager'!D129+'5-Manager'!D129 -> 154 | E129: ='1-Manager'!E129+'2-Manager'!E129+'3-Manager'!E129+'4-Manager'!E129+'5-Manager'!E129 -> 107 | F129: 543 | H129: 3 | I129: 5
A130: 2020-05-07 | B130: ='1-Manager'!B130+'2-Manager'!B130+'3-Manager'!B130+'4-Manager'!B130+'5-Manager'!B130 -> 217 | C130: ='1-Manager'!C130+'2-Manager'!C130+'3-Manager'!C130+'4-Manager'!C130+'5-Manager'!C130 -> 155 | D130: ='1-Manager'!D130+'2-Manager'!D130+'3-Manager'!D130+'4-Manager'!D130+'5-Manager'!D130 -> 256 | E130: ='1-Manager'!E130+'2-Manager'!E130+'3-Manager'!E130+'4-Manager'!E130+'5-Manager'!E130 -> 113 | F130: 741 | H130: 4 | I130: 5
A131: 2020-05-08 | B131: ='1-Manager'!B131+'2-Manager'!B131+'3-Manager'!B131+'4-Manager'!B131+'5-Manager'!B131 -> 257 | C131: ='1-Manager'!C131+'2-Manager'!C131+'3-Manager'!C131+'4-Manager'!C131+'5-Manager'!C131 -> 193 | D131: ='1-Manager'!D131+'2-Manager'!D131+'3-Manager'!D131+'4-Manager'!D131+'5-Manager'!D131 -> 266 | E131: ='1-Manager'!E131+'2-Manager'!E131+'3-Manager'!E131+'4-Manager'!E131+'5-Manager'!E131 -> 128 | F131: 844 | H131: 5 | I131: 5
A132: 2020-05-09 | B132: ='1-Manager'!B132+'2-Manager'!B132+'3-Manager'!B132+'4-Manager'!B132+'5-Manager'!B132 -> 182 | C132: ='1-Manager'!C132+'2-Manager'!C132+'3-Manager'!C132+'4-Manager'!C132+'5-Manager'!C132 -> 149 | D132: ='1-Manager'!D132+'2-Manager'!D132+'3-Manager'!D132+'4-Manager'!D132+'5-Manager'!D132 -> 156 | E132: ='1-Manager'!E132+'2-Manager'!E132+'3-Manager'!E132+'4-Manager'!E132+'5-Manager'!E132 -> 158 | F132: =SUM(B132:E132) -> 645 | H132: =WEEKDAY(A132,2) -> 6 | I132: =MONTH(A132) -> 5
A133: 2020-05-10 | B133: ='1-Manager'!B133+'2-Manager'!B133+'3-Manager'!B133+'4-Manager'!B133+'5-Manager'!B133 -> 83 | C133: ='1-Manager'!C133+'2-Manager'!C133+'3-Manager'!C133+'4-Manager'!C133+'5-Manager'!C133 -> 40 | D133: ='1-Manager'!D133+'2-Manager'!D133+'3-Manager'!D133+'4-Manager'!D133+'5-Manager'!D133 -> 82 | E133: ='1-Manager'!E133+'2-Manager'!E133+'3-Manager'!E133+'4-Manager'!E133+'5-Manager'!E133 -> 36 | F133: 241 | H133: 7 | I133: 5
A134: 2020-05-11 | B134: ='1-Manager'!B134+'2-Manager'!B134+'3-Manager'!B134+'4-Manager'!B134+'5-Manager'!B134 -> 226 | C134: ='1-Manager'!C134+'2-Manager'!C134+'3-Manager'!C134+'4-Manager'!C134+'5-Manager'!C134 -> 140 | D134: ='1-Manager'!D134+'2-Manager'!D134+'3-Manager'!D134+'4-Manager'!D134+'5-Manager'!D134 -> 149 | E134: ='1-Manager'!E134+'2-Manager'!E134+'3-Manager'!E134+'4-Manager'!E134+'5-Manager'!E134 -> 149 | F134: 664 | H134: 1 | I134: 5
A135: 2020-05-12 | B135: ='1-Manager'!B135+'2-Manager'!B135+'3-Manager'!B135+'4-Manager'!B135+'5-Manager'!B135 -> 231 | C135: ='1-Manager'!C135+'2-Manager'!C135+'3-Manager'!C135+'4-Manager'!C135+'5-Manager'!C135 -> 157 | D135: ='1-Manager'!D135+'2-Manager'!D135+'3-Manager'!D135+'4-Manager'!D135+'5-Manager'!D135 -> 186 | E135: ='1-Manager'!E135+'2-Manager'!E135+'3-Manager'!E135+'4-Manager'!E135+'5-Manager'!E135 -> 180 | F135: 754 | H135: 2 | I135: 5
A136: 2020-05-13 | B136: ='1-Manager'!B136+'2-Manager'!B136+'3-Manager'!B136+'4-Manager'!B136+'5-Manager'!B136 -> 350 | C136: ='1-Manager'!C136+'2-Manager'!C136+'3-Manager'!C136+'4-Manager'!C136+'5-Manager'!C136 -> 222 | D136: ='1-Manager'!D136+'2-Manager'!D136+'3-Manager'!D136+'4-Manager'!D136+'5-Manager'!D136 -> 219 | E136: ='1-Manager'!E136+'2-Manager'!E136+'3-Manager'!E136+'4-Manager'!E136+'5-Manager'!E136 -> 127 | F136: 918 | H136: 3 | I136: 5
A137: 2020-05-14 | B137: ='1-Manager'!B137+'2-Manager'!B137+'3-Manager'!B137+'4-Manager'!B137+'5-Manager'!B137 -> 194 | C137: ='1-Manager'!C137+'2-Manager'!C137+'3-Manager'!C137+'4-Manager'!C137+'5-Manager'!C137 -> 163 | D137: ='1-Manager'!D137+'2-Manager'!D137+'3-Manager'!D137+'4-Manager'!D137+'5-Manager'!D137 -> 117 | E137: ='1-Manager'!E137+'2-Manager'!E137+'3-Manager'!E137+'4-Manager'!E137+'5-Manager'!E137 -> 141 | F137: 615 | H137: 4 | I137: 5
A138: 2020-05-15 | B138: ='1-Manager'!B138+'2-Manager'!B138+'3-Manager'!B138+'4-Manager'!B138+'5-Manager'!B138 -> 324 | C138: ='1-Manager'!C138+'2-Manager'!C138+'3-Manager'!C138+'4-Manager'!C138+'5-Manager'!C138 -> 105 | D138: ='1-Manager'!D138+'2-Manager'!D138+'3-Manager'!D138+'4-Manager'!D138+'5-Manager'!D138 -> 311 | E138: ='1-Manager'!E138+'2-Manager'!E138+'3-Manager'!E138+'4-Manager'!E138+'5-Manager'!E138 -> 208 | F138: 948 | H138: 5 | I138: 5
A139: 2020-05-16 | B139: ='1-Manager'!B139+'2-Manager'!B139+'3-Manager'!B139+'4-Manager'!B139+'5-Manager'!B139 -> 422 | C139: ='1-Manager'!C139+'2-Manager'!C139+'3-Manager'!C139+'4-Manager'!C139+'5-Manager'!C139 -> 166 | D139: ='1-Manager'!D139+'2-Manager'!D139+'3-Manager'!D139+'4-Manager'!D139+'5-Manager'!D139 -> 163 | E139: ='1-Manager'!E139+'2-Manager'!E139+'3-Manager'!E139+'4-Manager'!E139+'5-Manager'!E139 -> 124 | F139: 875 | H139: 6 | I139: 5
A140: 2020-05-17 | B140: ='1-Manager'!B140+'2-Manager'!B140+'3-Manager'!B140+'4-Manager'!B140+'5-Manager'!B140 -> 83 | C140: ='1-Manager'!C140+'2-Manager'!C140+'3-Manager'!C140+'4-Manager'!C140+'5-Manager'!C140 -> 49 | D140: ='1-Manager'!D140+'2-Manager'!D140+'3-Manager'!D140+'4-Manager'!D140+'5-Manager'!D140 -> 79 | E140: ='1-Manager'!E140+'2-Manager'!E140+'3-Manager'!E140+'4-Manager'!E140+'5-Manager'!E140 -> 53 | F140: 264 | H140: 7 | I140: 5
A141: 2020-05-18 | B141: ='1-Manager'!B141+'2-Manager'!B141+'3-Manager'!B141+'4-Manager'!B141+'5-Manager'!B141 -> 179 | C141: ='1-Manager'!C141+'2-Manager'!C141+'3-Manager'!C141+'4-Manager'!C141+'5-Manager'!C141 -> 97 | D141: ='1-Manager'!D141+'2-Manager'!D141+'3-Manager'!D141+'4-Manager'!D141+'5-Manager'!D141 -> 189 | E141: ='1-Manager'!E141+'2-Manager'!E141+'3-Manager'!E141+'4-Manager'!E141+'5-Manager'!E141 -> 156 | F141: 621 | H141: 1 | I141: 5
A142: 2020-05-19 | B142: ='1-Manager'!B142+'2-Manager'!B142+'3-Manager'!B142+'4-Manager'!B142+'5-Manager'!B142 -> 332 | C142: ='1-Manager'!C142+'2-Manager'!C142+'3-Manager'!C142+'4-Manager'!C142+'5-Manager'!C142 -> 116 | D142: ='1-Manager'!D142+'2-Manager'!D142+'3-Manager'!D142+'4-Manager'!D142+'5-Manager'!D142 -> 243 | E142: ='1-Manager'!E142+'2-Manager'!E142+'3-Manager'!E142+'4-Manager'!E142+'5-Manager'!E142 -> 86 | F142: 777 | H142: 2 | I142: 5
A143: 2020-05-20 | B143: ='1-Manager'!B143+'2-Manager'!B143+'3-Manager'!B143+'4-Manager'!B143+'5-Manager'!B143 -> 189 | C143: ='1-Manager'!C143+'2-Manager'!C143+'3-Manager'!C143+'4-Manager'!C143+'5-Manager'!C143 -> 96 | D143: ='1-Manager'!D143+'2-Manager'!D143+'3-Manager'!D143+'4-Manager'!D143+'5-Manager'!D143 -> 309 | E143: ='1-Manager'!E143+'2-Manager'!E143+'3-Manager'!E143+'4-Manager'!E143+'5-Manager'!E143 -> 153 | F143: 747 | H143: 3 | I143: 5
A144: 2020-05-21 | B144: ='1-Manager'!B144+'2-Manager'!B144+'3-Manager'!B144+'4-Manager'!B144+'5-Manager'!B144 -> 358 | C144: ='1-Manager'!C144+'2-Manager'!C144+'3-Manager'!C144+'4-Manager'!C144+'5-Manager'!C144 -> 189 | D144: ='1-Manager'!D144+'2-Manager'!D144+'3-Manager'!D144+'4-Manager'!D144+'5-Manager'!D144 -> 196 | E144: ='1-Manager'!E144+'2-Manager'!E144+'3-Manager'!E144+'4-Manager'!E144+'5-Manager'!E144 -> 133 | F144: 876 | H144: 4 | I144: 5
A145: 2020-05-22 | B145: ='1-Manager'!B145+'2-Manager'!B145+'3-Manager'!B145+'4-Manager'!B145+'5-Manager'!B145 -> 117 | C145: ='1-Manager'!C145+'2-Manager'!C145+'3-Manager'!C145+'4-Manager'!C145+'5-Manager'!C145 -> 195 | D145: ='1-Manager'!D145+'2-Manager'!D145+'3-Manager'!D145+'4-Manager'!D145+'5-Manager'!D145 -> 279 | E145: ='1-Manager'!E145+'2-Manager'!E145+'3-Manager'!E145+'4-Manager'!E145+'5-Manager'!E145 -> 125 | F145: 716 | H145: 5 | I145: 5
A146: 2020-05-23 | B146: ='1-Manager'!B146+'2-Manager'!B146+'3-Manager'!B146+'4-Manager'!B146+'5-Manager'!B146 -> 186 | C146: ='1-Manager'!C146+'2-Manager'!C146+'3-Manager'!C146+'4-Manager'!C146+'5-Manager'!C146 -> 183 | D146: ='1-Manager'!D146+'2-Manager'!D146+'3-Manager'!D146+'4-Manager'!D146+'5-Manager'!D146 -> 313 | E146: ='1-Manager'!E146+'2-Manager'!E146+'3-Manager'!E146+'4-Manager'!E146+'5-Manager'!E146 -> 96 | F146: 778 | H146: 6 | I146: 5
A147: 2020-05-24 | B147: ='1-Manager'!B147+'2-Manager'!B147+'3-Manager'!B147+'4-Manager'!B147+'5-Manager'!B147 -> 116 | C147: ='1-Manager'!C147+'2-Manager'!C147+'3-Manager'!C147+'4-Manager'!C147+'5-Manager'!C147 -> 54 | D147: ='1-Manager'!D147+'2-Manager'!D147+'3-Manager'!D147+'4-Manager'!D147+'5-Manager'!D147 -> 109 | E147: ='1-Manager'!E147+'2-Manager'!E147+'3-Manager'!E147+'4-Manager'!E147+'5-Manager'!E147 -> 37 | F147: 316 | H147: 7 | I147: 5
A148: 2020-05-25 | B148: ='1-Manager'!B148+'2-Manager'!B148+'3-Manager'!B148+'4-Manager'!B148+'5-Manager'!B148 -> 238 | C148: ='1-Manager'!C148+'2-Manager'!C148+'3-Manager'!C148+'4-Manager'!C148+'5-Manager'!C148 -> 186 | D148: ='1-Manager'!D148+'2-Manager'!D148+'3-Manager'!D148+'4-Manager'!D148+'5-Manager'!D148 -> 164 | E148: ='1-Manager'!E148+'2-Manager'!E148+'3-Manager'!E148+'4-Manager'!E148+'5-Manager'!E148 -> 125 | F148: 713 | H148: 1 | I148: 5
A149: 2020-05-26 | B149: ='1-Manager'!B149+'2-Manager'!B149+'3-Manager'!B149+'4-Manager'!B149+'5-Manager'!B149 -> 335 | C149: ='1-Manager'!C149+'2-Manager'!C149+'3-Manager'!C149+'4-Manager'!C149+'5-Manager'!C149 -> 121 | D149: ='1-Manager'!D149+'2-Manager'!D149+'3-Manager'!D149+'4-Manager'!D149+'5-Manager'!D149 -> 253 | E149: ='1-Manager'!E149+'2-Manager'!E149+'3-Manager'!E149+'4-Manager'!E149+'5-Manager'!E149 -> 67 | F149: 776 | H149: 2 | I149: 5
A150: 2020-05-27 | B150: ='1-Manager'!B150+'2-Manager'!B150+'3-Manager'!B150+'4-Manager'!B150+'5-Manager'!B150 -> 189 | C150: ='1-Manager'!C150+'2-Manager'!C150+'3-Manager'!C150+'4-Manager'!C150+'5-Manager'!C150 -> 198 | D150: ='1-Manager'!D150+'2-Manager'!D150+'3-Manager'!D150+'4-Manager'!D150+'5-Manager'!D150 -> 384 | E150: ='1-Manager'!E150+'2-Manager'!E150+'3-Manager'!E150+'4-Manager'!E150+'5-Manager'!E150 -> 119 | F150: 890 | H150: 3 | I150: 5
A151: 2020-05-28 | B151: ='1-Manager'!B151+'2-Manager'!B151+'3-Manager'!B151+'4-Manager'!B151+'5-Manager'!B151 -> 203 | C151: ='1-Manager'!C151+'2-Manager'!C151+'3-Manager'!C151+'4-Manager'!C151+'5-Manager'!C151 -> 160 | D151: ='1-Manager'!D151+'2-Manager'!D151+'3-Manager'!D151+'4-Manager'!D151+'5-Manager'!D151 -> 265 | E151: ='1-Manager'!E151+'2-Manager'!E151+'3-Manager'!E151+'4-Manager'!E151+'5-Manager'!E151 -> 177 | F151: 805 | H151: 4 | I151: 5
A152: 2020-05-29 | B152: ='1-Manager'!B152+'2-Manager'!B152+'3-Manager'!B152+'4-Manager'!B152+'5-Manager'!B152 -> 328 | C152: ='1-Manager'!C152+'2-Manager'!C152+'3-Manager'!C152+'4-Manager'!C152+'5-Manager'!C152 -> 113 | D152: ='1-Manager'!D152+'2-Manager'!D152+'3-Manager'!D152+'4-Manager'!D152+'5-Manager'!D152 -> 314 | E152: ='1-Manager'!E152+'2-Manager'!E152+'3-Manager'!E152+'4-Manager'!E152+'5-Manager'!E152 -> 196 | F152: 951 | H152: 5 | I152: 5
A153: 2020-05-30 | B153: ='1-Manager'!B153+'2-Manager'!B153+'3-Manager'!B153+'4-Manager'!B153+'5-Manager'!B153 -> 266 | C153: ='1-Manager'!C153+'2-Manager'!C153+'3-Manager'!C153+'4-Manager'!C153+'5-Manager'!C153 -> 160 | D153: ='1-Manager'!D153+'2-Manager'!D153+'3-Manager'!D153+'4-Manager'!D153+'5-Manager'!D153 -> 213 | E153: ='1-Manager'!E153+'2-Manager'!E153+'3-Manager'!E153+'4-Manager'!E153+'5-Manager'!E153 -> 145 | F153: 784 | H153: 6 | I153: 5
A154: 2020-05-31 | B154: ='1-Manager'!B154+'2-Manager'!B154+'3-Manager'!B154+'4-Manager'!B154+'5-Manager'!B154 -> 86 | C154: ='1-Manager'!C154+'2-Manager'!C154+'3-Manager'!C154+'4-Manager'!C154+'5-Manager'!C154 -> 35 | D154: ='1-Manager'!D154+'2-Manager'!D154+'3-Manager'!D154+'4-Manager'!D154+'5-Manager'!D154 -> 66 | E154: ='1-Manager'!E154+'2-Manager'!E154+'3-Manager'!E154+'4-Manager'!E154+'5-Manager'!E154 -> 54 | F154: 241 | H154: 7 | I154: 5
A155: 2020-06-01 | B155: ='1-Manager'!B155+'2-Manager'!B155+'3-Manager'!B155+'4-Manager'!B155+'5-Manager'!B155 -> 164 | C155: ='1-Manager'!C155+'2-Manager'!C155+'3-Manager'!C155+'4-Manager'!C155+'5-Manager'!C155 -> 133 | D155: ='1-Manager'!D155+'2-Manager'!D155+'3-Manager'!D155+'4-Manager'!D155+'5-Manager'!D155 -> 236 | E155: ='1-Manager'!E155+'2-Manager'!E155+'3-Manager'!E155+'4-Manager'!E155+'5-Manager'!E155 -> 103 | F155: 636 | H155: 1 | I155: 6
A156: 2020-06-02 | B156: ='1-Manager'!B156+'2-Manager'!B156+'3-Manager'!B156+'4-Manager'!B156+'5-Manager'!B156 -> 220 | C156: ='1-Manager'!C156+'2-Manager'!C156+'3-Manager'!C156+'4-Manager'!C156+'5-Manager'!C156 -> 172 | D156: ='1-Manager'!D156+'2-Manager'!D156+'3-Manager'!D156+'4-Manager'!D156+'5-Manager'!D156 -> 322 | E156: ='1-Manager'!E156+'2-Manager'!E156+'3-Manager'!E156+'4-Manager'!E156+'5-Manager'!E156 -> 210 | F156: 924 | H156: 2 | I156: 6
A157: 2020-06-03 | B157: ='1-Manager'!B157+'2-Manager'!B157+'3-Manager'!B157+'4-Manager'!B157+'5-Manager'!B157 -> 262 | C157: ='1-Manager'!C157+'2-Manager'!C157+'3-Manager'!C157+'4-Manager'!C157+'5-Manager'!C157 -> 176 | D157: ='1-Manager'!D157+'2-Manager'!D157+'3-Manager'!D157+'4-Manager'!D157+'5-Manager'!D157 -> 362 | E157: ='1-Manager'!E157+'2-Manager'!E157+'3-Manager'!E157+'4-Manager'!E157+'5-Manager'!E157 -> 156 | F157: 956 | H157: 3 | I157: 6
A158: 2020-06-04 | B158: ='1-Manager'!B158+'2-Manager'!B158+'3-Manager'!B158+'4-Manager'!B158+'5-Manager'!B158 -> 313 | C158: ='1-Manager'!C158+'2-Manager'!C158+'3-Manager'!C158+'4-Manager'!C158+'5-Manager'!C158 -> 173 | D158: ='1-Manager'!D158+'2-Manager'!D158+'3-Manager'!D158+'4-Manager'!D158+'5-Manager'!D158 -> 303 | E158: ='1-Manager'!E158+'2-Manager'!E158+'3-Manager'!E158+'4-Manager'!E158+'5-Manager'!E158 -> 154 | F158: 943 | H158: 4 | I158: 6
A159: 2020-06-05 | B159: ='1-Manager'!B159+'2-Manager'!B159+'3-Manager'!B159+'4-Manager'!B159+'5-Manager'!B159 -> 163 | C159: ='1-Manager'!C159+'2-Manager'!C159+'3-Manager'!C159+'4-Manager'!C159+'5-Manager'!C159 -> 195 | D159: ='1-Manager'!D159+'2-Manager'!D159+'3-Manager'!D159+'4-Manager'!D159+'5-Manager'!D159 -> 416 | E159: ='1-Manager'!E159+'2-Manager'!E159+'3-Manager'!E159+'4-Manager'!E159+'5-Manager'!E159 -> 175 | F159: 949 | H159: 5 | I159: 6
A160: 2020-06-06 | B160: ='1-Manager'!B160+'2-Manager'!B160+'3-Manager'!B160+'4-Manager'!B160+'5-Manager'!B160 -> 258 | C160: ='1-Manager'!C160+'2-Manager'!C160+'3-Manager'!C160+'4-Manager'!C160+'5-Manager'!C160 -> 197 | D160: ='1-Manager'!D160+'2-Manager'!D160+'3-Manager'!D160+'4-Manager'!D160+'5-Manager'!D160 -> 194 | E160: ='1-Manager'!E160+'2-Manager'!E160+'3-Manager'!E160+'4-Manager'!E160+'5-Manager'!E160 -> 139 | F160: 788 | H160: 6 | I160: 6
A161: 2020-06-07 | B161: ='1-Manager'!B161+'2-Manager'!B161+'3-Manager'!B161+'4-Manager'!B161+'5-Manager'!B161 -> 96 | C161: ='1-Manager'!C161+'2-Manager'!C161+'3-Manager'!C161+'4-Manager'!C161+'5-Manager'!C161 -> 40 | D161: ='1-Manager'!D161+'2-Manager'!D161+'3-Manager'!D161+'4-Manager'!D161+'5-Manager'!D161 -> 63 | E161: ='1-Manager'!E161+'2-Manager'!E161+'3-Manager'!E161+'4-Manager'!E161+'5-Manager'!E161 -> 51 | F161: 250 | H161: 7 | I161: 6
A162: 2020-06-08 | B162: ='1-Manager'!B162+'2-Manager'!B162+'3-Manager'!B162+'4-Manager'!B162+'5-Manager'!B162 -> 182 | C162: ='1-Manager'!C162+'2-Manager'!C162+'3-Manager'!C162+'4-Manager'!C162+'5-Manager'!C162 -> 136 | D162: ='1-Manager'!D162+'2-Manager'!D162+'3-Manager'!D162+'4-Manager'!D162+'5-Manager'!D162 -> 261 | E162: ='1-Manager'!E162+'2-Manager'!E162+'3-Manager'!E162+'4-Manager'!E162+'5-Manager'!E162 -> 182 | F162: 761 | H162: 1 | I162: 6
A163: 2020-06-09 | B163: ='1-Manager'!B163+'2-Manager'!B163+'3-Manager'!B163+'4-Manager'!B163+'5-Manager'!B163 -> 154 | C163: ='1-Manager'!C163+'2-Manager'!C163+'3-Manager'!C163+'4-Manager'!C163+'5-Manager'!C163 -> 177 | D163: ='1-Manager'!D163+'2-Manager'!D163+'3-Manager'!D163+'4-Manager'!D163+'5-Manager'!D163 -> 291 | E163: ='1-Manager'!E163+'2-Manager'!E163+'3-Manager'!E163+'4-Manager'!E163+'5-Manager'!E163 -> 150 | F163: 772 | H163: 2 | I163: 6
A164: 2020-06-10 | B164: ='1-Manager'!B164+'2-Manager'!B164+'3-Manager'!B164+'4-Manager'!B164+'5-Manager'!B164 -> 155 | C164: ='1-Manager'!C164+'2-Manager'!C164+'3-Manager'!C164+'4-Manager'!C164+'5-Manager'!C164 -> 137 | D164: ='1-Manager'!D164+'2-Manager'!D164+'3-Manager'!D164+'4-Manager'!D164+'5-Manager'!D164 -> 214 | E164: ='1-Manager'!E164+'2-Manager'!E164+'3-Manager'!E164+'4-Manager'!E164+'5-Manager'!E164 -> 103 | F164: 609 | H164: 3 | I164: 6
A165: 2020-06-11 | B165: ='1-Manager'!B165+'2-Manager'!B165+'3-Manager'!B165+'4-Manager'!B165+'5-Manager'!B165 -> 359 | C165: ='1-Manager'!C165+'2-Manager'!C165+'3-Manager'!C165+'4-Manager'!C165+'5-Manager'!C165 -> 146 | D165: ='1-Manager'!D165+'2-Manager'!D165+'3-Manager'!D165+'4-Manager'!D165+'5-Manager'!D165 -> 296 | E165: ='1-Manager'!E165+'2-Manager'!E165+'3-Manager'!E165+'4-Manager'!E165+'5-Manager'!E165 -> 136 | F165: 937 | H165: 4 | I165: 6
A166: 2020-06-12 | B166: ='1-Manager'!B166+'2-Manager'!B166+'3-Manager'!B166+'4-Manager'!B166+'5-Manager'!B166 -> 322 | C166: ='1-Manager'!C166+'2-Manager'!C166+'3-Manager'!C166+'4-Manager'!C166+'5-Manager'!C166 -> 207 | D166: ='1-Manager'!D166+'2-Manager'!D166+'3-Manager'!D166+'4-Manager'!D166+'5-Manager'!D166 -> 281 | E166: ='1-Manager'!E166+'2-Manager'!E166+'3-Manager'!E166+'4-Manager'!E166+'5-Manager'!E166 -> 86 | F166: 896 | H166: 5 | I166: 6
A167: 2020-06-13 | B167: ='1-Manager'!B167+'2-Manager'!B167+'3-Manager'!B167+'4-Manager'!B167+'5-Manager'!B167 -> 249 | C167: ='1-Manager'!C167+'2-Manager'!C167+'3-Manager'!C167+'4-Manager'!C167+'5-Manager'!C167 -> 100 | D167: ='1-Manager'!D167+'2-Manager'!D167+'3-Manager'!D167+'4-Manager'!D167+'5-Manager'!D167 -> 354 | E167: ='1-Manager'!E167+'2-Manager'!E167+'3-Manager'!E167+'4-Manager'!E167+'5-Manager'!E167 -> 213 | F167: 916 | H167: 6 | I167: 6
A168: 2020-06-14 | B168: ='1-Manager'!B168+'2-Manager'!B168+'3-Manager'!B168+'4-Manager'!B168+'5-Manager'!B168 -> 98 | C168: ='1-Manager'!C168+'2-Manager'!C168+'3-Manager'!C168+'4-Manager'!C168+'5-Manager'!C168 -> 55 | D168: ='1-Manager'!D168+'2-Manager'!D168+'3-Manager'!D168+'4-Manager'!D168+'5-Manager'!D168 -> 121 | E168: ='1-Manager'!E168+'2-Manager'!E168+'3-Manager'!E168+'4-Manager'!E168+'5-Manager'!E168 -> 57 | F168: 331 | H168: 7 | I168: 6
A169: 2020-06-15 | B169: ='1-Manager'!B169+'2-Manager'!B169+'3-Manager'!B169+'4-Manager'!B169+'5-Manager'!B169 -> 250 | C169: ='1-Manager'!C169+'2-Manager'!C169+'3-Manager'!C169+'4-Manager'!C169+'5-Manager'!C169 -> 118 | D169: ='1-Manager'!D169+'2-Manager'!D169+'3-Manager'!D169+'4-Manager'!D169+'5-Manager'!D169 -> 321 | E169: ='1-Manager'!E169+'2-Manager'!E169+'3-Manager'!E169+'4-Manager'!E169+'5-Manager'!E169 -> 127 | F169: 816 | H169: 1 | I169: 6
A170: 2020-06-16 | B170: ='1-Manager'!B170+'2-Manager'!B170+'3-Manager'!B170+'4-Manager'!B170+'5-Manager'!B170 -> 263 | C170: ='1-Manager'!C170+'2-Manager'!C170+'3-Manager'!C170+'4-Manager'!C170+'5-Manager'!C170 -> 112 | D170: ='1-Manager'!D170+'2-Manager'!D170+'3-Manager'!D170+'4-Manager'!D170+'5-Manager'!D170 -> 233 | E170: ='1-Manager'!E170+'2-Manager'!E170+'3-Manager'!E170+'4-Manager'!E170+'5-Manager'!E170 -> 112 | F170: 720 | H170: 2 | I170: 6
A171: 2020-06-17 | B171: ='1-Manager'!B171+'2-Manager'!B171+'3-Manager'!B171+'4-Manager'!B171+'5-Manager'!B171 -> 306 | C171: ='1-Manager'!C171+'2-Manager'!C171+'3-Manager'!C171+'4-Manager'!C171+'5-Manager'!C171 -> 109 | D171: ='1-Manager'!D171+'2-Manager'!D171+'3-Manager'!D171+'4-Manager'!D171+'5-Manager'!D171 -> 270 | E171: ='1-Manager'!E171+'2-Manager'!E171+'3-Manager'!E171+'4-Manager'!E171+'5-Manager'!E171 -> 133 | F171: 818 | H171: 3 | I171: 6
A172: 2020-06-18 | B172: ='1-Manager'!B172+'2-Manager'!B172+'3-Manager'!B172+'4-Manager'!B172+'5-Manager'!B172 -> 380 | C172: ='1-Manager'!C172+'2-Manager'!C172+'3-Manager'!C172+'4-Manager'!C172+'5-Manager'!C172 -> 196 | D172: ='1-Manager'!D172+'2-Manager'!D172+'3-Manager'!D172+'4-Manager'!D172+'5-Manager'!D172 -> 250 | E172: ='1-Manager'!E172+'2-Manager'!E172+'3-Manager'!E172+'4-Manager'!E172+'5-Manager'!E172 -> 117 | F172: 943 | H172: 4 | I172: 6
A173: 2020-06-19 | B173: ='1-Manager'!B173+'2-Manager'!B173+'3-Manager'!B173+'4-Manager'!B173+'5-Manager'!B173 -> 244 | C173: ='1-Manager'!C173+'2-Manager'!C173+'3-Manager'!C173+'4-Manager'!C173+'5-Manager'!C173 -> 200 | D173: ='1-Manager'!D173+'2-Manager'!D173+'3-Manager'!D173+'4-Manager'!D173+'5-Manager'!D173 -> 176 | E173: ='1-Manager'!E173+'2-Manager'!E173+'3-Manager'!E173+'4-Manager'!E173+'5-Manager'!E173 -> 199 | F173: 819 | H173: 5 | I173: 6
A174: 2020-06-20 | B174: ='1-Manager'!B174+'2-Manager'!B174+'3-Manager'!B174+'4-Manager'!B174+'5-Manager'!B174 -> 197 | C174: ='1-Manager'!C174+'2-Manager'!C174+'3-Manager'!C174+'4-Manager'!C174+'5-Manager'!C174 -> 189 | D174: ='1-Manager'!D174+'2-Manager'!D174+'3-Manager'!D174+'4-Manager'!D174+'5-Manager'!D174 -> 213 | E174: ='1-Manager'!E174+'2-Manager'!E174+'3-Manager'!E174+'4-Manager'!E174+'5-Manager'!E174 -> 102 | F174: 701 | H174: 6 | I174: 6
A175: 2020-06-21 | B175: ='1-Manager'!B175+'2-Manager'!B175+'3-Manager'!B175+'4-Manager'!B175+'5-Manager'!B175 -> 88 | C175: ='1-Manager'!C175+'2-Manager'!C175+'3-Manager'!C175+'4-Manager'!C175+'5-Manager'!C175 -> 75 | D175: ='1-Manager'!D175+'2-Manager'!D175+'3-Manager'!D175+'4-Manager'!D175+'5-Manager'!D175 -> 81 | E175: ='1-Manager'!E175+'2-Manager'!E175+'3-Manager'!E175+'4-Manager'!E175+'5-Manager'!E175 -> 56 | F175: 300 | H175: 7 | I175: 6
A176: 2020-06-22 | B176: ='1-Manager'!B176+'2-Manager'!B176+'3-Manager'!B176+'4-Manager'!B176+'5-Manager'!B176 -> 314 | C176: ='1-Manager'!C176+'2-Manager'!C176+'3-Manager'!C176+'4-Manager'!C176+'5-Manager'!C176 -> 111 | D176: ='1-Manager'!D176+'2-Manager'!D176+'3-Manager'!D176+'4-Manager'!D176+'5-Manager'!D176 -> 192 | E176: ='1-Manager'!E176+'2-Manager'!E176+'3-Manager'!E176+'4-Manager'!E176+'5-Manager'!E176 -> 106 | F176: 723 | H176: 1 | I176: 6
A177: 2020-06-23 | B177: ='1-Manager'!B177+'2-Manager'!B177+'3-Manager'!B177+'4-Manager'!B177+'5-Manager'!B177 -> 239 | C177: ='1-Manager'!C177+'2-Manager'!C177+'3-Manager'!C177+'4-Manager'!C177+'5-Manager'!C177 -> 151 | D177: ='1-Manager'!D177+'2-Manager'!D177+'3-Manager'!D177+'4-Manager'!D177+'5-Manager'!D177 -> 144 | E177: ='1-Manager'!E177+'2-Manager'!E177+'3-Manager'!E177+'4-Manager'!E177+'5-Manager'!E177 -> 95 | F177: 629 | H177: 2 | I177: 6
A178: 2020-06-24 | B178: ='1-Manager'!B178+'2-Manager'!B178+'3-Manager'!B178+'4-Manager'!B178+'5-Manager'!B178 -> 200 | C178: ='1-Manager'!C178+'2-Manager'!C178+'3-Manager'!C178+'4-Manager'!C178+'5-Manager'!C178 -> 121 | D178: ='1-Manager'!D178+'2-Manager'!D178+'3-Manager'!D178+'4-Manager'!D178+'5-Manager'!D178 -> 352 | E178: ='1-Manager'!E178+'2-Manager'!E178+'3-Manager'!E178+'4-Manager'!E178+'5-Manager'!E178 -> 157 | F178: 830 | H178: 3 | I178: 6
A179: 2020-06-25 | B179: ='1-Manager'!B179+'2-Manager'!B179+'3-Manager'!B179+'4-Manager'!B179+'5-Manager'!B179 -> 344 | C179: ='1-Manager'!C179+'2-Manager'!C179+'3-Manager'!C179+'4-Manager'!C179+'5-Manager'!C179 -> 108 | D179: ='1-Manager'!D179+'2-Manager'!D179+'3-Manager'!D179+'4-Manager'!D179+'5-Manager'!D179 -> 197 | E179: ='1-Manager'!E179+'2-Manager'!E179+'3-Manager'!E179+'4-Manager'!E179+'5-Manager'!E179 -> 209 | F179: 858 | H179: 4 | I179: 6
A180: 2020-06-26 | B180: ='1-Manager'!B180+'2-Manager'!B180+'3-Manager'!B180+'4-Manager'!B180+'5-Manager'!B180 -> 309 | C180: ='1-Manager'!C180+'2-Manager'!C180+'3-Manager'!C180+'4-Manager'!C180+'5-Manager'!C180 -> 213 | D180: ='1-Manager'!D180+'2-Manager'!D180+'3-Manager'!D180+'4-Manager'!D180+'5-Manager'!D180 -> 361 | E180: ='1-Manager'!E180+'2-Manager'!E180+'3-Manager'!E180+'4-Manager'!E180+'5-Manager'!E180 -> 86 | F180: 969 | H180: 5 | I180: 6
A181: 2020-06-27 | B181: ='1-Manager'!B181+'2-Manager'!B181+'3-Manager'!B181+'4-Manager'!B181+'5-Manager'!B181 -> 308 | C181: ='1-Manager'!C181+'2-Manager'!C181+'3-Manager'!C181+'4-Manager'!C181+'5-Manager'!C181 -> 146 | D181: ='1-Manager'!D181+'2-Manager'!D181+'3-Manager'!D181+'4-Manager'!D181+'5-Manager'!D181 -> 254 | E181: ='1-Manager'!E181+'2-Manager'!E181+'3-Manager'!E181+'4-Manager'!E181+'5-Manager'!E181 -> 158 | F181: 866 | H181: 6 | I181: 6
A182: 2020-06-28 | B182: ='1-Manager'!B182+'2-Manager'!B182+'3-Manager'!B182+'4-Manager'!B182+'5-Manager'!B182 -> 86 | C182: ='1-Manager'!C182+'2-Manager'!C182+'3-Manager'!C182+'4-Manager'!C182+'5-Manager'!C182 -> 37 | D182: ='1-Manager'!D182+'2-Manager'!D182+'3-Manager'!D182+'4-Manager'!D182+'5-Manager'!D182 -> 112 | E182: ='1-Manager'!E182+'2-Manager'!E182+'3-Manager'!E182+'4-Manager'!E182+'5-Manager'!E182 -> 44 | F182: 279 | H182: 7 | I182: 6
A183: 2020-06-29 | B183: ='1-Manager'!B183+'2-Manager'!B183+'3-Manager'!B183+'4-Manager'!B183+'5-Manager'!B183 -> 160 | C183: ='1-Manager'!C183+'2-Manager'!C183+'3-Manager'!C183+'4-Manager'!C183+'5-Manager'!C183 -> 202 | D183: ='1-Manager'!D183+'2-Manager'!D183+'3-Manager'!D183+'4-Manager'!D183+'5-Manager'!D183 -> 240 | E183: ='1-Manager'!E183+'2-Manager'!E183+'3-Manager'!E183+'4-Manager'!E183+'5-Manager'!E183 -> 169 | F183: 771 | H183: 1 | I183: 6
A184: 2020-06-30 | B184: ='1-Manager'!B184+'2-Manager'!B184+'3-Manager'!B184+'4-Manager'!B184+'5-Manager'!B184 -> 220 | C184: ='1-Manager'!C184+'2-Manager'!C184+'3-Manager'!C184+'4-Manager'!C184+'5-Manager'!C184 -> 178 | D184: ='1-Manager'!D184+'2-Manager'!D184+'3-Manager'!D184+'4-Manager'!D184+'5-Manager'!D184 -> 237 | E184: ='1-Manager'!E184+'2-Manager'!E184+'3-Manager'!E184+'4-Manager'!E184+'5-Manager'!E184 -> 165 | F184: 800 | H184: 2 | I184: 6
A185: 2020-07-01 | B185: ='1-Manager'!B185+'2-Manager'!B185+'3-Manager'!B185+'4-Manager'!B185+'5-Manager'!B185 -> 204 | C185: ='1-Manager'!C185+'2-Manager'!C185+'3-Manager'!C185+'4-Manager'!C185+'5-Manager'!C185 -> 226 | D185: ='1-Manager'!D185+'2-Manager'!D185+'3-Manager'!D185+'4-Manager'!D185+'5-Manager'!D185 -> 257 | E185: ='1-Manager'!E185+'2-Manager'!E185+'3-Manager'!E185+'4-Manager'!E185+'5-Manager'!E185 -> 169 | F185: 856 | H185: 3 | I185: 7
A186: 2020-07-02 | B186: ='1-Manager'!B186+'2-Manager'!B186+'3-Manager'!B186+'4-Manager'!B186+'5-Manager'!B186 -> 254 | C186: ='1-Manager'!C186+'2-Manager'!C186+'3-Manager'!C186+'4-Manager'!C186+'5-Manager'!C186 -> 180 | D186: ='1-Manager'!D186+'2-Manager'!D186+'3-Manager'!D186+'4-Manager'!D186+'5-Manager'!D186 -> 320 | E186: ='1-Manager'!E186+'2-Manager'!E186+'3-Manager'!E186+'4-Manager'!E186+'5-Manager'!E186 -> 132 | F186: 886 | H186: 4 | I186: 7
A187: 2020-07-03 | B187: ='1-Manager'!B187+'2-Manager'!B187+'3-Manager'!B187+'4-Manager'!B187+'5-Manager'!B187 -> 313 | C187: ='1-Manager'!C187+'2-Manager'!C187+'3-Manager'!C187+'4-Manager'!C187+'5-Manager'!C187 -> 193 | D187: ='1-Manager'!D187+'2-Manager'!D187+'3-Manager'!D187+'4-Manager'!D187+'5-Manager'!D187 -> 239 | E187: ='1-Manager'!E187+'2-Manager'!E187+'3-Manager'!E187+'4-Manager'!E187+'5-Manager'!E187 -> 188 | F187: 933 | H187: 5 | I187: 7
A188: 2020-07-04 | B188: ='1-Manager'!B188+'2-Manager'!B188+'3-Manager'!B188+'4-Manager'!B188+'5-Manager'!B188 -> 241 | C188: ='1-Manager'!C188+'2-Manager'!C188+'3-Manager'!C188+'4-Manager'!C188+'5-Manager'!C188 -> 183 | D188: ='1-Manager'!D188+'2-Manager'!D188+'3-Manager'!D188+'4-Manager'!D188+'5-Manager'!D188 -> 394 | E188: ='1-Manager'!E188+'2-Manager'!E188+'3-Manager'!E188+'4-Manager'!E188+'5-Manager'!E188 -> 152 | F188: 970 | H188: 6 | I188: 7
A189: 2020-07-05 | B189: ='1-Manager'!B189+'2-Manager'!B189+'3-Manager'!B189+'4-Manager'!B189+'5-Manager'!B189 -> 73 | C189: ='1-Manager'!C189+'2-Manager'!C189+'3-Manager'!C189+'4-Manager'!C189+'5-Manager'!C189 -> 61 | D189: ='1-Manager'!D189+'2-Manager'!D189+'3-Manager'!D189+'4-Manager'!D189+'5-Manager'!D189 -> 117 | E189: ='1-Manager'!E189+'2-Manager'!E189+'3-Manager'!E189+'4-Manager'!E189+'5-Manager'!E189 -> 28 | F189: 279 | H189: 7 | I189: 7
A190: 2020-07-06 | B190: ='1-Manager'!B190+'2-Manager'!B190+'3-Manager'!B190+'4-Manager'!B190+'5-Manager'!B190 -> 213 | C190: ='1-Manager'!C190+'2-Manager'!C190+'3-Manager'!C190+'4-Manager'!C190+'5-Manager'!C190 -> 151 | D190: ='1-Manager'!D190+'2-Manager'!D190+'3-Manager'!D190+'4-Manager'!D190+'5-Manager'!D190 -> 125 | E190: ='1-Manager'!E190+'2-Manager'!E190+'3-Manager'!E190+'4-Manager'!E190+'5-Manager'!E190 -> 183 | F190: 672 | H190: 1 | I190: 7
A191: 2020-07-07 | B191: ='1-Manager'!B191+'2-Manager'!B191+'3-Manager'!B191+'4-Manager'!B191+'5-Manager'!B191 -> 207 | C191: ='1-Manager'!C191+'2-Manager'!C191+'3-Manager'!C191+'4-Manager'!C191+'5-Manager'!C191 -> 162 | D191: ='1-Manager'!D191+'2-Manager'!D191+'3-Manager'!D191+'4-Manager'!D191+'5-Manager'!D191 -> 199 | E191: ='1-Manager'!E191+'2-Manager'!E191+'3-Manager'!E191+'4-Manager'!E191+'5-Manager'!E191 -> 119 | F191: 687 | H191: 2 | I191: 7
A192: 2020-07-08 | B192: ='1-Manager'!B192+'2-Manager'!B192+'3-Manager'!B192+'4-Manager'!B192+'5-Manager'!B192 -> 163 | C192: ='1-Manager'!C192+'2-Manager'!C192+'3-Manager'!C192+'4-Manager'!C192+'5-Manager'!C192 -> 141 | D192: ='1-Manager'!D192+'2-Manager'!D192+'3-Manager'!D192+'4-Manager'!D192+'5-Manager'!D192 -> 243 | E192: ='1-Manager'!E192+'2-Manager'!E192+'3-Manager'!E192+'4-Manager'!E192+'5-Manager'!E192 -> 147 | F192: 694 | H192: 3 | I192: 7
A193: 2020-07-09 | B193: ='1-Manager'!B193+'2-Manager'!B193+'3-Manager'!B193+'4-Manager'!B193+'5-Manager'!B193 -> 140 | C193: ='1-Manager'!C193+'2-Manager'!C193+'3-Manager'!C193+'4-Manager'!C193+'5-Manager'!C193 -> 127 | D193: ='1-Manager'!D193+'2-Manager'!D193+'3-Manager'!D193+'4-Manager'!D193+'5-Manager'!D193 -> 256 | E193: ='1-Manager'!E193+'2-Manager'!E193+'3-Manager'!E193+'4-Manager'!E193+'5-Manager'!E193 -> 191 | F193: 714 | H193: 4 | I193: 7
A194: 2020-07-10 | B194: ='1-Manager'!B194+'2-Manager'!B194+'3-Manager'!B194+'4-Manager'!B194+'5-Manager'!B194 -> 214 | C194: ='1-Manager'!C194+'2-Manager'!C194+'3-Manager'!C194+'4-Manager'!C194+'5-Manager'!C194 -> 171 | D194: ='1-Manager'!D194+'2-Manager'!D194+'3-Manager'!D194+'4-Manager'!D194+'5-Manager'!D194 -> 306 | E194: ='1-Manager'!E194+'2-Manager'!E194+'3-Manager'!E194+'4-Manager'!E194+'5-Manager'!E194 -> 117 | F194: 808 | H194: 5 | I194: 7
A195: 2020-07-11 | B195: ='1-Manager'!B195+'2-Manager'!B195+'3-Manager'!B195+'4-Manager'!B195+'5-Manager'!B195 -> 224 | C195: ='1-Manager'!C195+'2-Manager'!C195+'3-Manager'!C195+'4-Manager'!C195+'5-Manager'!C195 -> 212 | D195: ='1-Manager'!D195+'2-Manager'!D195+'3-Manager'!D195+'4-Manager'!D195+'5-Manager'!D195 -> 368 | E195: ='1-Manager'!E195+'2-Manager'!E195+'3-Manager'!E195+'4-Manager'!E195+'5-Manager'!E195 -> 128 | F195: 932 | H195: 6 | I195: 7
A196: 2020-07-12 | B196: ='1-Manager'!B196+'2-Manager'!B196+'3-Manager'!B196+'4-Manager'!B196+'5-Manager'!B196 -> 113 | C196: ='1-Manager'!C196+'2-Manager'!C196+'3-Manager'!C196+'4-Manager'!C196+'5-Manager'!C196 -> 44 | D196: ='1-Manager'!D196+'2-Manager'!D196+'3-Manager'!D196+'4-Manager'!D196+'5-Manager'!D196 -> 98 | E196: ='1-Manager'!E196+'2-Manager'!E196+'3-Manager'!E196+'4-Manager'!E196+'5-Manager'!E196 -> 65 | F196: =SUM(B196:E196) -> 320 | H196: =WEEKDAY(A196,2) -> 7 | I196: =MONTH(A196) -> 7
A197: 2020-07-13 | B197: ='1-Manager'!B197+'2-Manager'!B197+'3-Manager'!B197+'4-Manager'!B197+'5-Manager'!B197 -> 224 | C197: ='1-Manager'!C197+'2-Manager'!C197+'3-Manager'!C197+'4-Manager'!C197+'5-Manager'!C197 -> 191 | D197: ='1-Manager'!D197+'2-Manager'!D197+'3-Manager'!D197+'4-Manager'!D197+'5-Manager'!D197 -> 175 | E197: ='1-Manager'!E197+'2-Manager'!E197+'3-Manager'!E197+'4-Manager'!E197+'5-Manager'!E197 -> 117 | F197: 707 | H197: 1 | I197: 7
A198: 2020-07-14 | B198: ='1-Manager'!B198+'2-Manager'!B198+'3-Manager'!B198+'4-Manager'!B198+'5-Manager'!B198 -> 315 | C198: ='1-Manager'!C198+'2-Manager'!C198+'3-Manager'!C198+'4-Manager'!C198+'5-Manager'!C198 -> 171 | D198: ='1-Manager'!D198+'2-Manager'!D198+'3-Manager'!D198+'4-Manager'!D198+'5-Manager'!D198 -> 185 | E198: ='1-Manager'!E198+'2-Manager'!E198+'3-Manager'!E198+'4-Manager'!E198+'5-Manager'!E198 -> 84 | F198: 755 | H198: 2 | I198: 7
A199: 2020-07-15 | B199: ='1-Manager'!B199+'2-Manager'!B199+'3-Manager'!B199+'4-Manager'!B199+'5-Manager'!B199 -> 224 | C199: ='1-Manager'!C199+'2-Manager'!C199+'3-Manager'!C199+'4-Manager'!C199+'5-Manager'!C199 -> 121 | D199: ='1-Manager'!D199+'2-Manager'!D199+'3-Manager'!D199+'4-Manager'!D199+'5-Manager'!D199 -> 370 | E199: ='1-Manager'!E199+'2-Manager'!E199+'3-Manager'!E199+'4-Manager'!E199+'5-Manager'!E199 -> 163 | F199: 878 | H199: 3 | I199: 7
A200: 2020-07-16 | B200: ='1-Manager'!B200+'2-Manager'!B200+'3-Manager'!B200+'4-Manager'!B200+'5-Manager'!B200 -> 220 | C200: ='1-Manager'!C200+'2-Manager'!C200+'3-Manager'!C200+'4-Manager'!C200+'5-Manager'!C200 -> 216 | D200: ='1-Manager'!D200+'2-Manager'!D200+'3-Manager'!D200+'4-Manager'!D200+'5-Manager'!D200 -> 161 | E200: ='1-Manager'!E200+'2-Manager'!E200+'3-Manager'!E200+'4-Manager'!E200+'5-Manager'!E200 -> 189 | F200: 786 | H200: 4 | I200: 7
... 169 more rows

Sheet Processing
A1: ='1-Manager'!F369 -> 83893 | B1: ="1-MANAGER"&CHAR(10)&"$"&TEXT(A1,"# ###") -> 1-MANAGER $83 893 | C1: new | D1: ALL | E1: Mon | F1: Tue | G1: Wed | H1: Thu | I1: Fri | J1: Sat | K1: Sun | M1: Mon | N1: Tue | O1: Wed | P1: Thu | Q1: Fri | R1: Sat | S1: Sun | U1: A | V1: =SUM(E2:K2) -> 83164 | W1: =INDEX($U$1:$U$4,SMALL(IF($V$1:$V$4=X1,ROW($V$1:$V$4)),COUNTIF($X$1:X1,X1))) -> C | X1: =LARGE($V$1:$V$4,1) -> 83945 | Y1: =MAX($X$1:$X$4)-X1 -> 0 | AA1: Alabama | AB1: =IF(AC1=0,$AD$1,AC1) -> 13784 | AC1: =INDEX(ALL!$L$2:$Q$49,MATCH(Processing!AA1,ALL!$K$2:$K$49,0),MATCH(Processing!$D$1,ALL!$L$1:$Q$1,0)) -> 13784 | AD1: 1000
A2: ='2-Manager'!F369 -> 68104 | B2: ="2-MANAGER"&CHAR(10)&"$"&TEXT(A2,"# ###") -> 2-MANAGER $68 104 | C2: A | D2: $B$3:$B$368 | E2: =SUMIFS(INDIRECT("'"&$D$1&"'!"&$D2),INDIRECT("'"&$D$1&"'!$H$3:$H$368"),Processing!E$6) -> 10897 | F2: =SUMIFS(INDIRECT("'"&$D$1&"'!"&$D2),INDIRECT("'"&$D$1&"'!$H$3:$H$368"),Processing!F$6) -> 12747 | G2: =SUMIFS(INDIRECT("'"&$D$1&"'!"&$D2),INDIRECT("'"&$D$1&"'!$H$3:$H$368"),Processing!G$6) -> 11947 | H2: =SUMIFS(INDIRECT("'"&$D$1&"'!"&$D2),INDIRECT("'"&$D$1&"'!$H$3:$H$368"),Processing!H$6) -> 14221 | I2: =SUMIFS(INDIRECT("'"&$D$1&"'!"&$D2),INDIRECT("'"&$D$1&"'!$H$3:$H$368"),Processing!I$6) -> 14699 | J2: =SUMIFS(INDIRECT("'"&$D$1&"'!"&$D2),INDIRECT("'"&$D$1&"'!$H$3:$H$368"),Processing!J$6) -> 13928 | K2: =SUMIFS(INDIRECT("'"&$D$1&"'!"&$D2),INDIRECT("'"&$D$1&"'!$H$3:$H$368"),Processing!K$6) -> 4725 | M2: 10 | N2: 10 | O2: 10 | P2: 10 | Q2: 10 | R2: 10 | S2: 10 | U2: B | V2: =SUM(E3:K3) -> 49206 | W2: =INDEX($U$1:$U$4,SMALL(IF($V$1:$V$4=X2,ROW($V$1:$V$4)),COUNTIF($X$1:X2,X2))) -> A | X2: =LARGE($V$1:$V$4,2) -> 83164 | Y2: =MAX($X$1:$X$4)-X2 -> 781 | AA2: Arizona | AB2: =IF(AC2=0,$AD$1,AC2) -> 13369 | AC2: =INDEX(ALL!$L$2:$Q$49,MATCH(Processing!AA2,ALL!$K$2:$K$49,0),MATCH(Processing!$D$1,ALL!$L$1:$Q$1,0)) -> 13369 | AD2: https://exceltable.com/en/templates/3d-menu-for-dashboard-in-excel
A3: ='3-Manager'!F369 -> 50044 | B3: ="3-MANAGER"&CHAR(10)&"$"&TEXT(A3,"# ###") -> 3-MANAGER $50 044 | C3: B | D3: $C$3:$C$368 | E3: =SUMIFS(INDIRECT("'"&$D$1&"'!"&$D3),INDIRECT("'"&$D$1&"'!$H$3:$H$368"),Processing!E$6) -> 6866 | F3: =SUMIFS(INDIRECT("'"&$D$1&"'!"&$D3),INDIRECT("'"&$D$1&"'!$H$3:$H$368"),Processing!F$6) -> 6744 | G3: =SUMIFS(INDIRECT("'"&$D$1&"'!"&$D3),INDIRECT("'"&$D$1&"'!$H$3:$H$368"),Processing!G$6) -> 7949 | H3: =SUMIFS(INDIRECT("'"&$D$1&"'!"&$D3),INDIRECT("'"&$D$1&"'!$H$3:$H$368"),Processing!H$6) -> 8034 | I3: =SUMIFS(INDIRECT("'"&$D$1&"'!"&$D3),INDIRECT("'"&$D$1&"'!$H$3:$H$368"),Processing!I$6) -> 8758 | J3: =SUMIFS(INDIRECT("'"&$D$1&"'!"&$D3),INDIRECT("'"&$D$1&"'!$H$3:$H$368"),Processing!J$6) -> 8254 | K3: =SUMIFS(INDIRECT("'"&$D$1&"'!"&$D3),INDIRECT("'"&$D$1&"'!$H$3:$H$368"),Processing!K$6) -> 2601 | M3: 10 | N3: 10 | O3: 10 | P3: 10 | Q3: 10 | R3: 10 | S3: 10 | U3: C | V3: =SUM(E4:K4) -> 83945 | W3: =INDEX($U$1:$U$4,SMALL(IF($V$1:$V$4=X3,ROW($V$1:$V$4)),COUNTIF($X$1:X3,X3))) -> B | X3: =LARGE($V$1:$V$4,3) -> 49206 | Y3: 34739 | AA3: Arkansas | AB3: 7209 | AC3: =INDEX(ALL!$L$2:$Q$49,MATCH(Processing!AA3,ALL!$K$2:$K$49,0),MATCH(Processing!$D$1,ALL!$L$1:$Q$1,0)) -> 7209
A4: ='4-Manager'!F369 -> 31442 | B4: ="4-MANAGER"&CHAR(10)&"$"&TEXT(A4,"# ###") -> 4-MANAGER $31 442 | C4: C | D4: $D$3:$D$368 | E4: =SUMIFS(INDIRECT("'"&$D$1&"'!"&$D4),INDIRECT("'"&$D$1&"'!$H$3:$H$368"),Processing!E$6) -> 11990 | F4: =SUMIFS(INDIRECT("'"&$D$1&"'!"&$D4),INDIRECT("'"&$D$1&"'!$H$3:$H$368"),Processing!F$6) -> 12719 | G4: =SUMIFS(INDIRECT("'"&$D$1&"'!"&$D4),INDIRECT("'"&$D$1&"'!$H$3:$H$368"),Processing!G$6) -> 14365 | H4: =SUMIFS(INDIRECT("'"&$D$1&"'!"&$D4),INDIRECT("'"&$D$1&"'!$H$3:$H$368"),Processing!H$6) -> 12465 | I4: =SUMIFS(INDIRECT("'"&$D$1&"'!"&$D4),INDIRECT("'"&$D$1&"'!$H$3:$H$368"),Processing!I$6) -> 14205 | J4: =SUMIFS(INDIRECT("'"&$D$1&"'!"&$D4),INDIRECT("'"&$D$1&"'!$H$3:$H$368"),Processing!J$6) -> 13596 | K4: =SUMIFS(INDIRECT("'"&$D$1&"'!"&$D4),INDIRECT("'"&$D$1&"'!$H$3:$H$368"),Processing!K$6) -> 4605 | M4: 10 | N4: 10 | O4: 10 | P4: 10 | Q4: 10 | R4: 10 | S4: 10 | U4: D | V4: =SUM(E5:K5) -> 47100 | W4: =INDEX($U$1:$U$4,SMALL(IF($V$1:$V$4=X4,ROW($V$1:$V$4)),COUNTIF($X$1:X4,X4))) -> D | X4: =LARGE($V$1:$V$4,4) -> 47100 | Y4: 36845 | AA4: California | AB4: 7262 | AC4: =INDEX(ALL!$L$2:$Q$49,MATCH(Processing!AA4,ALL!$K$2:$K$49,0),MATCH(Processing!$D$1,ALL!$L$1:$Q$1,0)) -> 7262
A5: ='5-Manager'!F369 -> 29932 | B5: ="5-MANAGER"&CHAR(10)&"$"&TEXT(A5,"# ###") -> 5-MANAGER $29 932 | C5: D | D5: $E$3:$E$368 | E5: =SUMIFS(INDIRECT("'"&$D$1&"'!"&$D5),INDIRECT("'"&$D$1&"'!$H$3:$H$368"),Processing!E$6) -> 7476 | F5: =SUMIFS(INDIRECT("'"&$D$1&"'!"&$D5),INDIRECT("'"&$D$1&"'!$H$3:$H$368"),Processing!F$6) -> 7026 | G5: =SUMIFS(INDIRECT("'"&$D$1&"'!"&$D5),INDIRECT("'"&$D$1&"'!$H$3:$H$368"),Processing!G$6) -> 7336 | H5: =SUMIFS(INDIRECT("'"&$D$1&"'!"&$D5),INDIRECT("'"&$D$1&"'!$H$3:$H$368"),Processing!H$6) -> 7647 | I5: =SUMIFS(INDIRECT("'"&$D$1&"'!"&$D5),INDIRECT("'"&$D$1&"'!$H$3:$H$368"),Processing!I$6) -> 8376 | J5: =SUMIFS(INDIRECT("'"&$D$1&"'!"&$D5),INDIRECT("'"&$D$1&"'!$H$3:$H$368"),Processing!J$6) -> 6556 | K5: =SUMIFS(INDIRECT("'"&$D$1&"'!"&$D5),INDIRECT("'"&$D$1&"'!$H$3:$H$368"),Processing!K$6) -> 2683 | M5: 10 | N5: 10 | O5: 10 | P5: 10 | Q5: 10 | R5: 10 | S5: 10 | AA5: Colorado | AB5: 7077 | AC5: =INDEX(ALL!$L$2:$Q$49,MATCH(Processing!AA5,ALL!$K$2:$K$49,0),MATCH(Processing!$D$1,ALL!$L$1:$Q$1,0)) -> 7077
C6: old | D6: 1-Manager | E6: 1 | F6: 2 | G6: 3 | H6: 4 | I6: 5 | J6: 6 | K6: 7 | AA6: Connecticut | AB6: 7010 | AC6: =INDEX(ALL!$L$2:$Q$49,MATCH(Processing!AA6,ALL!$K$2:$K$49,0),MATCH(Processing!$D$1,ALL!$L$1:$Q$1,0)) -> 7010
AA7: Delaware | AB7: 7481 | AC7: =INDEX(ALL!$L$2:$Q$49,MATCH(Processing!AA7,ALL!$K$2:$K$49,0),MATCH(Processing!$D$1,ALL!$L$1:$Q$1,0)) -> 7481
A8: 1 | B8: =LEFT(CHOOSE(A8,"January", "February", "March", "April", "May", "June", "July", "August", "September", "October", "November", "December"),3) -> Jan | C8: =SUMIFS(INDIRECT("'"&$D$1&"'!$F$3:$F$368"),INDIRECT("'"&$D$1&"'!$I$3:$I$368"),Processing!A8) -> 22658 | AA8: Florida | AB8: 6868 | AC8: =INDEX(ALL!$L$2:$Q$49,MATCH(Processing!AA8,ALL!$K$2:$K$49,0),MATCH(Processing!$D$1,ALL!$L$1:$Q$1,0)) -> 6868
A9: 2 | B9: =LEFT(CHOOSE(A9,"January", "February", "March", "April", "May", "June", "July", "August", "September", "October", "November", "December"),3) -> Feb | C9: =SUMIFS(INDIRECT("'"&$D$1&"'!$F$3:$F$368"),INDIRECT("'"&$D$1&"'!$I$3:$I$368"),Processing!A9) -> 20000 | AA9: Georgia | AB9: 6942 | AC9: =INDEX(ALL!$L$2:$Q$49,MATCH(Processing!AA9,ALL!$K$2:$K$49,0),MATCH(Processing!$D$1,ALL!$L$1:$Q$1,0)) -> 6942
A10: 3 | B10: Mar | C10: =SUMIFS(INDIRECT("'"&$D$1&"'!$F$3:$F$368"),INDIRECT("'"&$D$1&"'!$I$3:$I$368"),Processing!A10) -> 22400 | AA10: Idaho | AB10: 6891 | AC10: =INDEX(ALL!$L$2:$Q$49,MATCH(Processing!AA10,ALL!$K$2:$K$49,0),MATCH(Processing!$D$1,ALL!$L$1:$Q$1,0)) -> 6891
A11: 4 | B11: Apr | C11: =SUMIFS(INDIRECT("'"&$D$1&"'!$F$3:$F$368"),INDIRECT("'"&$D$1&"'!$I$3:$I$368"),Processing!A11) -> 21745 | AA11: Illinois | AB11: 11426 | AC11: =INDEX(ALL!$L$2:$Q$49,MATCH(Processing!AA11,ALL!$K$2:$K$49,0),MATCH(Processing!$D$1,ALL!$L$1:$Q$1,0)) -> 11426
A12: 5 | B12: May | C12: =SUMIFS(INDIRECT("'"&$D$1&"'!$F$3:$F$368"),INDIRECT("'"&$D$1&"'!$I$3:$I$368"),Processing!A12) -> 21531 | AA12: Indiana | AB12: 11075 | AC12: =INDEX(ALL!$L$2:$Q$49,MATCH(Processing!AA12,ALL!$K$2:$K$49,0),MATCH(Processing!$D$1,ALL!$L$1:$Q$1,0)) -> 11075
A13: 6 | B13: Jun | C13: =SUMIFS(INDIRECT("'"&$D$1&"'!$F$3:$F$368"),INDIRECT("'"&$D$1&"'!$I$3:$I$368"),Processing!A13) -> 22510 | AA13: Iowa | AB13: 5576 | AC13: =INDEX(ALL!$L$2:$Q$49,MATCH(Processing!AA13,ALL!$K$2:$K$49,0),MATCH(Processing!$D$1,ALL!$L$1:$Q$1,0)) -> 5576
A14: 7 | B14: Jul | C14: =SUMIFS(INDIRECT("'"&$D$1&"'!$F$3:$F$368"),INDIRECT("'"&$D$1&"'!$I$3:$I$368"),Processing!A14) -> 23186 | AA14: Kansas | AB14: 5402 | AC14: =INDEX(ALL!$L$2:$Q$49,MATCH(Processing!AA14,ALL!$K$2:$K$49,0),MATCH(Processing!$D$1,ALL!$L$1:$Q$1,0)) -> 5402
A15: 8 | B15: Aug | C15: =SUMIFS(INDIRECT("'"&$D$1&"'!$F$3:$F$368"),INDIRECT("'"&$D$1&"'!$I$3:$I$368"),Processing!A15) -> 21543 | AA15: Kentucky | AB15: 5376 | AC15: =INDEX(ALL!$L$2:$Q$49,MATCH(Processing!AA15,ALL!$K$2:$K$49,0),MATCH(Processing!$D$1,ALL!$L$1:$Q$1,0)) -> 5376
A16: 9 | B16: Sep | C16: =SUMIFS(INDIRECT("'"&$D$1&"'!$F$3:$F$368"),INDIRECT("'"&$D$1&"'!$I$3:$I$368"),Processing!A16) -> 21134 | AA16: Louisiana | AB16: 6041 | AC16: =INDEX(ALL!$L$2:$Q$49,MATCH(Processing!AA16,ALL!$K$2:$K$49,0),MATCH(Processing!$D$1,ALL!$L$1:$Q$1,0)) -> 6041
A17: 10 | B17: Oct | C17: =SUMIFS(INDIRECT("'"&$D$1&"'!$F$3:$F$368"),INDIRECT("'"&$D$1&"'!$I$3:$I$368"),Processing!A17) -> 22734 | AA17: Maine | AB17: 5837 | AC17: =INDEX(ALL!$L$2:$Q$49,MATCH(Processing!AA17,ALL!$K$2:$K$49,0),MATCH(Processing!$D$1,ALL!$L$1:$Q$1,0)) -> 5837
A18: 11 | B18: Nov | C18: =SUMIFS(INDIRECT("'"&$D$1&"'!$F$3:$F$368"),INDIRECT("'"&$D$1&"'!$I$3:$I$368"),Processing!A18) -> 20856 | AA18: Maryland | AB18: 5748 | AC18: =INDEX(ALL!$L$2:$Q$49,MATCH(Processing!AA18,ALL!$K$2:$K$49,0),MATCH(Processing!$D$1,ALL!$L$1:$Q$1,0)) -> 5748
A19: 12 | B19: Dec | C19: =SUMIFS(INDIRECT("'"&$D$1&"'!$F$3:$F$368"),INDIRECT("'"&$D$1&"'!$I$3:$I$368"),Processing!A19) -> 23118 | AA19: Massachusetts | AB19: 5524 | AC19: =INDEX(ALL!$L$2:$Q$49,MATCH(Processing!AA19,ALL!$K$2:$K$49,0),MATCH(Processing!$D$1,ALL!$L$1:$Q$1,0)) -> 5524
AA20: Michigan | AB20: 6099 | AC20: =INDEX(ALL!$L$2:$Q$49,MATCH(Processing!AA20,ALL!$K$2:$K$49,0),MATCH(Processing!$D$1,ALL!$L$1:$Q$1,0)) -> 6099
AA21: Minnesota | AB21: 8132 | AC21: =INDEX(ALL!$L$2:$Q$49,MATCH(Processing!AA21,ALL!$K$2:$K$49,0),MATCH(Processing!$D$1,ALL!$L$1:$Q$1,0)) -> 8132
AA22: Mississippi | AB22: 8769 | AC22: =INDEX(ALL!$L$2:$Q$49,MATCH(Processing!AA22,ALL!$K$2:$K$49,0),MATCH(Processing!$D$1,ALL!$L$1:$Q$1,0)) -> 8769
AA23: Missouri | AB23: 4477 | AC23: =INDEX(ALL!$L$2:$Q$49,MATCH(Processing!AA23,ALL!$K$2:$K$49,0),MATCH(Processing!$D$1,ALL!$L$1:$Q$1,0)) -> 4477
AA24: Montana | AB24: 3842 | AC24: =INDEX(ALL!$L$2:$Q$49,MATCH(Processing!AA24,ALL!$K$2:$K$49,0),MATCH(Processing!$D$1,ALL!$L$1:$Q$1,0)) -> 3842
AA25: Nebraska | AB25: 4183 | AC25: =INDEX(ALL!$L$2:$Q$49,MATCH(Processing!AA25,ALL!$K$2:$K$49,0),MATCH(Processing!$D$1,ALL!$L$1:$Q$1,0)) -> 4183
AA26: Nevada | AB26: 4003 | AC26: =INDEX(ALL!$L$2:$Q$49,MATCH(Processing!AA26,ALL!$K$2:$K$49,0),MATCH(Processing!$D$1,ALL!$L$1:$Q$1,0)) -> 4003
AA27: New hampshire | AB27: 4455 | AC27: =INDEX(ALL!$L$2:$Q$49,MATCH(Processing!AA27,ALL!$K$2:$K$49,0),MATCH(Processing!$D$1,ALL!$L$1:$Q$1,0)) -> 4455
AA28: New Jersey | AB28: 3997 | AC28: =INDEX(ALL!$L$2:$Q$49,MATCH(Processing!AA28,ALL!$K$2:$K$49,0),MATCH(Processing!$D$1,ALL!$L$1:$Q$1,0)) -> 3997
AA29: New Mexico | AB29: 3801 | AC29: =INDEX(ALL!$L$2:$Q$49,MATCH(Processing!AA29,ALL!$K$2:$K$49,0),MATCH(Processing!$D$1,ALL!$L$1:$Q$1,0)) -> 3801
AA30: New York | AB30: 4385 | AC30: =INDEX(ALL!$L$2:$Q$49,MATCH(Processing!AA30,ALL!$K$2:$K$49,0),MATCH(Processing!$D$1,ALL!$L$1:$Q$1,0)) -> 4385
AA31: North Carolina | AB31: 5059 | AC31: =INDEX(ALL!$L$2:$Q$49,MATCH(Processing!AA31,ALL!$K$2:$K$49,0),MATCH(Processing!$D$1,ALL!$L$1:$Q$1,0)) -> 5059
AA32: North Dakota | AB32: 5351 | AC32: =INDEX(ALL!$L$2:$Q$49,MATCH(Processing!AA32,ALL!$K$2:$K$49,0),MATCH(Processing!$D$1,ALL!$L$1:$Q$1,0)) -> 5351
AA33: Ohio | AB33: 2556 | AC33: =INDEX(ALL!$L$2:$Q$49,MATCH(Processing!AA33,ALL!$K$2:$K$49,0),MATCH(Processing!$D$1,ALL!$L$1:$Q$1,0)) -> 2556
AA34: Oklahoma | AB34: 2773 | AC34: =INDEX(ALL!$L$2:$Q$49,MATCH(Processing!AA34,ALL!$K$2:$K$49,0),MATCH(Processing!$D$1,ALL!$L$1:$Q$1,0)) -> 2773
AA35: Oregon | AB35: 2730 | AC35: =INDEX(ALL!$L$2:$Q$49,MATCH(Processing!AA35,ALL!$K$2:$K$49,0),MATCH(Processing!$D$1,ALL!$L$1:$Q$1,0)) -> 2730
AA36: Pennsylvania | AB36: 2869 | AC36: =INDEX(ALL!$L$2:$Q$49,MATCH(Processing!AA36,ALL!$K$2:$K$49,0),MATCH(Processing!$D$1,ALL!$L$1:$Q$1,0)) -> 2869
AA37: Rhode Island | AB37: 2683 | AC37: =INDEX(ALL!$L$2:$Q$49,MATCH(Processing!AA37,ALL!$K$2:$K$49,0),MATCH(Processing!$D$1,ALL!$L$1:$Q$1,0)) -> 2683
AA38: South Carolina | AB38: 2328 | AC38: =INDEX(ALL!$L$2:$Q$49,MATCH(Processing!AA38,ALL!$K$2:$K$49,0),MATCH(Processing!$D$1,ALL!$L$1:$Q$1,0)) -> 2328
AA39: South Dakota | AB39: 2452 | AC39: =INDEX(ALL!$L$2:$Q$49,MATCH(Processing!AA39,ALL!$K$2:$K$49,0),MATCH(Processing!$D$1,ALL!$L$1:$Q$1,0)) -> 2452
AA40: Tennessee | AB40: 2641 | AC40: =INDEX(ALL!$L$2:$Q$49,MATCH(Processing!AA40,ALL!$K$2:$K$49,0),MATCH(Processing!$D$1,ALL!$L$1:$Q$1,0)) -> 2641
AA41: Texas | AB41: 5010 | AC41: =INDEX(ALL!$L$2:$Q$49,MATCH(Processing!AA41,ALL!$K$2:$K$49,0),MATCH(Processing!$D$1,ALL!$L$1:$Q$1,0)) -> 5010
AA42: Utah | AB42: 4858 | AC42: =INDEX(ALL!$L$2:$Q$49,MATCH(Processing!AA42,ALL!$K$2:$K$49,0),MATCH(Processing!$D$1,ALL!$L$1:$Q$1,0)) -> 4858
AA43: Vermont | AB43: 5100 | AC43: =INDEX(ALL!$L$2:$Q$49,MATCH(Processing!AA43,ALL!$K$2:$K$49,0),MATCH(Processing!$D$1,ALL!$L$1:$Q$1,0)) -> 5100
AA44: Virginia | AB44: 4880 | AC44: =INDEX(ALL!$L$2:$Q$49,MATCH(Processing!AA44,ALL!$K$2:$K$49,0),MATCH(Processing!$D$1,ALL!$L$1:$Q$1,0)) -> 4880
AA45: Washington | AB45: 2165 | AC45: =INDEX(ALL!$L$2:$Q$49,MATCH(Processing!AA45,ALL!$K$2:$K$49,0),MATCH(Processing!$D$1,ALL!$L$1:$Q$1,0)) -> 2165
AA46: West Virginia | AB46: 2587 | AC46: =INDEX(ALL!$L$2:$Q$49,MATCH(Processing!AA46,ALL!$K$2:$K$49,0),MATCH(Processing!$D$1,ALL!$L$1:$Q$1,0)) -> 2587
AA47: Wisconsin | AB47: 2730 | AC47: =INDEX(ALL!$L$2:$Q$49,MATCH(Processing!AA47,ALL!$K$2:$K$49,0),MATCH(Processing!$D$1,ALL!$L$1:$Q$1,0)) -> 2730
AA48: Wyoming | AB48: 2602 | AC48: =INDEX(ALL!$L$2:$Q$49,MATCH(Processing!AA48,ALL!$K$2:$K$49,0),MATCH(Processing!$D$1,ALL!$L$1:$Q$1,0)) -> 2602
